Workbook

Sheet NOTES (hidden)
A1: 10-20-2015: This workbook reflects runs for the STRRA bill
A2: 11-6-15: This workbook reflects the STRRA Legislation as passed by the House. Changes since 10-20 version = no High Density States Allocation, 2% STIC from FY 19-21 and current law formula for 5337 HIMB Tier.

Sheet Budget STRRA (hidden)
B1: 2015 Enacted Full Year | C1: Oversight takedown | D1: Allocated by formula | E1: 2016 | F1: Oversight Takedown | G1: Allocated by formula | H1: 2017 | I1: Oversight Takedown | J1: Allocated by formula | K1: 2018 | L1: Oversight Takedown | M1: Allocated by formula | N1: 2019 | O1: Oversight Takedown | P1: Allocated by formula | Q1: 2020 | R1: Oversight Takedown | S1: Allocated by formula | T1: 2021 | U1: Oversight Takedown | V1: Alliocated by formula
A2: Trust Funded Programs | E2: =E3+E8+E9+E10+E11+E19+E24+E25+E26+E29+E33+E34+E41+E48+E49 -> 8671059000 | G2: =G3+G8+G9+G10+G11+G19+G24+G25+G26+G29+G33+G34+G41+G48+G49 -> 6206686850 | H2: =H3+H8+H9+H10+H11+H19+H24+H25+H26+H29+H33+H34+H41+H48+H49 -> 8717302000 | J2: =J3+J8+J9+J10+J11+J19+J24+J25+J26+J29+J33+J34+J41+J48+J49 -> 6217165645 | K2: =K3+K8+K9+K10+K11+K19+K24+K25+K26+K29+K33+K34+K41+K48+K49 -> 8898242000 | M2: =M3+M8+M9+M10+M11+M19+M24+M25+M26+M29+M33+M34+M41+M48+M49 -> 6352473498 | N2: =N3+N8+N9+N10+N11+N19+N24+N25+N26+N29+N33+N34+N41+N48+N49 -> 9084126000 | P2: =P3+P8+P9+P10+P11+P19+P24+P25+P26+P29+P33+P34+P41+P48+P49 -> 6484465634 | Q2: =Q3+Q8+Q9+Q10+Q11+Q19+Q24+Q25+Q26+Q29+Q33+Q34+Q41+Q48+Q49 -> 9273202000 | T2: =T3+T8+T9+T10+T11+T19+T24+T25+T26+T29+T33+T34+T41+T48+T49 -> 9462506000
A3: Bus and Bus Facilities Grants | B3: =SUM(B4:B5) -> 427800000 | C3: 0 | D3: 0 | E3: 430000000 | F3: =E3*0.0075 -> 3225000 | G3: =E3-F3 -> 426775000 | H3: 431850000 | I3: =H3*0.0075 -> 3238875 | J3: =H3-I3 -> 428611125 | K3: 445120000 | L3: =K3*0.0075 -> 3338400 | M3: =K3-L3 -> 441781600 | N3: 458459000 | O3: =N3*0.0075 -> 3438442.5 | P3: =N3-O3 -> 455020557.5 | Q3: 472326000 | R3: =Q3*0.0075 -> 3542445 | S3: =Q3-R3 -> 468783555 | T3: 486210000 | U3: =T3*0.0075 -> 3646575 | V3: =T3-U3 -> 482563425
A4: Formula Allocation | B4: 362300000 | C4: 0 | D4: =B4 -> 362300000 | E4: =E3-E5-E7 -> 364500000 | F4: =F3 -> 3225000 | G4: =E4-F4 -> 361275000 | H4: =H3-H5-H7 -> 366350000 | I4: =I3 -> 3238875 | J4: =H4-I4 -> 363111125 | K4: =K3-K5-K7 -> 379620000 | L4: =L3 -> 3338400 | M4: =K4-L4 -> 376281600 | N4: =N3-N5-N7 -> 392959000 | O4: =O3 -> 3438442.5 | P4: =N4-O4 -> 389520557.5 | Q4: =Q3-Q5-Q7 -> 406826000 | R4: =R3 -> 3542445 | S4: =Q4-R4 -> 403283555 | T4: =T3-T5-T7 -> 420710000 | U4: =U3 -> 3646575 | V4: =T4-U4 -> 417063425
A5: States and Territories Allocation | B5: 65500000 | C5: 0 | D5: =B5 -> 65500000 | E5: 65500000 | F5: 0 | G5: 65500000 | H5: 65500000 | I5: 0 | J5: =H5 -> 65500000 | K5: 65500000 | L5: 0 | M5: =K5 -> 65500000 | N5: 65500000 | O5: 0 | P5: =N5 -> 65500000 | Q5: 65500000 | R5: 0 | S5: =Q5 -> 65500000 | T5: 65500000 | U5: 0 | V5: =T5 -> 65500000
A6: No/Low Competitive Grant Program (from within Competitive Program)
A7: COMPETITIVE GRANTS
A8: Bus Testing Facility | B8: 3000000 | D8: 0 | E8: 3000000 | G8: 0 | H8: 3000000 | J8: 0 | K8: 3000000 | M8: 0 | N8: 3000000 | P8: 0 | Q8: 3000000 | S8: 0 | T8: 3000000 | V8: 0
A9: Enhanced Mobility of Seniors and Individuals with Disabilities | B9: 258300000 | C9: =B9*0.005 -> 1291500 | D9: =B9-C9 -> 257008500 | E9: 262175000 | F9: =E9*0.005 -> 1310875 | G9: =E9-F9 -> 260864125 | H9: 266841000 | I9: =H9*0.005 -> 1334205 | J9: =H9-I9 -> 265506795 | K9: 272258000 | L9: =K9*0.005 -> 1361290 | M9: =K9-L9 -> 270896710 | N9: 277703000 | O9: =N9*0.005 -> 1388515 | P9: =N9-O9 -> 276314485 | Q9: 283364000 | R9: =Q9*0.005 -> 1416820 | S9: =Q9-R9 -> 281947180 | T9: 289031000 | U9: =T9*0.005 -> 1445155 | V9: =T9-U9 -> 287585845
A10: Pilot Program for Enhanced Mobility
A11: Formula Grants for Rural Areas | B11: 607800000 | C11: =B11*0.005 -> 3039000 | D11: =(B11-C11-B14)-5000000 -> 597937600 | E11: 607800000 | F11: =E11*0.005 -> 3039000 | G11: =(E11-F11-E14-E16) -> 597937600 | H11: 607800000 | I11: =H11*0.005 -> 3039000 | J11: =(H11-I11-H14-H16) -> 597937600 | K11: 620138000 | L11: =K11*0.005 -> 3100690 | M11: =(K11-L11-K14-K16) -> 610176896 | N11: 632541000 | O11: =N11*0.005 -> 3162705 | P11: =(N11-O11-N14-N16) -> 622480672 | Q11: 645434000 | R11: =Q11*0.005 -> 3227170 | S11: =(Q11-R11-Q14-Q16) -> 635270528 | T11: 658343000 | U11: =T11*0.005 -> 3291715 | V11: =(T11-U11-T14-T16) -> 648076256
A12: Appalachian Development Public Transportation Assistance Program | B12: 20000000 | C12: 0 | D12: 20000000 | E12: 20000000 | F12: 0 | G12: 20000000 | H12: 20000000 | I12: 0 | J12: 20000000 | K12: 20000000 | L12: 0 | M12: 20000000 | N12: 20000000 | O12: 0 | P12: 20000000 | Q12: 20000000 | R12: 0 | S12: 20000000 | T12: 20000000 | U12: 0 | V12: 20000000
A13: Formula Grants for Rural Areas | B13: =B11-B12-B14-B15-B16-B17 -> 545644000 | C13: =C11 -> 3039000 | D13: 502605000 | E13: =E11-E12-E14-E15-E16-E17 -> 545644000 | F13: =F11 -> 3039000 | G13: =E13-F13 -> 542605000 | H13: =H11-H12-H14-H15-H16-H17 -> 545644000 | I13: =I11 -> 3039000 | J13: =H13-I13 -> 542605000 | K13: =K11-K12-K14-K15-K16-K17 -> 557735240 | L13: =L11 -> 3100690 | M13: =K13-L13 -> 554634550 | N13: =N11-N12-N14-N15-N16-N17 -> 569890180 | O13: =O11 -> 3162705 | P13: =N13-O13 -> 566727475 | Q13: =Q11-Q12-Q14-Q15-Q16-Q17 -> 582525320 | R13: =R11 -> 3227170 | S13: =Q13-R13 -> 579298150 | T13: =T11-T12-T14-T15-T16-T17 -> 595176140 | U13: =U11 -> 3291715 | V13: =T13-U13 -> 591884425
A14: Projects of National Scope (NRTAP) | B14: =(B11*0.02)*0.15 -> 1823400 | C14: 0 | D14: 0 | E14: =(E11*0.02)*0.15 -> 1823400 | F14: 0 | G14: 0 | H14: =(H11*0.02)*0.15 -> 1823400 | I14: 0 | J14: 0 | K14: =(K11*0.02)*0.15 -> 1860414 | L14: 0 | M14: 0 | N14: =(N11*0.02)*0.15 -> 1897623 | O14: 0 | P14: 0 | Q14: =(Q11*0.02)*0.15 -> 1936302 | R14: 0 | S14: 0 | T14: =(T11*0.02)*0.15 -> 1975029 | U14: 0 | V14: 0
A15: Public Transportation on Indian Reservations --formula | B15: 25000000 | C15: 0 | D15: =B15 -> 25000000 | E15: 25000000 | F15: 0 | G15: =E15 -> 25000000 | H15: 25000000 | I15: 0 | J15: =H15 -> 25000000 | K15: 25000000 | L15: 0 | M15: =K15 -> 25000000 | N15: 25000000 | O15: 0 | P15: =N15 -> 25000000 | Q15: 25000000 | R15: 0 | S15: =Q15 -> 25000000 | T15: 25000000 | U15: 0 | V15: =T15 -> 25000000
A16: Public Transportation on Indian Reservations --discretionary | B16: 5000000 | E16: 5000000 | H16: 5000000 | K16: 5000000 | N16: 5000000 | Q16: 5000000 | T16: 5000000
A17: Rural Tranportation Assistance Program | B17: =(B11*0.02)*0.85 -> 10332600 | C17: 0 | D17: =B17 -> 10332600 | E17: =(E11*0.02)*0.85 -> 10332600 | F17: 0 | G17: =E17 -> 10332600 | H17: =(H11*0.02)*0.85 -> 10332600 | I17: 0 | J17: =H17 -> 10332600 | K17: =(K11*0.02)*0.85 -> 10542346 | L17: 0 | M17: =K17 -> 10542346 | N17: =(N11*0.02)*0.85 -> 10753197 | O17: 0 | P17: =N17 -> 10753197 | Q17: =(Q11*0.02)*0.85 -> 10972378 | R17: 0 | S17: =Q17 -> 10972378 | T17: =(T11*0.02)*0.85 -> 11191831 | U17: 0 | V17: =T17 -> 11191831
A18: Combined 5311/5340 | D18: =D13+B22 -> 577507087.9 | G18: =G13+E22 -> 617507087.9 | J18: =J13+H22 -> 617507087.9 | M18: =M13+K22 -> 631057183.1 | P18: =P13+N22 -> 644678486.7 | S18: =S13+Q22 -> 658838071.5 | V18: =V13+T22 -> 673015107.9
A19: Growing States and High Density States Formula --combine with 5307 | B19: 525900000 | C19: 0 | D19: =B19 -> 525900000 | E19: 525900000 | F19: 0 | G19: =E19 -> 525900000 | H19: 525900000 | I19: 0 | J19: =H19 -> 525900000 | K19: 536576000 | L19: 0 | M19: =K19 -> 536576000 | N19: 547307000 | O19: 0 | P19: =N19 -> 547307000 | Q19: 558463000 | R19: 0 | S19: =Q19 -> 558463000 | T19: 569632000 | U19: 0 | V19: =T19 -> 569632000
A20: Growing State Apportionments | B20: =B19*0.5 -> 262950000 | C20: 0 | D20: 0 | E20: =E19*0.5 -> 262950000 | F20: 0 | G20: 0 | H20: =H19*0.5 -> 262950000 | I20: 0 | J20: 0 | K20: =K19*0.5 -> 268288000 | L20: 0 | M20: 0 | N20: =N19*0.5 -> 273653500 | O20: 0 | P20: 0 | Q20: =Q19*0.5 -> 279231500 | R20: 0 | S20: 0 | T20: =T19*0.5 -> 284816000 | U20: 0 | V20: 0
A21: 5307 Share | B21: =B20*0.715147032 -> 188047912.1 | E21: =E20*0.715147032 -> 188047912.1 | H21: =H20*0.715147032 -> 188047912.1 | K21: =K20*0.715147032 -> 191865366.9 | N21: =N20*0.715147032 -> 195702488.3 | Q21: =Q20*0.715147032 -> 199691578.5 | T21: =T20*0.715147032 -> 203685317.1
A22: 5311 Share | B22: =B20*0.284852968 -> 74902087.94 | E22: =E20*0.284852968 -> 74902087.94 | H22: =H20*0.284852968 -> 74902087.94 | K22: =K20*0.284852968 -> 76422633.08 | N22: =N20*0.284852968 -> 77951011.68 | Q22: =Q20*0.284852968 -> 79539921.53 | T22: =T20*0.284852968 -> 81130682.93
A23: High Density State Apportionments | B23: =B19*0.5 -> 262950000 | C23: 0 | D23: 0 | E23: =E19*0.5 -> 262950000 | F23: 0 | G23: 0 | H23: =H19*0.5 -> 262950000 | I23: 0 | J23: 0 | K23: =K19*0.5 -> 268288000 | L23: 0 | M23: 0 | N23: =N19*0.5 -> 273653500 | O23: 0 | P23: 0 | Q23: =Q19*0.5 -> 279231500 | R23: 0 | S23: 0 | T23: =T19*0.5 -> 284816000 | U23: 0 | V23: 0
A24: National Transit Database | B24: 3850000 | C24: 0 | D24: 0 | E24: 3850000 | F24: 0 | G24: 0 | H24: 3850000 | I24: 0 | J24: 0 | K24: 3850000 | L24: 0 | M24: 0 | N24: 3850000 | O24: 0 | P24: 0 | Q24: 3850000 | R24: 0 | S24: 0 | T24: 3850000 | U24: 0 | V24: 0
A25: National Transit Institute | B25: 5000000 | D25: 0 | E25: 5000000 | G25: 0 | H25: 5000000 | J25: 0 | K25: 5000000 | M25: 0 | N25: 5000000 | P25: 0 | Q25: 5000000 | S25: 0 | T25: 5000000 | V25: 0
A26: Planning Programs | B26: =SUM(B27:B28) -> 128800000 | D26: 0 | E26: 128800000 | G26: 0 | H26: 128800000 | J26: 0 | K26: 131415000 | M26: 0 | N26: 134043000 | P26: 0 | Q26: 136775000 | S26: 0 | T26: 139511000 | V26: 0
A27: Metropolitan Transportation Planning | B27: 106543360 | C27: =B27*0.005 -> 532716.8 | D27: =B27-C27 -> 106010643.2 | E27: =E26*0.8272 -> 106543360 | F27: =E27*0.005 -> 532716.8 | G27: =E27-F27 -> 106010643.2 | H27: =H26*0.8272 -> 106543360 | I27: =H27*0.005 -> 532716.8 | J27: =H27-I27 -> 106010643.2 | K27: 108706488 | L27: =K27*0.005 -> 543532.44 | M27: =K27-L27 -> 108162955.6 | N27: 110880369.6 | O27: =N27*0.005 -> 554401.848 | P27: =N27-O27 -> 110325967.8 | Q27: 113140280 | R27: =Q27*0.005 -> 565701.4 | S27: =Q27-R27 -> 112574578.6 | T27: 115403499.2 | U27: =T27*0.005 -> 577017.496 | V27: =T27-U27 -> 114826481.7
A28: Statewide Transportation Planning | B28: 22256640 | C28: =B28*0.005 -> 111283.2 | D28: =B28-C28 -> 22145356.8 | E28: =E26*0.1728 -> 22256640 | F28: =E28*0.005 -> 111283.2 | G28: =E28-F28 -> 22145356.8 | H28: =H26*0.1728 -> 22256640 | I28: =H28*0.005 -> 111283.2 | J28: =H28-I28 -> 22145356.8 | K28: 22708512 | L28: =K28*0.005 -> 113542.56 | M28: =K28-L28 -> 22594969.44 | N28: 23162630.4 | O28: =N28*0.005 -> 115813.152 | P28: =N28-O28 -> 23046817.25 | Q28: 23634720 | R28: =Q28*0.005 -> 118173.6 | S28: =Q28-R28 -> 23516546.4 | T28: 24107500.8 | U28: =T28*0.005 -> 120537.504 | V28: =T28-U28 -> 23986963.3
A29: State of Good Repair Grants | B29: =SUM(B31:B32) -> 2165900000 | D29: 0 | E29: 2198389000 | G29: 0 | H29: 2237520000 | J29: 0 | K29: 2282941000 | M29: 0 | N29: 2328600000 | P29: 0 | Q29: 2376064000 | S29: 0 | T29: 2423585000 | V29: 0
A30: High Intensity Fixed Guideway Formula $100M
A31: High Intensity Fixed Guideway Formula | B31: 2104171850 | C31: =B31*0.0075 -> 15781288.88 | D31: =B31-C31 -> 2088390561 | E31: =(E29-E30)*0.9715 -> 2135734914 | F31: =E31*0.0075 -> 16018011.85 | G31: =E31-F31 -> 2119716902 | H31: =(H29-H30)*0.9715 -> 2173750680 | I31: =H31*0.0075 -> 16303130.1 | J31: =H31-I31 -> 2157447550 | K31: =(K29-K30)*0.9715 -> 2217877182 | L31: =K31*0.0075 -> 16634078.86 | M31: =K31-L31 -> 2201243103 | N31: =(N29-N30)*0.9715 -> 2262234900 | O31: =N31*0.0075 -> 16966761.75 | P31: =N31-O31 -> 2245268138 | Q31: =(Q29-Q30)*0.9715 -> 2308346176 | R31: =Q31*0.0075 -> 17312596.32 | S31: =Q31-R31 -> 2291033580 | T31: =(T29-T30)*0.9715 -> 2354512828 | U31: =T31*0.0075 -> 17658846.21 | V31: =T31-U31 -> 2336853981
A32: High Intensity Motorbus State of Good Repair | B32: 61728150 | C32: 0 | D32: =B32 -> 61728150 | E32: =E29-E30-E31 -> 62654086.5 | F32: 0 | G32: =E32 -> 62654086.5 | H32: =H29-H30-H31 -> 63769320 | I32: 0 | J32: =H32 -> 63769320 | K32: =K29-K30-K31 -> 65063818.5 | L32: 0 | M32: =K32 -> 65063818.5 | N32: =N29-N30-N31 -> 66365100 | O32: 0 | P32: =N32 -> 66365100 | Q32: =Q29-Q30-Q31 -> 67717824 | R32: 0 | S32: =Q32 -> 67717824 | T32: =T29-T30-T31 -> 69072172.5 | U32: 0 | V32: =T32 -> 69072172.5
A33: Transit Oriented Development (Discretionary Pilot) | B33: 10000000 | C33: 0 | D33: 0 | E33: 10000000 | F33: 0 | G33: 0 | H33: 10000000 | I33: 0 | J33: 0 | K33: 10000000 | L33: 0 | M33: 0 | N33: 10000000 | O33: 0 | P33: 0 | Q33: 10000000 | R33: 0 | S33: 0 | T33: 10000000 | U33: 0 | V33: 0
A34: Urbanized Area Formula Grants --combine with 5340 | B34: 4458650000 | C34: =B34*0.0075 -> 33439875 | D34: =B34-C34-B36 -> 4395210125 | E34: 4458650000 | F34: =E34*0.0075 -> 33439875 | G34: =E34-F34-E36 -> 4395210125 | H34: 4458650000 | I34: =H34*0.0075 -> 33439875 | J34: =H34-I34-H36 -> 4395210125 | K34: 4549161000 | L34: =K34*0.0075 -> 34118707.5 | M34: =K34-L34-K36 -> 4485042292 | N34: 4640144000 | O34: =N34*0.0075 -> 34801080 | P34: =N34-O34-N36 -> 4575342920 | Q34: 4734724000 | R34: =Q34*0.0075 -> 35510430 | S34: =Q34-R34-Q36 -> 4669213570 | T34: 4829418000 | U34: =T34*0.0075 -> 36220635 | V34: =T34-U34-T36 -> 4763197365
A35: Operational Support Of State Safety Oversight | B35: 22293250 | C35: 0 | D35: =B35 -> 22293250 | E35: =E34*0.005 -> 22293250 | F35: 0 | G35: =E35 -> 22293250 | H35: =H34*0.005 -> 22293250 | I35: 0 | J35: =H35 -> 22293250 | K35: 22745805 | L35: 0 | M35: =K35 -> 22745805 | N35: =N34*0.005 -> 23200720 | O35: 0 | P35: =N35 -> 23200720 | Q35: 23673620 | R35: 0 | S35: =Q35 -> 23673620 | T35: 24147090 | U35: 0 | V35: =T35 -> 24147090
A36: Passenger Ferry Boat Program | B36: 30000000 | C36: 0 | D36: 0 | E36: 30000000 | F36: 0 | G36: 0 | H36: 30000000 | I36: 0 | J36: 0 | K36: 30000000 | L36: 0 | M36: 0 | N36: 30000000 | O36: 0 | P36: 0 | Q36: 30000000 | R36: 0 | S36: 0 | T36: 30000000 | U36: 0 | V36: 0
A37: Urbanized Area Formula Grants | B37: =B34-B35-B36 -> 4406356750 | C37: =C34 -> 33439875 | D37: =B37-C37 -> 4372916875 | E37: =E34-E35-E36 -> 4406356750 | F37: =F34 -> 33439875 | G37: =E37-F37 -> 4372916875 | H37: 4406356750 | I37: =I34 -> 33439875 | J37: =H37-I37 -> 4372916875 | K37: 4496415195 | L37: =L34 -> 34118707.5 | M37: =K37-L37 -> 4462296488 | N37: 4586943280 | O37: =O34 -> 34801080 | P37: =N37-O37 -> 4552142200 | Q37: 4681050380 | R37: =R34 -> 35510430 | S37: =Q37-R37 -> 4645539950 | T37: 4775270910 | U37: =U34 -> 36220635 | V37: =T37-U37 -> 4739050275
A38: Combined 5307/5340 | D38: =D37+B21+B23 -> 4823914787 | G38: =G37+E21+E23 -> 4823914787 | J38: =J37+H21+H23 -> 4823914787 | M38: =M37+K21+K23 -> 4922449854 | P38: =P37+N21+N23 -> 5021498188 | S38: =S37+Q21+Q23 -> 5124463028 | V38: =V37+T21+T23 -> 5227551592
A41: Transit Research | C41: 0 | D41: 0 | E41: 33495000 | F41: 0 | G41: 0 | H41: 34091000 | K41: 34783000 | N41: 35479000 | Q41: 36202000 | T41: 36926000
A42: Research, Development, Demonstration and Deployment Projects | C42: 0 | D42: 0
A43: Facilities and Equipment Relating to Low/No Emissions Buses | C43: 0 | D43: 0
A44: Low and No Emissions Buses | C44: 0 | D44: 0
A45: Other Research, Development, Demonstration and Deployment Projects | C45: 0 | D45: 0
A46: Component Testing | E46: 5000000 | H46: 5000000 | I46: 5000000 | J46: 5000000 | K46: 5000000 | L46: 5000000 | M46: 5000000 | N46: 5000000 | O46: 5000000 | P46: 5000000 | Q46: 5000000 | R46: 5000000 | S46: 5000000 | T46: 5000000
A47: Transit Cooperative Research | C47: 0 | D47: 0 | E47: 5000000 | F47: 0 | G47: 0 | H47: 5000000 | I47: 5000000 | J47: 5000000 | K47: 5000000 | L47: 5000000 | M47: 5000000 | N47: 5000000 | O47: 5000000 | P47: 5000000 | Q47: 5000000 | R47: 5000000 | S47: 5000000 | T47: 5000000
A48: Technical Assistance and Training (5314) | C48: 0 | D48: 0 | E48: 4000000 | H48: 4000000 | I48: 4000000 | J48: 4000000 | K48: 4000000 | L48: 4000000 | M48: 4000000 | N48: 4000000 | O48: 4000000 | P48: 4000000 | Q48: 4000000 | R48: 4000000 | S48: 4000000 | T48: 4000000
A49: Innovative Workforce Development 5322(b) | C49: 0 | D49: 0 | L49: 4000000 | M49: 4000000 | N49: 4000000 | O49: 4000000 | P49: 4000000 | Q49: 4000000 | R49: 4000000 | S49: 4000000 | T49: 4000000
A51: General Funded Programs
A52: Research, Development, Demonstration and Deployment Projects | B52: 33000000 | E52: 20000000 | H52: 20000000 | K52: 20000000 | N52: 20000000 | Q52: 20000000 | T52: 20000000
A53: 5312 | B53: 30000000
A54: Transit Cooperative Research | B54: 3000000
A55: Technical Assistance and Training (5314) | B55: 4500000
A56: Technical Assitance | B56: 4000000 | E56: 7000000 | H56: 7000000 | K56: 7000000 | N56: 7000000 | Q56: 7000000 | T56: 7000000
A57: Human Resources and Training | B57: 500000 | E57: 5000000 | H57: 5000000 | K57: 5000000 | N57: 5000000 | Q57: 5000000 | T57: 5000000
A58: Capital Investment Grants | B58: 2120000000 | C58: 0 | D58: 0 | E58: 2301785760 | H58: 2352597681 | K58: 2406119278 | N58: 2464082691 | Q58: 2526239177 | T58: 2590122713
A59: Pilot Progam for Expedited Project Delivery | E59: 276214291 | H59: 282311722 | K59: 288734313 | N59: 295689923 | Q59: 303148701 | T59: 310814726
A60: Administrative Expenses | B60: 105933000 | C60: 0 | D60: 0 | E60: 115016543 | H60: 117555533 | K60: 120229921 | N60: 123126260 | Q60: 126232120 | T60: 129424278
A61: Safety | B61: 4500000 | E61: 8000000 | H61: 8000000 | K61: 8000000 | N61: 8000000 | Q61: 8000000 | T61: 8000000
A62: Transit Asset Management | B62: 1000000 | E62: 2000000 | H62: 2000000 | K62: 2000000 | N62: 2000000 | Q62: 2000000 | T62: 2000000

Sheet FY 15
A1: FEDERAL TRANSIT ADMINISTRATION
A3: FISCAL YEAR 2015 Full Year Actual APPORTIONMENTS/ALLOCATIONS BY STATE FOR SELECTED FTA PROGRAMS
B5: The information in this table include allocations for formula programs apportioned via FTA's Apportionment Notice Published on March 10, 2014 as well as Discretionary Program allocations announced in Federal Register Announcements in 2014. For allocations under the Public Transportation Emergency Relief Program, Please Contact the FTA Office of Program Management at 202-366-4020
B6: Section 5303 | C6: Section 5304 | E6: Section 5307 + 5340 | F6: Section 5329 (e) | G6: Section 5310 | H6: Section 5311 + 5340 | I6: Section 5311(b)(3) | J6: Section 5311(c)(2) | K6: Section 5311(c)(1)
B8: Metropolitan | C8: Statewide | E8: Urbanized Area | F8: State Safety | G8: Enhanced Mobility for | H8: Nonurbanized Area | J8: Appalachian Dev. Public | K8: Indian Reserv. | M8: High Intensity | O8: High Intensity | P8: Bus and Bus | Q8: Statewide
A9: State | B9: Planning | C9: Planning | E9: Formula | F9: Oversight Program | G9: Older Adults and People with Disabilities | H9: Formula | I9: RTAP | J9: Trans. Assist. Program | K9: Formula | M9: Fixed Guideway | O9: MotorBus | P9: Facilities Formula | Q9: Allocation | R9: 5339 Total | S9: State Total
A10: Alabama…………………………………… | B10: 845028.4701 | C10: 220627.8941 | E10: 23296675 | F10: 0 | G10: 4193149.129 | H10: 15354646.31 | I10: 257470.4536 | J10: 5000000 | K10: 186 | M10: 0 | N10: =O10/$O$67 -> 0 | O10: 0 | P10: 2420963.056 | Q10: 1250000 | R10: 3670963.056 | S10: =SUM(B10:Q10) -> 52838746.31
A11: Alaska………………………………………. | B11: 424042.6564 | C11: 110720.3996 | E11: 14663316 | F11: 0 | G11: 383223.7749 | H11: 8092575.229 | I11: 94485.62395 | J11: 0 | K11: 371566 | M11: 18485805.35 | N11: =O11/$O$67 -> 0 | O11: 0 | P11: 633446.0757 | Q11: 1250000 | R11: 1883446.076 | S11: 44509181.11
A12: American Samoa……………………………. | B12: 0 | C12: 0 | E12: 0 | F12: 0 | G12: 11912.85459 | H12: 299794.7963 | I12: 14126.79911 | J12: 0 | K12: 0 | M12: 0 | N12: 0 | O12: 0 | P12: 0 | Q12: 500000 | R12: 500000 | S12: 825834.45
A13: Arizona………………………………………. | B13: 2434324.995 | C13: 485581.8385 | E13: 74012567 | F13: 429124 | G13: 5564110.662 | H13: 11592249.52 | I13: 164092.623 | J13: 0 | K13: 1538917 | M13: 343373.6246 | N13: 0.03424633656 | O13: 2113963 | P13: 7598322.658 | Q13: 1250000 | R13: 8848322.658 | S13: 107526627
A14: Arkansas……………………………………. | B14: 425321.8947 | C14: 112008.8689 | E14: 12536587 | F14: 225342 | G14: 2479766.396 | H14: 11943861.27 | I14: 202770.9657 | J14: 0 | K14: 0 | M14: 277218.0074 | N14: 0 | O14: 0 | P14: 1291674.477 | Q14: 1250000 | R14: 2541674.477 | S14: 30744550.88
A15: California………………………………… | B15: 15901097.27 | C15: 3171663.354 | E15: 772531268 | F15: 2841320 | G15: 28367466.54 | H15: 27488728.07 | I15: 366010.8409 | J15: 0 | K15: 531845 | M15: 323256064.4 | N15: 0.2067242579 | O15: 12760706 | P15: 65518810.42 | Q15: 1250000 | R15: 66768810.42 | S15: 1253984980
A16: Colorado……………………………………. | B16: 1780573.501 | C16: 366761.3842 | E16: 72945975 | F16: 527141 | G16: 3714556.634 | H16: 10989296.8 | I16: 155349.0377 | J16: 0 | K16: 152496 | M16: 12083532.02 | N16: 0.01254630181 | O16: 774460 | P16: 6791749.34 | Q16: 1250000 | R16: 8041749.34 | S16: 111531890.7
A17: Connecticut……………………………… | B17: 1101855.968 | C17: 287678.5605 | E17: 93888648 | F17: 0 | G17: 3150169.426 | H17: 2935241.782 | I17: 106167.1006 | J17: 0 | K17: 0 | M17: 49972476.59 | N17: 0.01268929978 | O17: 783287 | P17: 4187634.533 | Q17: 1250000 | R17: 5437634.533 | S17: 157663159
A18: Delaware……………………………………. | B18: 424042.6564 | C18: 110720.3996 | E18: 19301602 | F18: 0 | G18: 811201.112 | H18: 1675321.571 | I18: 85503.54186 | J18: 0 | K18: 0 | M18: 0 | N18: 0 | O18: 0 | P18: 935052.2671 | Q18: 1250000 | R18: 2185052.267 | S18: 24593443.55
A19: District of Columbia………………………. | B19: 424042.6564 | C19: 110720.3996 | E19: 20371867 | F19: 1788426 | G19: 370869.7035 | H19: 0 | I19: 0 | J19: 0 | K19: 0 | M19: 139125067.3 | N19: 0.06850388356 | O19: 4228618 | P19: 1278568.292 | Q19: 500000 | R19: 1778568.292 | S19: 168198179.4
A20: Florida………………………………………. | B20: 7639678.288 | C20: 1559843.358 | E20: 250618420 | F20: 760282 | G20: 20502263.33 | H20: 15622377.54 | I20: 250108.2029 | J20: 0 | K20: 0 | M20: 37396800.21 | N20: 0.01717291058 | O20: 1060052 | P20: 24188253.41 | Q20: 1250000 | R20: 25438253.41 | S20: 360848078.4
A21: Georgia……………………………………… | B21: 3016706.726 | C21: 601003.7495 | E21: 89088611 | F21: 844618 | G21: 6809493.099 | H21: 21110194.34 | I21: 328596.0446 | J21: 592000 | K21: 0 | M21: 39921487.38 | N21: 0.04528321357 | O21: 2795249 | P21: 7697091.63 | Q21: 1250000 | R21: 8947091.63 | S21: 174055051
A22: Guam………………………………………… | B22: 0 | C22: 0 | E22: 0 | F22: 0 | G22: 45101.94371 | H22: 785685.0637 | I22: 22342.77102 | J22: 0 | K22: 0 | M22: 0 | N22: 0 | O22: 0 | P22: 0 | Q22: 500000 | R22: 500000 | S22: 1353129.778
A23: Hawaii………………………………………. | B23: 424042.6564 | C23: 110720.3996 | E23: 30291553 | F23: 215673 | G23: 1129627.902 | H23: 2677512.062 | I23: 93991.10811 | J23: 0 | K23: 0 | M23: 259848.1585 | N23: 0.01369501597 | O23: 845368 | P23: 3755659.534 | Q23: 1250000 | R23: 5005659.534 | S23: 41053995.83
A24: Idaho…………………………………………. | B24: 424042.6564 | C24: 110720.3996 | E24: 10199863 | F24: 0 | G24: 1354897.048 | H24: 7648873.857 | I24: 124652.064 | J24: 0 | K24: 1035416 | M24: 0 | N24: 0 | O24: 0 | P24: 1093910.615 | Q24: 1250000 | R24: 2343910.615 | S24: 23242375.64
A25: Illinois……………………………………… | B25: 5057190.431 | C25: 973546.3302 | E25: 266392690 | F25: 1716914 | G25: 9737400.042 | H25: 16103763.33 | I25: 266611.2091 | J25: 0 | K25: 0 | M25: 219561172.1 | N25: 0 | O25: 0 | P25: 15963890.57 | Q25: 1250000 | R25: 17213890.57 | S25: 537023178
A26: Indiana……………………………………… | B26: 1724643.13 | C26: 364020.1247 | E26: 55787469 | F26: 0 | G26: 5288722.478 | H26: 15875024.62 | I26: 272724.5152 | J26: 0 | K26: 0 | M26: 2325155.802 | N26: 0 | O26: 0 | P26: 4734164.442 | Q26: 1250000 | R26: 5984164.442 | S26: 87621924.12
A27: Iowa…………………………………………. | B27: 461148.5275 | C27: 120400.8348 | E27: 20061889 | F27: 0 | G27: 2387510.152 | H27: 12137361.02 | I27: 203903.0954 | J27: 0 | K27: 0 | M27: 0 | N27: 0 | O27: 0 | P27: 2003766.888 | Q27: 1250000 | R27: 3253766.888 | S27: 38625979.52
A28: Kansas………………………………………. | B28: 625221.2953 | C28: 135815.1033 | E28: 17618188 | F28: 0 | G28: 2106516.917 | H28: 10932979.37 | I28: 175759.4978 | J28: 0 | K28: 89597 | M28: 0 | N28: 0 | O28: 0 | P28: 1787123.218 | Q28: 1250000 | R28: 3037123.218 | S28: 34721200.4
A29: Kentucky…………………………………… | B29: 698259.2418 | C29: 168748.8812 | E29: 24724346 | F29: 0 | G29: 3412270.195 | H29: 16632017.24 | I29: 265889.8779 | J29: 1764000 | K29: 0 | M29: 0 | N29: 0 | O29: 0 | P29: 2621131.125 | Q29: 1250000 | R29: 3871131.125 | S29: 51536662.56
A30: Louisiana……………………………………. | B30: 1010415.292 | C30: 263808.5309 | E30: 33940052 | F30: 289012 | G30: 4025524.664 | H30: 11371955.58 | I30: 201970.7845 | J30: 0 | K30: 0 | M30: 3478453.419 | N30: 0.00575053683 | O30: 354970 | P30: 3443444.989 | Q30: 1250000 | R30: 4693444.989 | S30: 59629607.27
A31: Maine………………………………………… | B31: 424042.6564 | C31: 110720.3996 | E31: 13040994 | F31: 0 | G31: 1096880.03 | H31: 6838673.3 | I31: 140830.9091 | J31: 0 | K31: 52311 | M31: 6920446.869 | N31: 0 | O31: 0 | P31: 473265.7276 | Q31: 1250000 | R31: 1723265.728 | S31: 30348164.89
A32: Maryland……………………………………. | B32: 2386103.876 | C32: 457599.9197 | E32: 154414135 | F32: 607757 | G32: 4499992.48 | H32: 5505404.322 | I32: 138493.6404 | J32: 636000 | K32: 0 | M32: 52111739.86 | N32: 0 | O32: 0 | P32: 8317202.831 | Q32: 1250000 | R32: 9567202.831 | S32: 230324428.9
A33: Massachusetts……………………………. | B33: 2837000.591 | C33: 561005.1388 | E33: 194426968 | F33: 1148683 | G33: 5810045.127 | H33: 3640495.338 | I33: 113510.8556 | J33: 0 | K33: 0 | M33: 121032525.6 | N33: 0.0006771302882 | O33: 41798 | P33: 8449729.012 | Q33: 1250000 | R33: 9699729.012 | S33: 339311760.7
A34: Michigan……………………………………. | B34: 2975111.583 | C34: 622436.9965 | E34: 86295344 | F34: 290921 | G34: 8757609.179 | H34: 20616547.3 | I34: 326230.5456 | J34: 0 | K34: 37455 | M34: 1075143.846 | N34: 0 | O34: 0 | P34: 9355415.341 | Q34: 1250000 | R34: 10605415.34 | S34: 131602214.8
A35: Minnesota…………………………………. | B35: 1537443.602 | C35: 291858.1113 | E35: 59771535 | F35: 314806 | G35: 3656362.929 | H35: 15403643.34 | I35: 239547.1746 | J35: 0 | K35: 1624344 | M35: 6270230.898 | N35: 0.09514203811 | O35: 5872942 | P35: 5350891.665 | Q35: 1250000 | R35: 6600891.665 | S35: 101583604.8
A36: Mississippi…………………………………. | B36: 424042.6564 | C36: 110720.3996 | E36: 8375523 | F36: 0 | G36: 2067406.338 | H36: 13955636.54 | I36: 233208.0266 | J36: 254000 | K36: 754708 | M36: 0 | N36: 0 | O36: 0 | P36: 819434.5013 | Q36: 1250000 | R36: 2069434.501 | S36: 28244679.47
A37: Missouri……………………………………. | B37: 1648888.542 | C37: 321653.3597 | E37: 48336251 | F37: 672658 | G37: 4861159.406 | H37: 17466014.34 | I37: 268898.8316 | J37: 0 | K37: 0 | M37: 14954066.44 | N37: 0.00031739166 | O37: 19592 | P37: 4521761.209 | Q37: 1250000 | R37: 5771761.209 | S37: 94320943.12
A38: Montana…………………………………… | B38: 424042.6564 | C38: 110720.3996 | E38: 4420048 | F38: 0 | G38: 834930.9913 | H38: 9946253.479 | I38: 120817.6193 | J38: 0 | K38: 1605126 | M38: 0 | N38: 0 | O38: 0 | P38: 417932 | Q38: 1250000 | R38: 1667932 | S38: 19129871.15
A39: N. Mariana Islands…………………………. | B39: 0 | C39: 0 | E39: 0 | F39: 0 | G39: 9413.291338 | H39: 288578.0419 | I39: 13998.30286 | J39: 0 | K39: 0 | M39: 0 | N39: 0 | O39: 0 | P39: 0 | Q39: 500000 | R39: 500000 | S39: 811989.6361
A40: Nebraska……………………………………. | B40: 424042.6564 | C40: 110720.3996 | E40: 11140241 | F40: 0 | G40: 1227172.759 | H40: 7620799.519 | I40: 130063.508 | J40: 0 | K40: 467019 | M40: 0 | N40: 0 | O40: 0 | P40: 1221278.15 | Q40: 1250000 | R40: 2471278.15 | S40: 23591336.99
A41: Nevada………………………………………. | B41: 1147554.422 | C41: 221664.0824 | E41: 39935338 | F41: 0 | G41: 2061356.078 | H41: 6416475.784 | I41: 92100.6558 | J41: 0 | K41: 84587 | M41: 2070368.022 | N41: 0 | O41: 0 | P41: 3893421.574 | Q41: 1250000 | R41: 5143421.574 | S41: 57172865.62
A42: New Hampshire……………………………. | B42: 424042.6564 | C42: 110720.3996 | E42: 8035052 | F42: 0 | G42: 1101918.087 | H42: 3914429.589 | I42: 118128.9327 | J42: 0 | K42: 0 | M42: 0 | N42: 0 | O42: 0 | P42: 717452.4508 | Q42: 1250000 | R42: 1967452.451 | S42: =SUM(B42:Q42) -> 15671744.12
A43: New Jersey…………………………………. | B43: 4104422.435 | C43: 769479.0847 | E43: 390327123 | F43: 901431 | G43: 7135012.3 | H43: 3788507.966 | I43: 117233.3528 | J43: 0 | K43: 0 | M43: 148228329 | N43: 0 | O43: 0 | P43: 16641898.87 | Q43: 1250000 | R43: 17891898.87 | S43: 573263437
A44: New Mexico………………………………… | B44: 424042.6564 | C44: 110720.3996 | E44: 23784591 | F44: 0 | G44: 1718415.799 | H44: 10280268.71 | I44: 138633.8181 | J44: 0 | K44: 601850 | M44: 3819252.57 | N44: 0 | O44: 0 | P44: 1682364.344 | Q44: 1250000 | R44: 2932364.344 | S44: 43810139.3
A45: New York……………………………………. | B45: 7751049.618 | C45: 1519823.482 | E45: 646558585 | F45: 2345914 | G45: 15671880.3 | H45: 20479445.87 | I45: 329115.8703 | J45: 200000 | K45: 56906 | M45: 607132914.6 | N45: 0.09666358055 | O45: 5966864 | P45: 32895385.34 | Q45: 1250000 | R45: 34145385.34 | S45: 1342157884
A46: North Carolina…………………………………… | B46: 2088500.903 | C46: 496494.6804 | E46: 66720821 | F46: 339846 | G46: 7207490.65 | H46: 26415743.12 | I46: 403705.9926 | J46: 1450000 | K46: 562919 | M46: 575147.8263 | N46: 0.005560477675 | O46: 343238 | P46: 6905965.782 | Q46: 1250000 | R46: 8155965.782 | S46: 114759873
A47: North Dakota………………………………. | B47: 424042.6564 | C47: 110720.3996 | E47: 4933104 | F47: 0 | G47: 576409.8682 | H47: 5104764.584 | I47: 95202.08785 | J47: 0 | K47: 728325 | M47: 0 | N47: 0 | O47: 0 | P47: 466605 | Q47: 1250000 | R47: 1716605 | S47: 13689173.6
A48: Ohio………………………………………… | B48: 3440254.001 | C48: 714901.3424 | E48: 101850745 | F48: 551163 | G48: 9890032.119 | H48: 22744459.37 | I48: 379901.0901 | J48: 964000 | K48: 0 | M48: 22499154.76 | N48: 0.01159062761 | O48: 715468 | P48: 9852757.064 | Q48: 1250000 | R48: 11102757.06 | S48: 174852835.8
A49: Oklahoma…………………………………… | B49: 624174.8265 | C49: 162965.7515 | E49: 17682054 | F49: 0 | G49: 2889458.19 | H49: 14702029.52 | I49: 224188.9531 | J49: 0 | K49: 7799238 | M49: 0 | N49: 0 | O49: 0 | P49: 1837755.84 | Q49: 1250000 | R49: 3087755.84 | S49: 47171865.08
A50: Oregon………………………………………. | B50: 1105694.678 | C50: 227088.6058 | E50: 51885357 | F50: 721848 | G50: 3288130.544 | H50: 11926948.77 | I50: 177024.9911 | J50: 0 | K50: 756754 | M50: 17832339.28 | N50: 0.001475032056 | O50: 91051 | P50: 4698625.741 | Q50: 1250000 | R50: 5948625.741 | S50: 93960862.6
A51: Pennsylvania………………………………. | B51: 4132233.435 | C51: 851800.9637 | E51: 177810113 | F51: 1437912 | G51: 11836716.74 | H51: 21472389.76 | I51: 357985.6664 | J51: 4788000 | K51: 0 | M51: 149751346.6 | N51: 0.003767422157 | O51: 232556 | P51: 13444770.7 | Q51: 1250000 | R51: 14694770.7 | S51: 387365824.9
A52: Puerto Rico…………………………………. | B52: 1568389.035 | C52: 320696.432 | E52: 46496398 | F52: 302275 | G52: 5083875.084 | H52: 1928524.847 | I52: 90635.60394 | J52: 0 | K52: 0 | M52: 6418303.236 | N52: 0 | O52: 0 | P52: 4551525.606 | Q52: 500000 | R52: 5051525.606 | S52: 67260622.84
A53: Rhode Island……………………………… | B53: 508177.9462 | C53: 110720.3996 | E53: 27684887 | F53: 0 | G53: 963053.5727 | H53: 784471.8209 | I53: 71223.9101 | J53: 0 | K53: 0 | M53: 3719113.151 | N53: 0 | O53: 0 | P53: 1279128.918 | Q53: 1250000 | R53: 2529128.918 | S53: 36370776.72
A54: South Carolina……………………………… | B54: 948518.4577 | C54: 244798.5342 | E54: 24593600 | F54: 0 | G54: 3977784.403 | H54: 12779222.39 | I54: 225101.0818 | J54: 200000 | K54: 99433 | M54: 0 | N54: 0 | O54: 0 | P54: 2511592.253 | Q54: 1250000 | R54: 3761592.253 | S54: 46830050.12
A55: South Dakota………………………………. | B55: 424042.6564 | C55: 110720.3996 | E55: 3915469 | F55: 0 | G55: 644080.7519 | H55: 6380235.273 | I55: 108420.6521 | J55: 0 | K55: 2258062 | M55: 0 | N55: 0 | O55: 0 | P55: 409585 | Q55: 1250000 | R55: 1659585 | S55: 15500615.73
A56: Tennessee…………………………………. | B56: 1395131.813 | C56: 327408.4581 | E56: 49153039 | F56: 310293 | G56: 5359401.023 | H56: 18431785.57 | I56: 292360.104 | J56: 1110000 | K56: 0 | M56: 3727024.524 | N56: 0 | O56: 0 | P56: 4057730.341 | Q56: 1250000 | R56: 5307730.341 | S56: 85414173.84
A57: Texas………………………………………… | B57: 8973292.263 | C57: 1797808.075 | E57: 284502134 | F57: 915220 | G57: 18017114.49 | H57: 40878621 | I57: 553632.8782 | J57: 0 | K57: 0 | M57: 23152221.78 | N57: 0.12499482 | O57: 7715699 | P57: 27836668.98 | Q57: 1250000 | R57: 29086668.98 | S57: 415592412.6
A58: Utah…………………………………………. | B58: 976943.2142 | C58: 212860.3477 | E58: 48590733 | F58: 469576 | G58: 1695560.368 | H58: 6240878.109 | I58: 104452.8439 | J58: 0 | K58: 90855 | M58: 6816578.098 | N58: 0.01391979186 | O58: 859243 | P58: 3384990.587 | Q58: 1250000 | R58: 4634990.587 | S58: 70692670.58
A59: Vermont…………………………………… | B59: 424042.6564 | C59: 110720.3996 | E59: 2406753 | F59: 0 | G59: 452701.4516 | H59: 3460899.453 | I59: 104180.2761 | J59: 0 | K59: 0 | M59: 0 | N59: 0 | O59: 0 | P59: 161288 | Q59: 1250000 | R59: 1411288 | S59: 8370585.237
A60: Virgin Islands……………………………… | B60: 0 | C60: 0 | E60: 1069914 | F60: 0 | G60: 157088.1673 | H60: 0 | I60: 0 | J60: 0 | K60: 0 | M60: 0 | N60: 0 | O60: 0 | P60: 116781 | Q60: 500000 | R60: 616781 | S60: 1843783.167
A61: Virginia………………………………………. | B61: 2611116.536 | C61: 529820.8954 | E61: 123359294 | F61: 256294 | G61: 5881907.57 | H61: 14958748.7 | I61: 254508.2258 | J61: 1150000 | K61: 0 | M61: 324862.0427 | N61: 0.02110994741 | O61: 1303078 | P61: 9354598.248 | Q61: 1250000 | R61: 10604598.25 | S61: 161234228.2
A62: Washington………………………………… | B62: 2373326.413 | C62: 478342.0522 | E62: 140081640 | F62: 548124 | G62: 5724192.516 | H62: 12425770.3 | I62: 196439.6053 | J62: 0 | K62: 1840331 | M62: 41345430.81 | N62: 0.208169984 | O62: 12849948 | P62: 12655403.33 | Q62: 1250000 | R62: 13905403.33 | S62: 231768948.2
A63: West Virginia……………………………… | B63: 424042.6564 | C63: 110720.3996 | E63: 9341639 | F63: 238346 | G63: 2014422.385 | H63: 7683530.663 | I63: 161205.3513 | J63: 1892000 | K63: 0 | M63: 879295.4555 | N63: 0 | O63: 0 | P63: 829206.4206 | Q63: 1250000 | R63: 2079206.421 | S63: 24824408.33
A64: Wisconsin………………………………… | B64: 1371166.486 | C64: 301094.8799 | E64: 48672197 | F64: 282331 | G64: 4573688.669 | H64: 15514338.02 | I64: 262152.7788 | J64: 0 | K64: 1722709 | M64: 1248271.449 | N64: 0 | O64: 0 | P64: 5018837.641 | Q64: 1250000 | R64: 6268837.641 | S64: 80216786.92
A65: Wyoming…………………………………. | B65: 424043.6511 | C65: 110720.3996 | E65: 2031582 | F65: 0 | G65: 420082.3507 | H65: 6243093.9 | I65: 96939.70751 | J65: 0 | K65: 137045 | M65: 0 | N65: 0 | O65: 0 | P65: 224093 | Q65: 1250000 | R65: 1474093 | S65: 10937600.01
A66: Unallocated………………. | E66: 0 | S66: =SUM(B66:P66) -> 0
A67: Subtotal | B67: 106010643.2 | C67: 22145356.8 | E67: 4823914787 | F67: 22293250 | G67: 257008500 | H67: 617507088 | I67: 10332600 | J67: 20000000 | K67: 25000000 | M67: 2088390561 | O67: 61728150 | P67: 362300000 | Q67: 65500000 | R67: 427800000 | S67: =SUM(B67:Q67) -> 8482130936
A68: Oversight | B68: 532716.8 | C68: 111283.2 | E68: 33439875 | F68: 0 | G68: 1291500 | H68: 3039000 | I68: 0 | J68: 0 | K68: 0 | M68: 15781288.88 | O68: 0 | P68: 0 | Q68: 0 | R68: 0 | S68: =SUM(B68:P68) -> 54195663.88
B69: 0 | C69: 0 | E69: 0 | F69: 0 | G69: 0 | H69: 0 | I69: 0 | J69: 0 | K69: 0 | M69: 0 | O69: 0 | P69: 0 | Q69: 0 | R69: 0 | S69: =SUM(B69:P69) -> 0
A70: Subtotal | B70: =B67+B68+B69 -> 106543360 | C70: =C67+C68+C69 -> 22256640 | E70: 4857354662 | F70: 22293250 | G70: 258300000 | H70: 620546088 | I70: 10332600 | J70: 20000000 | K70: 25000000 | M70: 2104171850 | O70: 61728150 | P70: 362300000 | Q70: 65500000 | R70: 427800000 | S70: =SUM(B70:Q70) -> 8536326600
A71: Ferry discretionary Program | B71: 0 | C71: 0 | E71: 30000000 | F71: 0 | G71: 0 | H71: 0 | I71: 0 | J71: 0 | K71: 0 | M71: 0 | O71: 0 | P71: 0 | Q71: 0 | R71: 0 | S71: =SUM(B71:Q71) -> 30000000
A72: Tribal discretionary Program | B72: 0 | C72: 0 | E72: 0 | F72: 0 | G72: 0 | H72: 0 | I72: 0 | J72: 0 | K72: 5000000 | M72: 0 | O72: 0 | P72: 0 | Q72: 0 | R72: 0 | S72: =SUM(B72:Q72) -> 5000000
A73: National RTAP | B73: 0 | C73: 0 | E73: 0 | F73: 0 | G73: 0 | H73: 0 | I73: 1823400 | J73: 0 | K73: 0 | M73: 0 | O73: 0 | P73: 0 | Q73: 0 | R73: 0 | S73: =SUM(B73:Q73) -> 1823400
A74: Total | B74: 106543360 | C74: 22256640 | E74: 4887354662 | F74: 22293250 | G74: 258300000 | H74: 620546088 | I74: 12156000 | J74: 20000000 | K74: 30000000 | M74: 2104171850 | O74: 61728150 | P74: 362300000 | Q74: 65500000 | R74: 427800000 | S74: =SUM(B74:Q74) -> 8573150000
O75: 2165900000
E76: =E74+F74+H74+I74+J74+K74 -> 5592350000 | O76: 2165900000 | S76: =8595000000-S74 -> 21849999.94
A77: *Allocations for UZAs that are within multiple-states are split between the applicable states. | E77: =4458650000+607800000+525900000 -> 5592350000 | P77: check | Q77: 65500000
E78: =E77-E76 -> -0.06439971924

Sheet FY 16
A1: FEDERAL TRANSIT ADMINISTRATION
A3: FISCAL YEAR 2016 ESTIMATED APPORTIONMENTS/ALLOCATIONS BY STATE FOR SELECTED FTA PROGRAMS
C5: The information in this table include allocations for formula programs apportioned via FTA's Apportionment Notice Published on March 10, 2014 as well as Discretionary Program allocations announced in Federal Register Announcements in 2014. For allocations under the Public Transportation Emergency Relief Program, Please Contact the FTA Office of Program Management at 202-366-4020
C6: Section 5303 | E6: Section 5304 | G6: Section 5307 + 5340 | I6: Section 5329 (e) | K6: Section 5310 | M6: Section 5311 + 5340 | O6: Section 5311(b)(3) | Q6: Section 5311(c)(2) | S6: Section 5311(c)(1)
B8: Metropolitan Planning | C8: Metropolitan | D8: Statewide Planning | E8: Statewide | F8: Urban | G8: Urbanized Area | H8: SSO | I8: State Safety | J8: 5310 | K8: Enhanced Mobility for | L8: 5311 | M8: Nonurbanized Area | N8: RTAP | P8: App | Q8: Appalachian Dev. Public | R8: Indian | S8: Indian Reserv. | T8: SGR | U8: High Intensity | V8: HIMB | W8: High Intensity | X8: 5339 | Y8: Bus and Bus | Z8: Statewide
A9: State | B9: Percentage | C9: Planning | D9: Percentage | E9: Planning | F9: Percentage | G9: Formula | H9: Percentqage | I9: Oversight Program | J9: Percentage | K9: Older Adults and People with Disabilities | L9: Percentage | M9: Formula | N9: Percentage | O9: RTAP | P9: Percentage | Q9: Trans. Assist. Program | R9: Percentage | S9: Formula | T9: Percentage | U9: Fixed Guideway | V9: Percentage | W9: MotorBus | X9: Percentage | Y9: Facilities Formula | Z9: Allocation | AA9: 5339 Total | AB9: State Total
A10: Alabama…………………………………… | B10: 0.007971166334 | C10: =B10*C$67 -> 857703.8972 | D10: 0.009962715709 | E10: =D10*E$67 -> 223937.3125 | F10: 0.004830516366 | G10: =F10*G$67 -> 23722019.96 | H10: 0 | I10: =H10*I$67 -> 0 | J10: 0.01631521576 | K10: =J10*K$67 -> 4268625.813 | L10: 0.02486553856 | M10: =L10*M$67 -> 15591233.06 | N10: 0.0249182639 | O10: =N10*O$67 -> 262619.8626 | P10: 0.25 | Q10: =P10*Q$67 -> 5000000 | R10: 7.44e-06 | S10: =R10*S$67 -> 223.2 | T10: 0 | U10: =T10*U$67 -> 0 | V10: 0 | W10: =V10*W$67 -> 0 | X10: 0.006682205509 | Y10: =X10*Y$67 -> 2219036.829 | Z10: 1750000 | AA10: =SUM(Y10+Z10) -> 3969036.829 | AB10: =SUM(C10+E10+G10+I10+K10+M10+O10+Q10+S10+U10+W10+AA10) -> 53895399.93
A11: Alaska………………………………………. | B11: 0.004000000788 | C11: =B11*C$67 -> 430403.2962 | D11: 0.004999711707 | E11: 112381.2056 | F11: 0.003376032773 | G11: =F11*G$67 -> 16579245.53 | H11: 0 | I11: =H11*I$67 -> 0 | J11: 0.001491093777 | K11: =J11*K$67 -> 390121.8029 | L11: 0.01310523456 | M11: =L11*M$67 -> 8217266.872 | N11: 0.009144419019 | O11: =N11*O$67 -> 96375.33643 | P11: 0 | Q11: =P11*Q$67 -> 0 | R11: 0.01486264 | S11: =R11*S$67 -> 445879.2 | T11: 0.009551267246 | U11: =T11*U$67 -> 23023143.45 | V11: 0 | W11: =V11*W$67 -> 0 | X11: 0.001748402086 | Y11: =X11*Y$67 -> 580611.9873 | Z11: 1750000 | AA11: =SUM(Y11+Z11) -> 2330611.987 | AB11: 51625428.67
A12: American Samoa……………………………. | B12: 0 | C12: 0 | D12: 0 | E12: 0 | G12: =F12*G$67 -> 0 | H12: 0 | I12: =H12*I$67 -> 0 | J12: 4.635198678e-05 | K12: =J12*K$67 -> 12127.28598 | L12: 0.0004854920731 | M12: =L12*M$67 -> 304414.0806 | N12: 0.001367206618 | O12: =N12*O$67 -> 14409.33509 | P12: 0 | Q12: =P12*Q$67 -> 0 | R12: 0 | S12: =R12*S$67 -> 0 | T12: 0 | U12: =T12*U$67 -> 0 | V12: 0 | W12: =V12*W$67 -> 0 | X12: 0 | Y12: =X12*Y$67 -> 0 | Z12: 500000 | AA12: 500000 | AB12: 830950.7016
A13: Arizona………………………………………. | B13: 0.02296302448 | C13: 2470839.87 | D13: 0.02192702709 | E13: 492865.566 | F13: 0.01535455012 | G13: =F13*G$67 -> 75404142.53 | H13: 0.01924905521 | I13: =H13*I$67 -> 436848.232 | J13: 0.02164952 | K13: =J13*K$67 -> 5664264.654 | L13: 0.01877265824 | M13: =L13*M$67 -> 11770864.69 | N13: 0.0158810583 | O13: =N13*O$67 -> 167374.4755 | P13: 0 | Q13: =P13*Q$67 -> 0 | R13: 0.06155668 | S13: =R13*S$67 -> 1846700.4 | T13: 0.000163793874 | U13: =T13*U$67 -> 394821.9393 | V13: 0.03591739399 | W13: =V13*W$67 -> 2566279.842 | X13: 0.0209724611 | Y13: =X13*Y$67 -> 6964566.342 | Z13: 1750000 | AA13: 8714566.342 | AB13: 109929568.5
A14: Arkansas……………………………………. | B14: 0.004012067863 | C14: 431701.7232 | D14: 0.005057894075 | E14: 113689.002 | F14: 0.002599263491 | G14: =F14*G$67 -> 12764635.45 | H14: 0.01010808204 | I14: =H14*I$67 -> 229398.156 | J14: 0.009648577367 | K14: =J14*K$67 -> 2524402.191 | L14: 0.01934206344 | M14: =L14*M$67 -> 12127894.12 | N14: 0.01962438938 | O14: =N14*O$67 -> 206826.385 | P14: 0 | Q14: =P14*Q$67 -> 0 | R14: 0 | S14: =R14*S$67 -> 0 | T14: 0.0001319452713 | U14: =T14*U$67 -> 318051.5036 | V14: 0 | W14: =V14*W$67 -> 0 | X14: 0.003565206949 | Y14: =X14*Y$67 -> 1183939.271 | Z14: 1750000 | AA14: 2933939.271 | AB14: 31650537.8
A15: California………………………………… | B15: 0.1499952909 | C15: 16139613.73 | D15: 0.1432202417 | E15: 3219238.305 | F15: 0.1603022095 | G15: =F15*G$67 -> 787222716 | H15: 0.1274520314 | I15: =H15*I$67 -> 2892463.76 | J15: 0.1103755967 | K15: =J15*K$67 -> 28878080.93 | L15: 0.04451564785 | M15: =L15*M$67 -> 27912278.62 | N15: 0.03542291784 | O15: =N15*O$67 -> 373331.0577 | P15: 0 | Q15: =P15*Q$67 -> 0 | R15: 0.0212738 | S15: =R15*S$67 -> 638214 | T15: 0.154026701 | U15: =T15*U$67 -> 371278359.1 | V15: 0.2394678438 | W15: =V15*W$67 -> 17109857.71 | X15: 0.1808413205 | Y15: =X15*Y$67 -> 60054056.97 | Z15: 1750000 | AA15: 61804056.97 | AB15: 1317468210
A16: Colorado……………………………………. | B16: 0.01679617675 | C16: 1807282.103 | D16: 0.01656154776 | E16: 372262.805 | F16: 0.01513891917 | G16: =F16*G$67 -> 74345207.73 | H16: 0.02364576722 | I16: =H16*I$67 -> 536629.538 | J16: 0.01445304974 | K16: =J16*K$67 -> 3781418.654 | L16: 0.01779622779 | M16: =L16*M$67 -> 11158621.58 | N16: 0.01503484483 | O16: =N16*O$67 -> 158456.0185 | P16: 0 | Q16: =P16*Q$67 -> 0 | R16: 0.00609984 | S16: =R16*S$67 -> 182995.2 | T16: 0.005758380688 | U16: =T16*U$67 -> 13880464.36 | V16: 0.00587978619 | W16: =V16*W$67 -> 420107.7834 | X16: 0.01874620298 | Y16: =X16*Y$67 -> 6225267.205 | Z16: 1750000 | AA16: 7975267.205 | AB16: 114618713
A17: Connecticut……………………………… | B17: 0.01039382401 | C17: 1118383.808 | D17: 0.01299046852 | E17: 291993.7389 | F17: 0.01936079208 | G17: =F17*G$67 -> 95078261.1 | H17: 0 | I17: =H17*I$67 -> 0 | J17: 0.01225706319 | K17: =J17*K$67 -> 3206872.475 | L17: 0.004753373426 | M17: =L17*M$67 -> 2980468.439 | N17: 0.01027496473 | O17: =N17*O$67 -> 108290.4426 | P17: 0 | Q17: =P17*Q$67 -> 0 | R17: 0 | S17: =R17*S$67 -> 0 | T17: 0.02381332166 | U17: =T17*U$67 -> 57401547.5 | V17: 0.01362787676 | W17: =V17*W$67 -> 973704.9804 | X17: 0.01155847235 | Y17: =X17*Y$67 -> 3838354.836 | Z17: 1750000 | AA17: 5588354.836 | AB17: 166747877.3
A18: Delaware……………………………………. | B18: 0.004000000788 | C18: 430403.2962 | D18: 0.004999711707 | E18: 112381.2056 | F18: 0.003980008125 | G18: =F18*G$67 -> 19545287.72 | H18: 0 | I18: =H18*I$67 -> 0 | J18: 0.003156320168 | K18: =J18*K$67 -> 825802.732 | L18: 0.002713040228 | M18: =L18*M$67 -> 1701135.183 | N18: 0.008275123576 | O18: =N18*O$67 -> 87213.6127 | P18: 0 | Q18: =P18*Q$67 -> 0 | R18: 0 | S18: =R18*S$67 -> 0 | T18: 0 | U18: =T18*U$67 -> 0 | V18: 0 | W18: =V18*W$67 -> 0 | X18: 0.002580878463 | Y18: =X18*Y$67 -> 857061.9913 | Z18: 1750000 | AA18: 2607061.991 | AB18: 25309285.74
A19: District of Columbia………………………. | B19: 0.004000000788 | C19: 430403.2962 | D19: 0.004999711707 | E19: 112381.2056 | F19: 0.00422924006 | G19: =F19*G$67 -> 20769232.42 | H19: 0.08022275801 | I19: =H19*I$67 -> 1820617.668 | J19: 0.00144302505 | K19: =J19*K$67 -> 377545.3582 | L19: 0 | M19: =L19*M$67 -> 0 | N19: 0 | O19: =N19*O$67 -> 0 | P19: 0 | Q19: =P19*Q$67 -> 0 | R19: 0 | S19: =R19*S$67 -> 0 | T19: 0.07014426217 | U19: =T19*U$67 -> 169081376.2 | V19: 0.0766135825 | W19: =V19*W$67 -> 5474002.163 | X19: 0.003529031997 | Y19: =X19*Y$67 -> 1171926.239 | Z19: 500000 | AA19: 1671926.239 | AB19: 199737484.5
A20: Florida………………………………………. | B20: 0.07206520079 | C20: 7754273.462 | D20: 0.07043658731 | E20: 1583241.008 | F20: 0.05197891304 | G20: =F20*G$67 -> 255261491.6 | H20: 0.03410368609 | I20: =H20*I$67 -> 773967.076 | J20: 0.0797727053 | K20: =J20*K$67 -> 20871304.07 | L20: 0.02529910643 | M20: =L20*M$67 -> 15863089.54 | N20: 0.02420573746 | O20: =N20*O$67 -> 255110.367 | P20: 0 | Q20: =P20*Q$67 -> 0 | R20: 0 | S20: =R20*S$67 -> 0 | T20: 0.01782058362 | U20: =T20*U$67 -> 42956169.33 | V20: 0.02226598741 | W20: =V20*W$67 -> 1590893.668 | X20: 0.06676305109 | Y20: =X20*Y$67 -> 22170774.15 | Z20: 1750000 | AA20: 23920774.15 | AB20: 370830314.3
A21: Georgia……………………………………… | B21: 0.02845664015 | C21: 3061957.327 | D21: 0.02713904115 | E21: 610018.8057 | F21: 0.01848188281 | G21: =F21*G$67 -> 90762055.21 | H21: 0.03788671459 | I21: =H21*I$67 -> 859821.124 | J21: 0.0264952058 | K21: =J21*K$67 -> 6932063.975 | L21: 0.03418615713 | M21: =L21*M$67 -> 21435463.46 | N21: 0.03180187412 | O21: =N21*O$67 -> 335167.9655 | P21: 0.0296 | Q21: =P21*Q$67 -> 592000 | R21: 0 | S21: =R21*S$67 -> 0 | T21: 0.01903536017 | U21: =T21*U$67 -> 45884364.5 | V21: 0.05226137704 | W21: =V21*W$67 -> 3734049.259 | X21: 0.02124507764 | Y21: =X21*Y$67 -> 7055097.251 | Z21: 1750000 | AA21: 8805097.251 | AB21: 183012058.9
A22: Guam………………………………………… | B22: 0 | C22: 0 | D22: 0 | E22: 0 | G22: =F22*G$67 -> 0 | H22: 0 | I22: =H22*I$67 -> 0 | J22: 0.0001754881403 | K22: =J22*K$67 -> 45913.7787 | L22: 0.001272349871 | M22: =L22*M$67 -> 797791.0199 | N22: 0.002162357105 | O22: =N22*O$67 -> 22789.62644 | P22: 0 | Q22: =P22*Q$67 -> 0 | R22: 0 | S22: =R22*S$67 -> 0 | T22: 0 | U22: =T22*U$67 -> 0 | V22: 0 | W22: =V22*W$67 -> 0 | X22: 0 | Y22: =X22*Y$67 -> 0 | Z22: 500000 | AA22: 500000 | AB22: 1366494.425
A23: Hawaii………………………………………. | B23: 0.004000000788 | C23: 430403.2962 | D23: 0.004999711707 | E23: 112381.2056 | F23: 0.006294097943 | G23: =F23*G$67 -> 30909473.39 | H23: 0.009674363316 | I23: =H23*I$67 -> 219555.114 | J23: 0.004395293938 | K23: =J23*K$67 -> 1149961.204 | L23: 0.004336002151 | M23: =L23*M$67 -> 2718767.579 | N23: 0.00909655925 | O23: =N23*O$67 -> 95870.93027 | P23: 0 | Q23: =P23*Q$67 -> 0 | R23: 0 | S23: =R23*S$67 -> 0 | T23: 0.0001238573054 | U23: =T23*U$67 -> 298555.6195 | V23: 0.01470165912 | W23: =V23*W$67 -> 1050426.193 | X23: 0.01036615936 | Y23: =X23*Y$67 -> 3442409.748 | Z23: 1750000 | AA23: 5192409.748 | AB23: 42177804.28
A24: Idaho…………………………………………. | B24: 0.004000000788 | C24: 430403.2962 | D24: 0.004999711707 | E24: 112381.2056 | F24: 0.002115209013 | G24: =F24*G$67 -> 10387508.63 | H24: 0 | I24: =H24*I$67 -> 0 | J24: 0.005271798589 | K24: =J24*K$67 -> 1379285.195 | L24: 0.01238669807 | M24: =L24*M$67 -> 7766728.882 | N24: 0.01206395912 | O24: =N24*O$67 -> 127145.1052 | P24: 0 | Q24: =P24*Q$67 -> 0 | R24: 0.04141664 | S24: =R24*S$67 -> 1242499.2 | T24: 0 | U24: =T24*U$67 -> 0 | V24: 0 | W24: =V24*W$67 -> 0 | X24: 0.003019350304 | Y24: =X24*Y$67 -> 1002670.378 | Z24: 1750000 | AA24: 2752670.378 | AB24: 24198621.89
A25: Illinois……………………………………… | B25: 0.04770455379 | C25: 5133048.287 | D25: 0.04396164573 | E25: 988149.5251 | F25: 0.05527206441 | G25: =F25*G$67 -> 271433717.6 | H25: 0.0770149709 | I25: =H25*I$67 -> 1747818.452 | J25: 0.03788746303 | K25: =J25*K$67 -> 9912673.243 | L25: 0.02607866962 | M25: =L25*M$67 -> 16351892.59 | N25: 0.02580291592 | O25: =N25*O$67 -> 271943.4332 | P25: 0 | Q25: =P25*Q$67 -> 0 | R25: 0 | S25: =R25*S$67 -> 0 | T25: 0.104631839 | U25: =T25*U$67 -> 252213007.5 | V25: 0 | W25: =V25*W$67 -> 0 | X25: 0.04406262923 | Y25: =X25*Y$67 -> 14632384.01 | Z25: 1750000 | AA25: 16382384.01 | AB25: 574434634.7
A26: Indiana……………………………………… | B26: 0.01626858471 | C26: 1750512.777 | D26: 0.01643776291 | E26: 369480.4266 | F26: 0.01157736201 | G26: =F26*G$67 -> 56854876.76 | H26: 0 | I26: =H26*I$67 -> 0 | J26: 0.02057800609 | K26: =J26*K$67 -> 5383919.483 | L26: 0.02570824681 | M26: =L26*M$67 -> 16119629.44 | N26: 0.02639456818 | O26: =N26*O$67 -> 278179.0055 | P26: 0 | Q26: =P26*Q$67 -> 0 | R26: 0 | S26: =R26*S$67 -> 0 | T26: 0.001106916121 | U26: =T26*U$67 -> 2668199.726 | V26: 0 | W26: =V26*W$67 -> 0 | X26: 0.01306697334 | Y26: =X26*Y$67 -> 4339300.108 | Z26: 1750000 | AA26: 6089300.108 | AB26: 89514097.73
A27: Iowa…………………………………………. | B27: 0.004350021032 | C27: 468065.7554 | D27: 0.005436843301 | E27: 122206.8473 | F27: 0.004170182332 | G27: =F27*G$67 -> 20479207.82 | H27: 0 | I27: =H27*I$67 -> 0 | J27: 0.009289615525 | K27: =J27*K$67 -> 2430485.334 | L27: 0.01965541976 | M27: =L27*M$67 -> 12324375.34 | N27: 0.0197339581 | O27: =N27*O$67 -> 207981.1574 | P27: 0 | Q27: =P27*Q$67 -> 0 | R27: 0 | S27: =R27*S$67 -> 0 | T27: 0 | U27: =T27*U$67 -> 0 | V27: 0 | W27: =V27*W$67 -> 0 | X27: 0.005530684206 | Y27: =X27*Y$67 -> 1836637.907 | Z27: 1750000 | AA27: 3586637.907 | AB27: 39618960.16
A28: Kansas………………………………………. | B28: 0.00589772193 | C28: 634599.6147 | D28: 0.006132892981 | E28: 137852.3298 | F28: 0.003655948436 | G28: =F28*G$67 -> 17953873.91 | H28: 0 | I28: =H28*I$67 -> 0 | J28: 0.008196292795 | K28: =J28*K$67 -> 2144434.221 | L28: 0.01770502652 | M28: =L28*M$67 -> 11101436.39 | N28: 0.01701019083 | O28: =N28*O$67 -> 179274.6878 | P28: 0 | Q28: =P28*Q$67 -> 0 | R28: 0.00358388 | S28: =R28*S$67 -> 107516.4 | T28: 0 | U28: =T28*U$67 -> 0 | V28: 0 | W28: =V28*W$67 -> 0 | X28: 0.004932716583 | Y28: =X28*Y$67 -> 1638063.922 | Z28: 1750000 | AA28: 3388063.922 | AB28: 35647051.48
A29: Kentucky…………………………………… | B29: 0.006586689984 | C29: 708733.1304 | D29: 0.007620057003 | E29: 171280.1144 | F29: 0.005130078417 | G29: =F29*G$67 -> 25193129.14 | H29: 0 | I29: =H29*I$67 -> 0 | J29: 0.01327687682 | K29: =J29*K$67 -> 3473691.059 | L29: 0.02693413172 | M29: =L29*M$67 -> 16888285.92 | N29: 0.02573310472 | O29: =N29*O$67 -> 271207.6754 | P29: 0.0882 | Q29: =P29*Q$67 -> 1764000 | R29: 0 | S29: =R29*S$67 -> 0 | T29: 0 | U29: =T29*U$67 -> 0 | V29: 0 | W29: =V29*W$67 -> 0 | X29: 0.007234698109 | Y29: =X29*Y$67 -> 2402509.4 | Z29: 1750000 | AA29: 4152509.4 | AB29: 52622836.44
A30: Louisiana……………………………………. | B30: 0.009531262728 | C30: 1025571.522 | D30: 0.01191258887 | E30: 267765.6589 | F30: 0.00703794138 | G30: =F30*G$67 -> 34562389.04 | H30: 0.01296410348 | I30: =H30*I$67 -> 294214.216 | J30: 0.01566300206 | K30: =J30*K$67 -> 4097984.108 | L30: 0.01841591101 | M30: =L30*M$67 -> 11547176.42 | N30: 0.01954694699 | O30: =N30*O$67 -> 206010.2002 | P30: 0 | Q30: =P30*Q$67 -> 0 | R30: 0 | S30: =R30*S$67 -> 0 | T30: 0.001657168917 | U30: =T30*U$67 -> 3994573.36 | V30: 0.00634620524 | W30: =V30*W$67 -> 453433.1913 | X30: 0.0095044024 | Y30: =X30*Y$67 -> 3156236.205 | Z30: 1750000 | AA30: 4906236.205 | AB30: 61355353.93
A31: Maine………………………………………… | B31: 0.004000000788 | C31: 430403.2962 | D31: 0.004999711707 | E31: 112381.2056 | F31: 0.002706324777 | G31: =F31*G$67 -> 13290399.11 | H31: 0 | I31: =H31*I$67 -> 0 | J31: 0.004267874525 | K31: =J31*K$67 -> 1116623.87 | L31: 0.01107464745 | M31: =L31*M$67 -> 6944044.63 | N31: 0.01362976493 | O31: =N31*O$67 -> 143647.5273 | P31: 0 | Q31: =P31*Q$67 -> 0 | R31: 0.00209244 | S31: =R31*S$67 -> 62773.2 | T31: 0.003293485409 | U31: =T31*U$67 -> 7938882.355 | V31: 0 | W31: =V31*W$67 -> 0 | X31: 0.001306281335 | Y31: =X31*Y$67 -> 433791.8651 | Z31: 1750000 | AA31: 2183791.865 | AB31: 32222947.06
A32: Maryland……………………………………. | B32: 0.02250815393 | C32: 2421895.434 | D32: 0.02066347017 | E32: 464463.9185 | F32: 0.03186177377 | G32: =F32*G$67 -> 156468910.6 | H32: 0.02726192906 | I32: =H32*I$67 -> 618696.626 | J32: 0.01750911927 | K32: =J32*K$67 -> 4580992.344 | L32: 0.008915532193 | M32: =L32*M$67 -> 5590232.438 | N32: 0.01340356158 | O32: =N32*O$67 -> 141263.5132 | P32: 0.0318 | Q32: =P32*Q$67 -> 636000 | R32: 0 | S32: =R32*S$67 -> 0 | T32: 0.02482051546 | U32: =T32*U$67 -> 59829368.52 | V32: 0 | W32: =V32*W$67 -> 0 | X32: 0.02295667356 | Y32: =X32*Y$67 -> 7623486.591 | Z32: 1750000 | AA32: 9373486.591 | AB32: 240125310
A33: Massachusetts……………………………. | B33: 0.02676146946 | C33: 2879555.599 | D33: 0.02533285618 | E33: 569420.2159 | F33: 0.04008168356 | G33: =F33*G$67 -> 196835788.5 | H33: 0.05152604488 | I33: =H33*I$67 -> 1169359.294 | J33: 0.0226064318 | K33: =J33*K$67 -> 5914625.939 | L33: 0.005895471338 | M33: =L33*M$67 -> 3696588.65 | N33: 0.01098570114 | O33: =N33*O$67 -> 115781.0727 | P33: 0 | Q33: =P33*Q$67 -> 0 | R33: 0 | S33: =R33*S$67 -> 0 | T33: 0.05766606083 | U33: =T33*U$67 -> 139002915.1 | V33: 0.0007119252628 | W33: =V33*W$67 -> 50866.70406 | X33: 0.02332246484 | Y33: =X33*Y$67 -> 7744959.108 | Z33: 1750000 | AA33: 9494959.108 | AB33: 359729860.2
A34: Michigan……………………………………. | B34: 0.02806427254 | C34: 3019738.257 | D34: 0.02810688498 | E34: 631773.5514 | F34: 0.01790672782 | G34: =F34*G$67 -> 87937545.94 | H34: 0.01304973479 | I34: =H34*I$67 -> 296157.578 | J34: 0.03407517331 | K34: =J34*K$67 -> 8915246.144 | L34: 0.03338673791 | M34: =L34*M$67 -> 20934210.23 | N34: 0.03157293862 | O34: =N34*O$67 -> 332755.1565 | P34: 0 | Q34: =P34*Q$67 -> 0 | R34: 0.0014982 | S34: =R34*S$67 -> 44946 | T34: 0.0005126279629 | U34: =T34*U$67 -> 1235679.708 | V34: 0 | W34: =V34*W$67 -> 0 | X34: 0.0258222891 | Y34: =X34*Y$67 -> 8575104.498 | Z34: 1750000 | AA34: 10325104.5 | AB34: 133673157.1
A35: Minnesota…………………………………. | B35: 0.01450272874 | C35: 1560505.256 | D35: 0.01317920113 | E35: 296235.9829 | F35: 0.01241161357 | G35: =F35*G$67 -> 60951774.62 | H35: 0.01412113532 | I35: =H35*I$67 -> 320472.508 | J35: 0.01422662258 | K35: =J35*K$67 -> 3722177.461 | L35: 0.02494488507 | M35: =L35*M$67 -> 15640985.05 | N35: 0.02318362992 | O35: =N35*O$67 -> 244338.118 | P35: 0 | Q35: =P35*Q$67 -> 0 | R35: 0.06497376 | S35: =R35*S$67 -> 1949212.8 | T35: 0.002988328432 | U35: =T35*U$67 -> 7203307.413 | V35: 0.1096095253 | W35: =V35*W$67 -> 7831545.778 | X35: 0.01476922899 | Y35: =X35*Y$67 -> 4904587.718 | Z35: 1750000 | AA35: 6654587.718 | AB35: 106375142.7
A36: Mississippi…………………………………. | B36: 0.004000000788 | C36: 430403.2962 | D36: 0.004999711707 | E36: 112381.2056 | F36: 0.001737980333 | G36: =F36*G$67 -> 8534989.021 | H36: 0 | I36: =H36*I$67 -> 0 | J36: 0.008044116589 | K36: =J36*K$67 -> 2104619.652 | L36: 0.02259996171 | M36: =L36*M$67 -> 14170667.14 | N36: 0.02257012045 | O36: =N36*O$67 -> 237872.1871 | P36: 0.0127 | Q36: =P36*Q$67 -> 254000 | R36: 0.03018832 | S36: =R36*S$67 -> 905649.6 | T36: 0 | U36: =T36*U$67 -> 0 | V36: 0 | W36: =V36*W$67 -> 0 | X36: 0.002261756835 | Y36: =X36*Y$67 -> 751087.6024 | Z36: 1750000 | AA36: 2501087.602 | AB36: 29251669.7
A37: Missouri……………………………………. | B37: 0.01555399055 | C37: 1673621.87 | D37: 0.01452464111 | E37: 326478.1601 | F37: 0.01002809602 | G37: =F37*G$67 -> 49246638.63 | H37: 0.03017316901 | I37: =H37*I$67 -> 684765.844 | J37: 0.01891439157 | K37: =J37*K$67 -> 4948660.275 | L37: 0.02828471879 | M37: =L37*M$67 -> 17735133.37 | N37: 0.02602431446 | O37: =N37*O$67 -> 274276.8082 | P37: 0 | Q37: =P37*Q$67 -> 0 | R37: 0 | S37: =R37*S$67 -> 0 | T37: 0.007125340215 | U37: =T37*U$67 -> 17175493.64 | V37: 0.0004136178801 | W37: =V37*W$67 -> 29552.79072 | X37: 0.01248070993 | Y37: =X37*Y$67 -> 4144612.876 | Z37: 1750000 | AA37: 5894612.876 | AB37: 97989234.27
A38: Montana…………………………………… | B38: 0.004000000788 | C38: 430403.2962 | D38: 0.004999711707 | E38: 112381.2056 | F38: 0.0009192778622 | G38: =F38*G$67 -> 4514450.661 | H38: 0 | I38: =H38*I$67 -> 0 | J38: 0.003248651275 | K38: =J38*K$67 -> 849959.7491 | L38: 0.0161071082 | M38: =L38*M$67 -> 10099506.88 | N38: 0.01169285749 | O38: =N38*O$67 -> 123233.9716 | P38: 0 | Q38: =P38*Q$67 -> 0 | R38: 0.06420504 | S38: =R38*S$67 -> 1926151.2 | T38: 0 | U38: =T38*U$67 -> 0 | V38: 0 | W38: =V38*W$67 -> 0 | X38: 0.001153552305 | Y38: =X38*Y$67 -> 383073.3797 | Z38: 1750000 | AA38: 2133073.38 | AB38: 20189160.34
A39: N. Mariana Islands…………………………. | B39: 0 | C39: 0 | D39: 0 | E39: 0 | G39: =F39*G$67 -> 0 | H39: 0 | I39: =H39*I$67 -> 0 | J39: 3.662638138e-05 | K39: =J39*K$67 -> 9582.730582 | L39: 0.0004673274972 | M39: =L39*M$67 -> 293024.4967 | N39: 0.001354770616 | O39: =N39*O$67 -> 14278.26892 | P39: 0 | Q39: =P39*Q$67 -> 0 | R39: 0 | S39: =R39*S$67 -> 0 | T39: 0 | U39: =T39*U$67 -> 0 | V39: 0 | W39: =V39*W$67 -> 0 | X39: 0 | Y39: =X39*Y$67 -> 0 | Z39: 500000 | AA39: 500000 | AB39: 816885.4962
A40: Nebraska……………………………………. | B40: 0.004000000788 | C40: 430403.2962 | D40: 0.004999711707 | E40: 112381.2056 | F40: 0.002309978549 | G40: =F40*G$67 -> 11343995.78 | H40: 0 | I40: =H40*I$67 -> 0 | J40: 0.004774833359 | K40: =J40*K$67 -> 1249261.869 | L40: 0.01234123408 | M40: =L40*M$67 -> 7738221.969 | N40: 0.01258768442 | O40: =N40*O$67 -> 132664.7782 | P40: 0 | Q40: =P40*Q$67 -> 0 | R40: 0.01868076 | S40: =R40*S$67 -> 560422.8 | T40: 0 | U40: =T40*U$67 -> 0 | V40: 0 | W40: =V40*W$67 -> 0 | X40: 0.003370902981 | Y40: =X40*Y$67 -> 1119414.518 | Z40: 1750000 | AA40: 2869414.518 | AB40: 24436766.21
A41: Nevada………………………………………. | B41: 0.01082489821 | C41: 1164767.738 | D41: 0.01000950603 | E41: 224989.0437 | F41: 0.008282552498 | G41: =F41*G$67 -> 40674507.82 | H41: 0 | I41: =H41*I$67 -> 0 | J41: 0.008020575497 | K41: =J41*K$67 -> 2098460.487 | L41: 0.01039093463 | M41: =L41*M$67 -> 6515341.83 | N41: 0.008913599268 | O41: =N41*O$67 -> 93942.66892 | P41: 0 | Q41: =P41*Q$67 -> 0 | R41: 0.00338348 | S41: =R41*S$67 -> 101504.4 | T41: 0.0009858635436 | U41: =T41*U$67 -> 2376404.848 | V41: 0 | W41: =V41*W$67 -> 0 | X41: 0.01074640236 | Y41: =X41*Y$67 -> 3568681.414 | Z41: 1750000 | AA41: 5318681.414 | AB41: 58568600.25
A42: New Hampshire……………………………. | B42: 0.004000000788 | C42: 430403.2962 | D42: 0.004999711707 | E42: =D42*E$67 -> 112381.2056 | F42: 0.001665962051 | G42: =F42*G$67 -> 8181316.871 | H42: 0 | I42: =H42*I$67 -> 0 | J42: 0.004287477213 | K42: =J42*K$67 -> 1121752.613 | L42: 0.006339084466 | M42: =L42*M$67 -> 3974743.722 | N42: 0.01143264355 | O42: =N42*O$67 -> 120491.5114 | P42: 0 | Q42: =P42*Q$67 -> 0 | R42: 0 | S42: =R42*S$67 -> 0 | T42: 0 | U42: =T42*U$67 -> 0 | V42: 0 | W42: =V42*W$67 -> 0 | X42: 0.001980271738 | Y42: =X42*Y$67 -> 657611.6093 | Z42: 1750000 | AA42: 2407611.609 | AB42: =SUM(C42+E42+G42+I42+K42+M42+O42+Q42+S42+U42+W42+AA42) -> 16348700.83
A43: New Jersey…………………………………. | B43: 0.03871707888 | C43: 4165988.771 | D43: 0.03474674586 | E43: 781021.2709 | F43: 0.08060771721 | G43: =F43*G$67 -> 395853720.8 | H43: 0.04043515414 | I43: =H43*I$67 -> 917656.758 | J43: 0.02776177558 | K43: =J43*K$67 -> 7263442.521 | L43: 0.00613516515 | M43: =L43*M$67 -> 3846881.879 | N43: 0.01134596838 | O43: =N43*O$67 -> 119578.0199 | P43: 0 | Q43: =P43*Q$67 -> 0 | R43: 0 | S43: =R43*S$67 -> 0 | T43: 0.0706308469 | U43: =T43*U$67 -> 170254279.1 | V43: 0 | W43: =V43*W$67 -> 0 | X43: 0.04593402945 | Y43: =X43*Y$67 -> 15253841.4 | Z43: 1750000 | AA43: 17003841.4 | AB43: 600206410.6
A44: New Mexico………………………………… | B44: 0.004000000788 | C44: 430403.2962 | D44: 0.004999711707 | E44: 112381.2056 | F44: 0.004931640562 | G44: =F44*G$67 -> 24218627.37 | H44: 0 | I44: =H44*I$67 -> 0 | J44: 0.006686221659 | K44: =J44*K$67 -> 1749347.284 | L44: 0.01664801735 | M44: =L44*M$67 -> 10438668.67 | N44: 0.01341712813 | O44: =N44*O$67 -> 141406.4944 | P44: 0 | Q44: =P44*Q$67 -> 0 | R44: 0.024074 | S44: =R44*S$67 -> 722220 | T44: 0.001814595314 | U44: =T44*U$67 -> 4374046.62 | V44: 0 | W44: =V44*W$67 -> 0 | X44: 0.004643567055 | Y44: =X44*Y$67 -> 1542042.713 | Z44: 1750000 | AA44: 3292042.713 | AB44: 45479143.66
A45: New York……………………………………. | B45: 0.07311576822 | C45: 7867315.362 | D45: 0.06862944209 | E45: 1542620.834 | F45: 0.1338707407 | G45: =F45*G$67 -> 657421307.2 | H45: 0.1052297893 | I45: =H45*I$67 -> 2388140.452 | J45: 0.06097806219 | K45: =J45*K$67 -> 15953974.14 | L45: 0.03316471385 | M45: =L45*M$67 -> 20794996.32 | N45: 0.03185218341 | O45: =N45*O$67 -> 335698.1877 | P45: 0.01 | Q45: =P45*Q$67 -> 200000 | R45: 0.00227624 | S45: =R45*S$67 -> 68287.2 | T45: 0.2894780333 | U45: =T45*U$67 -> 697781154.4 | V45: 0.112080818 | W45: =V45*W$67 -> 8008118.406 | X45: 0.09079598492 | Y45: =X45*Y$67 -> 30151666.87 | Z45: 1750000 | AA45: 31901666.87 | AB45: 1444263279
A46: North Carolina…………………………………… | B46: 0.01970086059 | C46: 2119828.416 | D46: 0.02241980949 | E46: 503942.1007 | F46: 0.01383676369 | G46: =F46*G$67 -> 67950496.32 | H46: 0.01524434526 | I46: =H46*I$67 -> 345963.228 | J46: 0.02804378318 | K46: =J46*K$67 -> 7337225.482 | L46: 0.04277804033 | M46: =L46*M$67 -> 26822760.95 | N46: 0.03907109465 | O46: =N46*O$67 -> 411780.1124 | P46: 0.0725 | Q46: =P46*Q$67 -> 1450000 | R46: 0.02251676 | S46: =R46*S$67 -> 675502.8 | T46: 0.0002737632627 | U46: =T46*U$67 -> 659901.0064 | V46: 0.005943733368 | W46: =V46*W$67 -> 424676.7772 | X46: 0.01906145675 | Y46: =X46*Y$67 -> 6329957.151 | Z46: 1750000 | AA46: 8079957.151 | AB46: 116782034.3
A47: North Dakota………………………………. | B47: 0.004000000788 | C47: 430403.2962 | D47: 0.004999711707 | E47: 112381.2056 | F47: 0.001026034799 | G47: =F47*G$67 -> 5038719.702 | H47: 0 | I47: =H47*I$67 -> 0 | J47: 0.002242765777 | K47: =J47*K$67 -> 586785.2458 | L47: 0.008266730347 | M47: =L47*M$67 -> 5183419.581 | N47: 0.009213759156 | O47: =N47*O$67 -> 97106.12961 | P47: 0 | Q47: =P47*Q$67 -> 0 | R47: 0.029133 | S47: =R47*S$67 -> 873990 | T47: 0 | U47: =T47*U$67 -> 0 | V47: 0 | W47: =V47*W$67 -> 0 | X47: 0.001287896771 | Y47: =X47*Y$67 -> 427686.6914 | Z47: 1750000 | AA47: 2177686.691 | AB47: 14500491.85
A48: Ohio………………………………………… | B48: 0.032451968 | C48: 3491857.811 | D48: 0.03228222281 | E48: 725624.8625 | F48: 0.02112258166 | G48: =F48*G$67 -> 103730174.1 | H48: 0.02472331311 | I48: =H48*I$67 -> 561083.934 | J48: 0.03848134252 | K48: =J48*K$67 -> 10068052.7 | L48: 0.0368327098 | M48: =L48*M$67 -> 23094909.5 | N48: 0.03676723091 | O48: =N48*O$67 -> 387499.1119 | P48: 0.0482 | Q48: =P48*Q$67 -> 964000 | R48: 0 | S48: =R48*S$67 -> 0 | T48: 0.01071756191 | U48: =T48*U$67 -> 25834473.99 | V48: 0.004046042299 | W48: =V48*W$67 -> 289087.6992 | X48: 0.02719502364 | Y48: =X48*Y$67 -> 9030964.242 | Z48: 1750000 | AA48: 10780964.24 | AB48: 179927728
A49: Oklahoma…………………………………… | B49: 0.005887850575 | C49: 633537.4489 | D49: 0.007358912886 | E49: 165410.2378 | F49: 0.003665201139 | G49: =F49*G$67 -> 17999312.7 | H49: 0 | I49: =H49*I$67 -> 0 | J49: 0.01124265614 | K49: =J49*K$67 -> 2941468.438 | L49: 0.02380868139 | M49: =L49*M$67 -> 14928560.65 | N49: 0.02169724494 | O49: =N49*O$67 -> 228672.7322 | P49: 0 | Q49: =P49*Q$67 -> 0 | R49: 0.31196952 | S49: =R49*S$67 -> 9359085.6 | T49: 0 | U49: =T49*U$67 -> 0 | V49: 0 | W49: =V49*W$67 -> 0 | X49: 0.005072469887 | Y49: =X49*Y$67 -> 1684473.409 | Z49: 1750000 | AA49: 3434473.409 | AB49: 49690521.21
A50: Oregon………………………………………. | B50: 0.01043003462 | C50: 1122280.098 | D50: 0.01025445685 | E50: 230494.9349 | F50: 0.01076553456 | G50: =F50*G$67 -> 52868100.73 | H50: 0.03237966649 | I50: =H50*I$67 -> 734841.264 | J50: 0.01279385913 | K50: =J50*K$67 -> 3347316.894 | L50: 0.01931467508 | M50: =L50*M$67 -> 12110721.03 | N50: 0.01713266662 | O50: =N50*O$67 -> 180565.4909 | P50: 0 | Q50: =P50*Q$67 -> 0 | R50: 0.03027016 | S50: =R50*S$67 -> 908104.8 | T50: 0.008498435299 | U50: =T50*U$67 -> 20485312.57 | V50: 0.001555089075 | W50: =V50*W$67 -> 111110.3369 | X50: 0.01296888143 | Y50: =X50*Y$67 -> 4306725.597 | Z50: 1750000 | AA50: 6056725.597 | AB50: 98155573.74
A51: Pennsylvania………………………………. | B51: 0.03897942047 | C51: 4194216.937 | D51: 0.03846408849 | E51: 864577.9781 | F51: 0.03689547544 | G51: =F51*G$67 -> 181188746.5 | H51: 0.06449988225 | I51: =H51*I$67 -> 1463794.416 | J51: 0.04605574033 | K51: =J51*K$67 -> 12049777.64 | L51: 0.03477270168 | M51: =L51*M$67 -> 21803239.64 | N51: 0.03464623293 | O51: =N51*O$67 -> 365145.3797 | P51: 0.2394 | Q51: =P51*Q$67 -> 4788000 | R51: 0 | S51: =R51*S$67 -> 0 | T51: 0.07135361551 | U51: =T51*U$67 -> 171996498.8 | V51: 0.004158507427 | W51: =V51*W$67 -> 297123.2764 | X51: 0.03710949684 | Y51: =X51*Y$67 -> 12323377.37 | Z51: 1750000 | AA51: 14073377.37 | AB51: 413084497.9
A52: Puerto Rico…………………………………. | B52: 0.01479463748 | C52: 1591914.87 | D52: 0.01448142989 | E52: 325506.8785 | F52: 0.009665619101 | G52: =F52*G$67 -> 47466562.97 | H52: 0.01355903693 | I52: =H52*I$67 -> 307715.95 | J52: 0.01978096088 | K52: =J52*K$67 -> 5175384.835 | L52: 0.003123081313 | M52: =L52*M$67 -> 1958239.855 | N52: 0.008771809993 | O52: =N52*O$67 -> 92448.31602 | P52: 0 | Q52: =P52*Q$67 -> 0 | R52: 0 | S52: =R52*S$67 -> 0 | T52: 0.003057760421 | U52: =T52*U$67 -> 7370671.868 | V52: 0 | W52: =V52*W$67 -> 0 | X52: 0.01256286394 | Y52: =X52*Y$67 -> 4171894.702 | Z52: 500000 | AA52: 4671894.702 | AB52: 68960340.25
A53: Rhode Island……………………………… | B53: 0.004793650249 | C53: 515800.6153 | D53: 0.004999711707 | E53: 112381.2056 | F53: 0.00570151653 | G53: =F53*G$67 -> 27999385.3 | H53: 0 | I53: =H53*I$67 -> 0 | J53: 0.003747166233 | K53: =J53*K$67 -> 980388.5371 | L53: 0.001270385128 | M53: =L53*M$67 -> 796559.0833 | N53: 0.006893125651 | O53: =N53*O$67 -> 72648.3883 | P53: 0 | Q53: =P53*Q$67 -> 0 | R53: 0 | S53: =R53*S$67 -> 0 | T53: 0.001771381067 | U53: =T53*U$67 -> 4269879.52 | V53: 0 | W53: =V53*W$67 -> 0 | X53: 0.003530579403 | Y53: =X53*Y$67 -> 1172440.104 | Z53: 1750000 | AA53: 2922440.104 | AB53: 37669482.76
A54: South Carolina……………………………… | B54: 0.008947388951 | C54: 962746.2345 | D54: 0.01105416979 | E54: 248470.5122 | F54: 0.005097650625 | G54: =F54*G$67 -> 25033880.59 | H54: 0 | I54: =H54*I$67 -> 0 | J54: 0.01547724843 | K54: =J54*K$67 -> 4049384.522 | L54: 0.02069485944 | M54: =L54*M$67 -> 12976126.61 | N54: 0.02178552172 | O54: =N54*O$67 -> 229603.1034 | P54: 0.01 | Q54: =P54*Q$67 -> 200000 | R54: 0.00397732 | S54: =R54*S$67 -> 119319.6 | T54: 0 | U54: =T54*U$67 -> 0 | V54: 0 | W54: =V54*W$67 -> 0 | X54: 0.006932355101 | Y54: =X54*Y$67 -> 2302106.881 | Z54: 1750000 | AA54: 4052106.881 | AB54: 47871638.05
A55: South Dakota………………………………. | B55: 0.004000000788 | C55: 430403.2962 | D55: 0.004999711707 | E55: 112381.2056 | F55: 0.0008130274896 | G55: =F55*G$67 -> 3992669.288 | H55: 0 | I55: =H55*I$67 -> 0 | J55: 0.0025060679 | K55: =J55*K$67 -> 655674.2054 | L55: 0.01033224622 | M55: =L55*M$67 -> 6478542.919 | N55: 0.01049306584 | O55: =N55*O$67 -> 110589.0652 | P55: 0 | Q55: =P55*Q$67 -> 0 | R55: 0.09032248 | S55: =R55*S$67 -> 2709674.4 | T55: 0 | U55: =T55*U$67 -> 0 | V55: 0 | W55: =V55*W$67 -> 0 | X55: 0.001130513387 | Y55: =X55*Y$67 -> 375422.5812 | Z55: 1750000 | AA55: 2125422.581 | AB55: 16615356.96
A56: Tennessee…………………………………. | B56: 0.01316029948 | C56: 1416058.79 | D56: 0.01478451944 | E56: 332319.585 | F56: 0.0101958426 | G56: =F56*G$67 -> 50070419.7 | H56: 0.01391869736 | I56: =H56*I$67 -> 315878.274 | J56: 0.02085301079 | K56: =J56*K$67 -> 5455870.242 | L56: 0.02984870284 | M56: =L56*M$67 -> 18715785.36 | N56: 0.02829492132 | O56: =N56*O$67 -> 298207.3061 | P56: 0.0555 | Q56: =P56*Q$67 -> 1110000 | R56: 0 | S56: =R56*S$67 -> 0 | T56: 0.001772110771 | U56: =T56*U$67 -> 4271638.456 | V56: 0 | W56: =V56*W$67 -> 0 | X56: 0.01119991814 | Y56: =X56*Y$67 -> 3719285.615 | Z56: 1750000 | AA56: 5469285.615 | AB56: 87455463.33
A57: Texas………………………………………… | B57: 0.08464520158 | C57: 9107891.647 | D57: 0.08118216795 | E57: 1824775.196 | F57: 0.05899770271 | G57: =F57*G$67 -> 289729829.2 | H57: 0.04105368217 | I57: =H57*I$67 -> 931693.96 | J57: 0.07010318526 | K57: =J57*K$67 -> 18341422.55 | L57: 0.06619943609 | M57: =L57*M$67 -> 41508485.08 | N57: 0.05358117785 | O57: =N57*O$67 -> 564705.5358 | P57: 0 | Q57: =P57*Q$67 -> 0 | R57: 0 | S57: =R57*S$67 -> 0 | T57: 0.01105467665 | U57: =T57*U$67 -> 26647082.5 | V57: 0.03675754814 | W57: =V57*W$67 -> 2626308.436 | X57: 0.07683320171 | Y57: =X57*Y$67 -> 25514884.87 | Z57: 1750000 | AA57: 27264884.87 | AB57: 418547079
A58: Utah…………………………………………. | B58: 0.009215520109 | C58: 991597.3624 | D58: 0.009611962888 | E58: 216053.2529 | F58: 0.01007765658 | G58: =F58*G$67 -> 49490023.91 | H58: 0.02106359548 | I58: =H58*I$67 -> 478028.368 | J58: 0.00659729296 | K58: =J58*K$67 -> 1726080.454 | L58: 0.01010656919 | M58: =L58*M$67 -> 6337038.518 | N58: 0.01010905715 | O58: =N58*O$67 -> 106541.9008 | P58: 0 | Q58: =P58*Q$67 -> 0 | R58: 0.0036342 | S58: =R58*S$67 -> 109026 | T58: 0.003248700569 | U58: =T58*U$67 -> 7830929.372 | V58: 0.00380610493 | W58: =V58*W$67 -> 271944.2942 | X58: 0.00934305986 | Y58: =X58*Y$67 -> 3102657.333 | Z58: 1750000 | AA58: 4852657.333 | AB58: 72409920.77
A59: Vermont…………………………………… | B59: 0.004000000788 | C59: 430403.2962 | D59: 0.004999711707 | E59: 112381.2056 | F59: 0.0005032959917 | G59: =F59*G$67 -> 2471619.318 | H59: 0 | I59: =H59*I$67 -> 0 | J59: 0.00176142599 | K59: =J59*K$67 -> 460850.0777 | L59: 0.005604631138 | M59: =L59*M$67 -> 3514225.524 | N59: 0.01008267775 | O59: =N59*O$67 -> 106263.8816 | P59: 0 | Q59: =P59*Q$67 -> 0 | R59: 0 | S59: =R59*S$67 -> 0 | T59: 0 | U59: =T59*U$67 -> 0 | V59: 0 | W59: =V59*W$67 -> 0 | X59: 0.0004451780293 | Y59: =X59*Y$67 -> 147835.3877 | Z59: 1750000 | AA59: 1897835.388 | AB59: 8993578.69
A60: Virgin Islands……………………………… | B60: 0 | C60: 0 | D60: 0 | E60: 0 | F60: 0.0002222588231 | G60: =F60*G$67 -> 1091483.361 | H60: 0 | I60: =H60*I$67 -> 0 | J60: 0.0006112177898 | K60: =J60*K$67 -> 159915.7543 | L60: 0 | M60: =L60*M$67 -> 0 | N60: 0 | O60: =N60*O$67 -> 0 | P60: 0 | Q60: =P60*Q$67 -> 0 | R60: 0 | S60: =R60*S$67 -> 0 | T60: 0 | U60: =T60*U$67 -> 0 | V60: 0 | W60: =V60*W$67 -> 0 | X60: 0.0003223323213 | Y60: =X60*Y$67 -> 107040.6007 | Z60: 500000 | AA60: 607040.6007 | AB60: 1858439.716
A61: Virginia………………………………………. | B61: 0.02463070176 | C61: 2650283.284 | D61: 0.02392469447 | E61: 537768.2088 | F61: 0.0256048453 | G61: =F61*G$67 -> 125741971.5 | H61: 0.01149648436 | I61: =H61*I$67 -> 260907.292 | J61: 0.02288604295 | K61: =J61*K$67 -> 5987781.907 | L61: 0.02422441619 | M61: =L61*M$67 -> 15189235.4 | N61: 0.02463157635 | O61: =N61*O$67 -> 259598.3903 | P61: 0.0575 | Q61: =P61*Q$67 -> 1150000 | R61: 0 | S61: =R61*S$67 -> 0 | T61: 0.0001548792375 | U61: =T61*U$67 -> 373333.3819 | V61: 0.02290541809 | W61: =V61*W$67 -> 1636580.67 | X61: 0.0258200338 | Y61: =X61*Y$67 -> 8574355.556 | Z61: 1750000 | AA61: 10324355.56 | AB61: 164111815.6
A62: Washington………………………………… | B62: 0.02238762393 | C62: 2408926.309 | D62: 0.02160010591 | E62: 485517.183 | F62: 0.02912907338 | G62: =F62*G$67 -> 143048984.4 | H62: 0.02458699382 | I62: =H62*I$67 -> 557990.232 | J62: 0.02227238599 | K62: =J62*K$67 -> 5827227.981 | L62: 0.02012247397 | M62: =L62*M$67 -> 12617228.48 | N62: 0.0190116336 | O62: =N62*O$67 -> 200368.3974 | P62: 0 | Q62: =P62*Q$67 -> 0 | R62: 0.07361324 | S62: =R62*S$67 -> 2208397.2 | T62: 0.01980356246 | U62: =T62*U$67 -> 47736101.14 | V62: 0.2309299581 | W62: =V62*W$67 -> 16499830.04 | X62: 0.03493072958 | Y62: =X62*Y$67 -> 11599849.07 | Z62: 1750000 | AA62: 13349849.07 | AB62: 244940420.4
A63: West Virginia……………………………… | B63: 0.004000000788 | C63: 430403.2962 | D63: 0.004999711707 | E63: 112381.2056 | F63: 0.001944558991 | G63: =F63*G$67 -> 9549469.191 | H63: 0.01069139762 | I63: =H63*I$67 -> 242636.228 | J63: 0.007837960166 | K63: =J63*K$67 -> 2050681.988 | L63: 0.01244282181 | M63: =L63*M$67 -> 7801919.684 | N63: 0.01560162508 | O63: =N63*O$67 -> 164429.4584 | P63: 0.0946 | Q63: =P63*Q$67 -> 1892000 | R63: 0 | S63: =R63*S$67 -> 0 | T63: 0.0004189417153 | U63: =T63*U$67 -> 1009850.835 | V63: 0 | W63: =V63*W$67 -> 0 | X63: 0.002288728735 | Y63: =X63*Y$67 -> 760044.4714 | Z63: 1750000 | AA63: 2510044.471 | AB63: 25763816.36
A64: Wisconsin………………………………… | B64: 0.01293423419 | C64: 1391733.983 | D64: 0.01359629843 | E64: 305611.3031 | F64: 0.0101066746 | G64: =F64*G$67 -> 49632527.56 | H64: 0.01266441636 | I64: =H64*I$67 -> 287412.958 | J64: 0.01779586538 | K64: =J64*K$67 -> 4656015.065 | L64: 0.02512414565 | M64: =L64*M$67 -> 15753385.32 | N64: 0.02537142431 | O64: =N64*O$67 -> 267395.8344 | P64: 0 | Q64: =P64*Q$67 -> 0 | R64: 0.06890836 | S64: =R64*S$67 -> 2067250.8 | T64: 0.0005935168251 | U64: =T64*U$67 -> 1430660.733 | V64: 0 | W64: =V64*W$67 -> 0 | X64: 0.01385271223 | Y64: =X64*Y$67 -> 4600229.457 | Z64: 1750000 | AA64: 6350229.457 | AB64: 82142223.02
A65: Wyoming…………………………………. | B65: 0.004000010172 | C65: 430404.3059 | D65: 0.004999711707 | E65: 112381.2056 | F65: 0.0004214052386 | G65: =F65*G$67 -> 2069464.779 | H65: 0 | I65: =H65*I$67 -> 0 | J65: 0.001634507616 | K65: =J65*K$67 -> 427643.833 | L65: 0.01011015747 | M65: =L65*M$67 -> 6339288.45 | N65: 0.009381927831 | O65: =N65*O$67 -> 98878.50166 | P65: 0 | Q65: =P65*Q$67 -> 0 | R65: 0.0054818 | S65: =R65*S$67 -> 164454 | T65: 0 | U65: =T65*U$67 -> 0 | V65: 0 | W65: =V65*W$67 -> 0 | X65: 0.0006185288435 | Y65: =X65*Y$67 -> 205401.9861 | Z65: 1750000 | AA65: 1955401.986 | AB65: 11597917.06
A66: Unallocated………………. | B66: 0 | C66: 0 | D66: 0 | E66: 0 | F66: 0 | G66: =F66*G$67 -> 0 | H66: 0 | I66: =H66*I$67 -> 0 | J66: 0 | K66: =J66*K$67 -> 0 | L66: 0 | M66: =L66*M$67 -> 0 | N66: 0 | O66: =N66*O$67 -> 0 | P66: 0 | Q66: =P66*Q$67 -> 0 | R66: 0 | S66: =R66*S$67 -> 0 | T66: 0 | U66: =T66*U$67 -> 0 | V66: 0 | W66: =V66*W$67 -> 0 | X66: 0 | Y66: =X66*Y$67 -> 0 | Z66: 0 | AA66: 0 | AB66: 0
A67: Subtotal | C67: =C70-C68 -> 107600802.8 | E67: =E70-E68 -> 22477537.15 | G67: =G70-G68 -> 4910866286 | I67: =I70-I68 -> 22694528.5 | K67: =K70-K68 -> 261634653 | M67: =M70-M68 -> 627021732.1 | O67: =O70-O68 -> 10539252 | Q67: =Q70-Q68 -> 20000000 | S67: =S70-S68 -> 30000000 | U67: =U70-U68 -> 2410480500 | W67: =W70-W68 -> 71449500 | Y67: =Y70-Y68 -> 332081500 | Z67: =SUM(Z10:Z66) -> 90500000 | AA67: 422581500 | AB67: 8917346291
A68: Oversight | C68: =C70*0.005 -> 540707.552 | E68: =E70*0.005 -> 112952.448 | F68: =G77*0.0075 -> 33646583.79 | G68: ='Program Totals'!D11*0.0075 -> 34041792.75 | I68: 0 | K68: =K70*0.005 -> 1314747 | M68: ='Program Totals'!D17*0.005 -> 3099780 | O68: 0 | Q68: 0 | S68: 0 | U68: =(U70+W70)*0.01 -> 25070000 | W68: 0 | Y68: =AA75*0.0075 -> 5218500 | Z68: 0 | AA68: =Y68 -> 5218500 | AB68: 69398479.75
C69: 0 | E69: 0 | G69: 0 | I69: 0 | K69: 0 | M69: 0 | O69: 0 | Q69: 0 | S69: 0 | U69: 0 | W69: 0 | Y69: 0 | Z69: 0 | AA69: 0 | AB69: =SUM(C69:Z69) -> 0
A70: Subtotal | C70: ='Program Totals'!D9 -> 108141510.4 | E70: ='Program Totals'!D10 -> 22590489.6 | G70: =G77+G80+H79 -> 4944908078 | I70: ='Program Totals'!D12 -> 22694528.5 | K70: ='Program Totals'!D15 -> 262949400 | M70: =M77+I79 -> 630121512.1 | O70: ='Program Totals'!D23-O74 -> 10539252 | Q70: ='Program Totals'!D21 -> 20000000 | S70: ='Program Totals'!D19 -> 30000000 | U70: ='Program Totals'!D37 -> 2435550500 | W70: ='Program Totals'!D38 -> 71449500 | Y70: ='Program Totals'!D40-Z67 -> 337300000 | Z70: =Z67 -> 90500000 | AA70: =SUM(Y70+Z70) -> 427800000 | AB70: =SUM(C70+E70+G70+I70+K70+M70+O70+Q70+S70+U70+W70+AA70) -> 8986744771 | AC70: =AB67+AB68 -> 8986744771
A71: Bus and Bus Facilities Discretionary Program | C71: 0 | E71: 0 | G71: 0 | I71: 0 | K71: 0 | M71: 0 | O71: 0 | Q71: 0 | S71: 0 | U71: 0 | W71: 0 | Y71: ='Program Totals'!D43 -> 268000000 | Z71: 0 | AA71: =Y71 -> 268000000 | AB71: 268000000
A72: Ferry discretionary Program | C72: 0 | E72: 0 | G72: ='Program Totals'!D13 -> 30000000 | I72: 0 | K72: 0 | M72: 0 | O72: 0 | Q72: 0 | S72: 0 | U72: 0 | W72: 0 | Y72: 0 | Z72: 0 | AA72: 0 | AB72: 30000000
A73: Tribal discretionary Program | C73: 0 | E73: 0 | G73: 0 | I73: 0 | K73: 0 | M73: 0 | O73: 0 | Q73: 0 | S73: 5000000 | U73: 0 | W73: 0 | Y73: 0 | Z73: 0 | AA73: 0 | AB73: 5000000
A74: National RTAP | C74: 0 | E74: 0 | G74: 0 | I74: 0 | K74: 0 | M74: 0 | O74: ='Program Totals'!D22 -> 1859868 | Q74: 0 | S74: 0 | U74: 0 | W74: 0 | Y74: 0 | Z74: 0 | AA74: 0 | AB74: 1859868
A75: Total | C75: =C70+C71+C72+C73+C74 -> 108141510.4 | E75: =E70+E71+E72+E73+E74 -> 22590489.6 | G75: 4974908078 | I75: 22694528.5 | K75: 262949400 | M75: 630121512.1 | O75: 12399120 | Q75: 20000000 | S75: 35000000 | U75: 2435550500 | W75: 71449500 | Y75: 605300000 | Z75: 90500000 | AA75: 695800000 | AB75: 9291604639 | AC75: ='Program Totals'!D61 -> 9291604639 | AD75: =AC70+AB71+AB72+AB73+AB74 -> 9291604639
AC76: =AB70+AB71+AB72+AB73+AB74 -> 9291604639
G77: ='Program Totals'!D14 -> 4486211172 | M77: ='Program Totals'!D18 -> 552556880
A78: *Allocations for UZAs that are within multiple-states are split between the applicable states.
G79: ='Program Totals'!D46 -> 272297082.5 | H79: =G79*0.715147032 -> 194732450.4 | I79: =G79-H79 -> 77564632.13
G80: ='Program Totals'!D47 -> 263964456.5 | I80: =SUM(I10:I66)-I67 -> 0 | K80: 0 | M80: 0 | O80: 0 | Q80: 0 | S80: 0 | U80: 0 | W80: 0 | Y80: 0 | Z80: 0 | AA80: 0 | AB80: 0
G82: =G75+I75+M75+O75+Q75+S75 -> 5695123239
G83: ='Program Totals'!D11+'Program Totals'!D17+'Program Totals'!D45 -> 5695123239

Sheet State totals FY 15-21 (hidden)
B3: STRR Act ESTIMATED APPORTIONMENTS/ALLOCATIONS BY STATE PER YEAR
A9: State | B9: FY 15 State Total | C9: FY 16 State Total | D9: FY 17 State total | E9: FY 18 State Total | F9: FY 19 State Total | G9: FY 20 State Total | H9: FY 21 State Total
A10: Alabama…………………………………… | B10: 52838746.31 | C10: 53056244.29 | D10: 53144259.82 | E10: 54163184.99 | F10: 55141601.84 | G10: 56205408.12 | H10: 57270499.2
A11: Alaska………………………………………. | B11: 44509181.11 | C11: 46379257.3 | D11: 46749765.75 | E11: 47691306.1 | F11: 48561173.15 | G11: 49543483.12 | H11: 50526982.26
A12: American Samoa……………………………. | B12: 825834.45 | C12: 826013.1658 | D12: 826228.3628 | E12: 833343.426 | F12: 840495.8624 | G12: 847930.9809 | H12: 855375.2207
A13: Arizona………………………………………. | B13: 107526626.9 | C13: 108160190.1 | D13: 108343582.4 | E13: 110636693.7 | F13: 113015176.1 | G13: 115447846.3 | H13: 117849168.4
A14: Arkansas……………………………………. | B14: 30744550.88 | C14: 30865993.57 | D14: 30922313.27 | E14: 31566582.93 | F14: 32152451.49 | G14: 32824428.21 | H14: 33497217.71
A15: California………………………………… | B15: 1253984980 | C15: 1263344001 | D15: 1270230559 | E15: 1297177539 | F15: 1324199204 | G15: 1352567453 | H15: 1380762947
A16: Colorado……………………………………. | B16: 111531890.7 | C16: 112249276.1 | D16: 112582056.7 | E16: 114975439 | F16: 117682525.8 | G16: 120202506.7 | H16: 122712971.5
A17: Connecticut……………………………… | B17: 157663159 | C17: 133174333.2 | D17: 134165105.1 | E17: 136944322.7 | F17: 140176801.2 | G17: 143102943.5 | H17: 146019904.1
A18: Delaware……………………………………. | B18: 24593443.55 | C18: 19701601.08 | D18: 19720993.65 | E18: 20115593.65 | F18: 20592704.12 | G18: 21006695.65 | H18: 21421187.89
A19: District of Columbia………………………. | B19: 168198179.4 | C19: 177974452.1 | D19: 180710617.6 | E19: 184392153.6 | F19: 187916018.4 | G19: 191829413.7 | H19: 195678927.6
A20: Florida………………………………………. | B20: 360848078.3 | C20: 363235893.6 | D20: 364420371.2 | E20: 372238410.2 | F20: 379236519.5 | G20: 387405948.6 | H20: 395568028.4
A21: Georgia……………………………………… | B21: 174055051 | C21: 175256776 | D21: 176187510.9 | E21: 179896262.9 | F21: 183817175 | G21: 187742864.1 | H21: 191627955.9
A22: Guam………………………………………… | B22: 1353129.778 | C22: 1353806.395 | D22: 1354621.128 | E22: 1373261.002 | F22: 1391998.756 | G22: 1411477.121 | H22: 1430979.326
A23: Hawaii………………………………………. | B23: 41053995.82 | C23: 41321584.03 | D23: 41380969.84 | E23: 42264251.46 | F23: 43527870.05 | G23: 44472551.37 | H23: 45404662.99
A24: Idaho…………………………………………. | B24: 23242375.64 | C24: 23329560.4 | D24: 23359579.53 | E24: 23818790.16 | F24: 24229819.72 | G24: 24708642.64 | H24: 25188046.45
A25: Illinois……………………………………… | B25: 537023178 | C25: 541325374.1 | D25: 545530004.7 | E25: 556896863.6 | F25: 568248022.6 | G25: 580124475.9 | H25: 592015241.2
A26: Indiana……………………………………… | B26: 87621924.12 | C26: 88137068.72 | D26: 88298362.88 | E26: 90174664.2 | F26: 92531208.89 | G26: 94501529.59 | H26: 96474230.72
A27: Iowa…………………………………………. | B27: 38625979.52 | C27: 38835429.57 | D27: 38888713.22 | E27: 39707456.8 | F27: 41162826.7 | G27: 42031362.16 | H27: 42900948.45
A28: Kansas………………………………………. | B28: 34721200.4 | C28: 34879967.32 | D28: 34927077.09 | E28: 35657772.54 | F28: 36511455.68 | G28: 37277454.02 | H28: 38044380.46
A29: Kentucky…………………………………… | B29: 51536662.56 | C29: 51759175.56 | D29: 51834099.52 | E29: 52897683.69 | F29: 53979391.88 | G29: 55091063.24 | H29: 56204079.81
A30: Louisiana……………………………………. | B30: 59629607.26 | C30: 59952674.21 | D30: 60111782.88 | E30: 61384893.75 | F30: 62490560.07 | G30: 63823216.07 | H30: 65151722.66
A31: Maine………………………………………… | B31: 30348164.89 | C31: 30529097.19 | D31: 30675575.35 | E31: 31292446.93 | F31: 32049325.12 | G31: 32696742.42 | H31: 33344943.34
A32: Maryland……………………………………. | B32: 230324428.9 | C32: 197207072 | D32: 198267006.5 | E32: 202411843 | F32: 206081597.4 | G32: 210402612.8 | H32: 214728839.3
A33: Massachusetts……………………………. | B33: 339311760.7 | C33: 292565244.9 | D33: 294889555.1 | E33: 301011209.6 | F33: 306690040.6 | G33: 313077917.2 | H33: 319472808.6
A34: Michigan……………………………………. | B34: 131602214.8 | C34: 132349716.7 | D34: 132574671.2 | E34: 135434772.4 | F34: 138491587 | G34: 141484020.7 | H34: 144480069
A35: Minnesota…………………………………. | B35: 101583604.7 | C35: 102238037.8 | D35: 102550062.6 | E35: 104692419 | F35: 107221851.2 | G35: 109565344.9 | H35: 111816415.6
A36: Mississippi…………………………………. | B36: 28244679.47 | C36: 28337598.43 | D36: 28379097.48 | E36: 28946471.05 | F36: 29612179.8 | G36: 30207026.95 | H36: 30802596.39
A37: Missouri……………………………………. | B37: 94320943.12 | C37: 94885118.25 | D37: 95265045.34 | E37: 97280996.2 | F37: 99402731.54 | G37: 101511612.6 | H37: 103622723.9
A38: Montana…………………………………… | B38: 19129871.15 | C38: 19183050.73 | D38: 19200251.21 | E38: 19555678.86 | F38: 20095421.66 | G38: 20470576.37 | H38: 20846189.95
A39: N. Mariana Islands…………………………. | B39: 811989.6361 | C39: 812130.8537 | D39: 812300.8979 | E39: 819114.8007 | F39: 825964.4987 | G39: 833084.9072 | H39: 840214.0586
A40: Nebraska……………………………………. | B40: 23591336.99 | C40: 23682757.86 | D40: 23711115.23 | E40: 24191105.69 | F40: 24629350.56 | G40: 25130017.21 | H40: 25631291.45
A41: Nevada………………………………………. | B41: 57172865.62 | C41: 57490583.9 | D41: 57584749.8 | E41: 58804767.39 | F41: 59829835.46 | G41: 61100577.17 | H41: 62372856.62
A42: New Hampshire……………………………. | B42: 15671744.12 | C42: 15741811.21 | D42: 15765352.58 | E42: 16078984.41 | F42: 16354075.78 | G42: 16680985.74 | H42: 17008291.83
A43: New Jersey…………………………………. | B43: 573263437 | C43: 498875376.4 | D43: 501753553.5 | E43: 512228936.8 | F43: 521270743.2 | G43: 532186610.1 | H43: 543115633.9
A44: New Mexico………………………………… | B44: 43810139.3 | C44: 44034254.28 | D44: 44142288.22 | E44: 45047799.71 | F44: 45972649.53 | G44: 46919179.25 | H44: 47866854.01
A45: New York……………………………………. | B45: 1342157884 | C45: 1291308946 | D45: 1302788756 | E45: 1329844494 | F45: 1354461177 | G45: 1382779275 | H45: 1411034695
A46: North Carolina…………………………………… | B46: 114759873 | C46: 115323290.3 | D46: 115505018.1 | E46: 117946148.6 | F46: 120200387.6 | G46: 122752866 | H46: 125302863.3
A47: North Dakota………………………………. | B47: 13689173.6 | C47: 13743980.3 | D47: 13756757.46 | E47: 14012368.65 | F47: 14491899.61 | G47: 14763570.8 | H47: 15035573.9
A48: Ohio………………………………………… | B48: 174852835.7 | C48: 175919069.9 | D48: 176564966.4 | E48: 180312767.7 | F48: 183727002.4 | G48: 187647909.7 | H48: 191561944.6
A49: Oklahoma…………………………………… | B49: 47171865.08 | C49: 47329363 | D49: 47390872.63 | E49: 48225046 | F49: 48977281.83 | G49: 49847198.09 | H49: 50718167.51
A50: Oregon………………………………………. | B50: 93960862.6 | C50: 94559084.39 | D50: 94964591.02 | E50: 96953387.48 | F50: 98912277.92 | G50: 100991182.6 | H50: 103071120.8
A51: Pennsylvania………………………………. | B51: 387365824.9 | C51: 390359542 | D51: 393337921 | E51: 401474391.4 | F51: 410516387.7 | G51: 419040293 | H51: 427570693.9
A52: Puerto Rico…………………………………. | B52: 67260622.84 | C52: 67769777.07 | D52: 68000051.81 | E52: 69452817.15 | F52: 71416526.96 | G52: 72944940.88 | H52: 74475195.41
A53: Rhode Island……………………………… | B53: 36370776.72 | C53: 27755984.88 | D53: 27846699.68 | E53: 28410907.99 | F53: 28881392.46 | G53: 29468985.03 | H53: 30057286.74
A54: South Carolina……………………………… | B54: 46830050.12 | C54: 47050469.32 | D54: 47135053.75 | E54: 48124757.75 | F54: 49069164.27 | G54: 50102338.46 | H54: 51136759.98
A55: South Dakota………………………………. | B55: 15500615.73 | C55: 15540179.28 | D55: 15553889.89 | E55: 15815977.99 | F55: 16131581.1 | G55: 16406524.32 | H55: 16681804.01
A56: Tennessee…………………………………. | B56: 85414173.84 | C56: 85856341.57 | D56: 86040582.56 | E56: 87840984.34 | F56: 89473033.4 | G56: 91350746.63 | H56: 93230727.52
A57: Texas………………………………………… | B57: 415592412.5 | C57: 418151096.2 | D57: 419174135.9 | E57: 428207875.2 | F57: 435951432 | G57: 445491473.6 | H57: 454917899.5
A58: Utah…………………………………………. | B58: 70692670.57 | C58: 71144253.34 | D58: 71330136.81 | E58: 72821836.31 | F58: 74264811.61 | G58: 75836627.28 | H58: 77396406.15
A59: Vermont…………………………………… | B59: 8370585.237 | C59: 8412280.921 | D59: 8421276.043 | E59: 8575449.66 | F59: 9059369.056 | G59: 9227222.981 | H59: 9395282.998
A60: Virgin Islands……………………………… | B60: 1843783.167 | C60: 1853686.506 | D60: 1857116.03 | E60: 1886683.931 | F60: 1910710.567 | G60: 1941491.3 | H60: 1972308.725
A61: Virginia………………………………………. | B61: 161234228.2 | C61: 162264192.8 | D61: 162447240.1 | E61: 165887046.2 | F61: 170058299.2 | G61: 173688944.5 | H61: 177302841.6
A62: Washington………………………………… | B62: 231768948 | C62: 233728553.7 | D62: 234875453.5 | E62: 239822574.3 | F62: 245482604.3 | G62: 250878711.7 | H62: 256072908.5
A63: West Virginia……………………………… | B63: 24824408.33 | C63: 24957463.36 | D63: 25013861.76 | E63: 25485002.68 | F63: 26492652.06 | G63: 26995937.33 | H63: 27499830.79
A64: Wisconsin………………………………… | B64: 80216786.92 | C64: 80668290.66 | D64: 80798740.08 | E64: 82490881.62 | F64: 84834774.01 | G64: 86616194.27 | H64: 88399767.85
A65: Wyoming…………………………………. | B65: 10937600.01 | C65: 10957346.48 | D65: 10966070.65 | E65: 11174638.82 | F65: 11374118.08 | G65: 11591855.92 | H65: 11809861.85
A66: Unallocated………………. | B66: 0 | C66: 0 | D66: 0 | E66: 0 | F66: 0 | G66: 0 | H66: 0
A67: Subtotal | B67: 8482130936 | C67: 8287703713 | D67: 8333028390 | E67: 8507369052 | F67: 8682619237 | G67: 8864799291 | H67: 9044992860
A68: Oversight | B68: 54195663.88 | C68: 57676761.85 | D68: 57999085.1 | E68: 59210241.36 | F68: 60427719.25 | G68: 61693336.32 | H68: 62960481.21
A70: Subtotal | B70: =SUM(B67:B68) -> 8536326600 | C70: =SUM(C67:C68) -> 8345380475 | D70: =SUM(D67:D68) -> 8391027475 | E70: 8566579294 | F70: 8743046957 | G70: 8926492628 | H70: 9107953341
A71: Bus discretionary - underlying | B71: 0 | C71: 90000000 | D71: 200000000 | E71: 200000000 | F71: 200000000 | G71: 200000000 | H71: 200000000
A72: Bus discr. - H-B amendment | B72: 0 | C72: 262950000 | D72: 262950000 | E72: 268288000 | F72: 273653500 | G72: 279231500 | H72: 284816000
A73: Bus Discretionary TOTAL | B73: 0 | C73: =SUM(C71:C72) -> 352950000 | D73: 462950000 | E73: 468288000 | F73: 473653500 | G73: 479231500 | H73: 484816000
A74: Ferry discretionary Program | B74: 30000000 | C74: 30000000 | D74: 30000000 | E74: 30000000 | F74: 30000000 | G74: 30000000 | H74: 30000000
A75: Tribal discretionary Program | B75: 5000000 | C75: 5000000 | D75: 5000000 | E75: 5000000 | F75: 5000000 | G75: 5000000 | H75: 5000000
A76: National RTAP | B76: 1823400 | C76: 5000000 | D76: 5000000 | E76: 5000000 | F76: 5000000 | G76: 5000000 | H76: 5000000
A78: Total | B78: =SUM(B70,B73,B74,B75,B76) -> 8573150000 | C78: =SUM(C70,C73,C74,C75,C76) -> 8738330475 | D78: =SUM(D70,D73,D74,D75,D76) -> 8893977475 | E78: =SUM(E70,E73,E74,E75,E76) -> 9074867294 | F78: =SUM(F70,F73,F74,F75,F76) -> 9256700457 | G78: =SUM(G70,G73,G74,G75,G76) -> 9445724128 | H78: 9632769341
B79: =#REF! ->  | C79: =#REF! ->  | D79: =#REF! ->  | E79: =#REF! ->  | F79: =#REF! ->  | G79: =#REF! ->  | H79: =#REF! -> 
A80: *Allocations for UZAs that are within multiple-states are split between the applicable states.
B81: =B79-B78 -> 
A82: Disclaimer: This technical drafting assistance is provided in response to a Congressional request and is not intended to reflect the viewpoint or policies of any element of the Department of Transportation or the Administration.
C83: =21850000-C81 ->  | D83: =21850000-D81 -> 
B85: ='FY 15'!$S$70 -> 8536326600 | C85: ='FY 16'!$AB$70 -> 8986744771 | D85: =#REF! ->  | E85: =#REF! ->  | F85: =#REF! ->  | G85: =#REF! ->  | H85: =#REF! -> 

Sheet Revised state totals (hidden)
B8: FY 15 | C8: FY 16 | D8: FY 17 | E8: FY 18 | F8: FY 19 | G8: FY 20 | H8: FY 21
A9: State | B9: State Total | C9: State Total | D9: State Total | E9: State Total | F9: State Total | G9: State Total | H9: State Total
A10: Alabama…………………………………… | B10: 52838746.31 | C10: 52869287.85 | D10: 52957303.38 | E10: 53972952.54 | F10: 54948439.47 | G10: 56008828.89 | H10: 57081742.38
A11: Alaska………………………………………. | B11: 44509181.11 | C11: 46261549.31 | D11: 46632057.75 | E11: 47571534.54 | F11: 48439934.33 | G11: 49420098.71 | H11: 50408506.73
A12: American Samoa……………………………. | B12: 825834.45 | C12: 826013.1658 | D12: 826228.3628 | E12: 833343.426 | F12: 840495.8624 | G12: 847930.9809 | H12: 855375.2207
A13: Arizona………………………………………. | B13: 107526626.9 | C13: 107566052.6 | D13: 107749445 | E13: 110032144 | F13: 112399306.3 | G13: 114821081 | H13: 117247342.5
A14: Arkansas……………………………………. | B14: 30744550.88 | C14: 30765398.67 | D14: 30821718.38 | E14: 31464225.25 | F14: 32048811.34 | G14: 32718954.69 | H14: 33395941.19
A15: California………………………………… | B15: 1253984980 | C15: 1257141731 | D15: 1264028289 | E15: 1290866552 | F15: 1317777818 | G15: 1346032442 | H15: 1374487949
A16: Colorado……………………………………. | B16: 111531890.7 | C16: 111663554.7 | D16: 111996335.3 | E16: 114379451.7 | F16: 117073732.4 | G16: 119582941.9 | H16: 122118058.6
A17: Connecticut……………………………… | B17: 157663159 | C17: 132625631.5 | D17: 133616403.4 | E17: 136386002.7 | F17: 139605235.2 | G17: 142521263.5 | H17: 145461367.5
A18: Delaware……………………………………. | B18: 24593443.55 | C18: 19586834.12 | D18: 19606226.69 | E18: 19998814.99 | F18: 20473265.65 | G18: 20885143.75 | H18: 21304472.25
A19: District of Columbia………………………. | B19: 168198179.4 | C19: 177810897.1 | D19: 180547062.6 | E19: 184225730.8 | F19: 187747572.4 | G19: 191657986.2 | H19: 195514320
A20: Florida………………………………………. | B20: 360848078.3 | C20: 361224528.7 | D20: 362409006.3 | E20: 370191795.1 | F20: 377161155.3 | G20: 385293867.9 | H20: 393539988.1
A21: Georgia……………………………………… | B21: 174055051 | C21: 174541566.8 | D21: 175472301.7 | E21: 179168519.5 | F21: 183074945.2 | G21: 186987503.2 | H21: 190902651.2
A22: Guam………………………………………… | B22: 1353129.778 | C22: 1353806.395 | D22: 1354621.128 | E22: 1373261.002 | F22: 1391998.756 | G22: 1411477.121 | H22: 1430979.326
A23: Hawaii………………………………………. | B23: 41053995.82 | C23: 41078206.77 | D23: 41137592.59 | E23: 42016607.83 | F23: 43272851.5 | G23: 44213020.03 | H23: 45155457.47
A24: Idaho…………………………………………. | B24: 23242375.64 | C24: 23247712.04 | D24: 23277731.17 | E24: 23735507.46 | F24: 24145496.04 | G24: 24622827.22 | H24: 25105645.73
A25: Illinois……………………………………… | B25: 537023178 | C25: 539186557.3 | D25: 543391187.9 | E25: 554720553.9 | F25: 566034619.5 | G25: 577871905.1 | H25: 589852292.5
A26: Indiana……………………………………… | B26: 87621924.12 | C26: 87689042.79 | D26: 87850336.94 | E26: 89718786.08 | F26: 92063709.15 | G26: 94025758.68 | H26: 96017390.58
A27: Iowa…………………………………………. | B27: 38625979.52 | C27: 38674111.38 | D27: 38727395.03 | E27: 39543311.23 | F27: 40990827.49 | G27: 41856319.76 | H27: 42732870.82
A28: Kansas………………………………………. | B28: 34721200.4 | C28: 34738500.15 | D28: 34785609.92 | E28: 35513826.19 | F28: 36364072.75 | G28: 37127463.73 | H28: 37900358.42
A29: Kentucky…………………………………… | B29: 51536662.56 | C29: 51560703.02 | D29: 51635626.99 | E29: 52695732.76 | F29: 53773844.79 | G29: 54881879.62 | H29: 56003219.6
A30: Louisiana……………………………………. | B30: 59629607.26 | C30: 59680323.35 | D30: 59839432.02 | E30: 61107770.1 | F30: 62209972.8 | G30: 63537665.05 | H30: 64877534.08
A31: Maine………………………………………… | B31: 30348164.89 | C31: 30424326.23 | D31: 30570804.39 | E31: 31185839.24 | F31: 31939787.07 | G31: 32585265.88 | H31: 33237901.94
A32: Maryland……………………………………. | B32: 230324428.9 | C32: 196244702.4 | D32: 197304636.9 | E32: 201432604 | F32: 205089337.5 | G32: 209392794.9 | H32: 213759199.2
A33: Massachusetts……………………………. | B33: 339311760.7 | C33: 291398360 | D33: 293722670.1 | E33: 299823870.3 | F33: 305485897.7 | G33: 311852466.9 | H33: 318296115.4
A34: Michigan……………………………………. | B34: 131602214.8 | C34: 131656930.5 | D34: 131881885 | E34: 134729844.5 | F34: 137773013.3 | G34: 140752734 | H34: 143777880.3
A35: Minnesota…………………………………. | B35: 101583604.7 | C35: 101757985.2 | D35: 102070010 | E35: 104203952.1 | F35: 106721193 | G35: 109055828.1 | H35: 111327171.6
A36: Mississippi…………………………………. | B36: 28244679.47 | C36: 28270335.37 | D36: 28311834.42 | E36: 28878029.32 | F36: 29541797.44 | G36: 30135399.55 | H36: 30733819.2
A37: Missouri……………………………………. | B37: 94320943.12 | C37: 94497065.93 | D37: 94876993.03 | E37: 96886142.82 | F37: 99000284.13 | G37: 101102044.9 | H37: 103229452.9
A38: Montana…………………………………… | B38: 19129871.15 | C38: 19147490.41 | D38: 19164690.9 | E38: 19519495.29 | F38: 20057165.57 | G38: 20431643.41 | H38: 20808806.09
A39: N. Mariana Islands…………………………. | B39: 811989.6361 | C39: 812130.8537 | D39: 812300.8979 | E39: 819114.8007 | F39: 825964.4987 | G39: 833084.9072 | H39: 840214.0586
A40: Nebraska……………………………………. | B40: 23591336.99 | C40: 23593362.97 | D40: 23621720.35 | E40: 24100144.29 | F40: 24537165.16 | G40: 25036201.08 | H40: 25541208.45
A41: Nevada………………………………………. | B41: 57172865.62 | C41: 57170088.35 | D41: 57264254.24 | E41: 58478654.66 | F41: 59499671.67 | G41: 60764571.93 | H41: 62050220.84
A42: New Hampshire……………………………. | B42: 15671744.12 | C42: 15677330.62 | D42: 15700871.99 | E42: 16013373.77 | F42: 16287647.59 | G42: 16613382.33 | H42: 16943378.39
A43: New Jersey…………………………………. | B43: 573263437 | C43: 496369751.5 | D43: 499247928.5 | E43: 509679386.1 | F43: 518688832.3 | G43: 529559007.5 | H43: 540592571.9
A44: New Mexico………………………………… | B44: 43810139.3 | C44: 43843293.86 | D44: 43951327.81 | E44: 44853492.01 | F44: 45774861.3 | G44: 46717891.2 | H44: 47673574.7
A45: New York……………………………………. | B45: 1342157884 | C45: 1286614738 | D45: 1298094549 | E45: 1325067994 | F45: 1349621639 | G45: 1377854093 | H45: 1406305465
A46: North Carolina…………………………………… | B46: 114759873 | C46: 114787836.7 | D46: 114969564.5 | E46: 117401311.5 | F46: 119647656.1 | G46: 122190356.5 | H46: 124762736.7
A47: North Dakota………………………………. | B47: 13689173.6 | C47: 13704286.06 | D47: 13717063.22 | E47: 13971978.73 | F47: 14449046.34 | G47: 14719959.35 | H47: 14993697.73
A48: Ohio………………………………………… | B48: 174852835.7 | C48: 175101634 | D48: 175747530.5 | E48: 179481005.4 | F48: 182883545.7 | G48: 186789530.5 | H48: 190737720.3
A49: Oklahoma…………………………………… | B49: 47171865.08 | C49: 47187489.41 | D49: 47248999.04 | E49: 48080686.45 | F49: 48831107.24 | G49: 49698437.87 | H49: 50575326.92
A50: Oregon………………………………………. | B50: 93960862.6 | C50: 94142548.98 | D50: 94548055.61 | E50: 96529550.9 | F50: 98481409.68 | G50: 100552690.4 | H50: 102650075.3
A51: Pennsylvania………………………………. | B51: 387365824.9 | C51: 388931651.7 | D51: 391910030.7 | E51: 400021472.5 | F51: 409031439.9 | G51: 417529069.9 | H51: 426119599
A52: Puerto Rico…………………………………. | B52: 67260622.84 | C52: 67396161.9 | D52: 67626436.65 | E52: 69072651.1 | F52: 71025786.5 | G52: 72547284.47 | H52: 74093358.97
A53: Rhode Island……………………………… | B53: 36370776.72 | C53: 27604371.01 | D53: 27695085.81 | E53: 28256636.56 | F53: 28725215.7 | G53: 29310044.8 | H53: 29904670.37
A54: South Carolina……………………………… | B54: 46830050.12 | C54: 46853125.57 | D54: 46937710 | E54: 47923956.33 | F54: 48865287.05 | G54: 49894855.19 | H54: 50937533.36
A55: South Dakota………………………………. | B55: 15500615.73 | C55: 15508726.24 | D55: 15522436.85 | E55: 15783973.7 | F55: 16098609.42 | G55: 16372969.29 | H55: 16649584.13
A56: Tennessee…………………………………. | B56: 85414173.84 | C56: 85461861.01 | D56: 85646102 | E56: 87439590.27 | F56: 89066098.43 | G56: 90936612.28 | H56: 92833071.67
A57: Texas………………………………………… | B57: 415592412.5 | C57: 415867964.5 | D57: 416891004.3 | E57: 425884731.7 | F57: 433597675.5 | G57: 443096076.5 | H57: 452617817.1
A58: Utah…………………………………………. | B58: 70692670.57 | C58: 70754181.01 | D58: 70940064.48 | E58: 72424926.86 | F58: 73861366.88 | G58: 75426044.06 | H58: 77002159.33
A59: Vermont…………………………………… | B59: 8370585.237 | C59: 8392817.77 | D59: 8401812.892 | E59: 8555645.338 | F59: 9036614.852 | G59: 9204066.127 | H59: 9373047.479
A60: Virgin Islands……………………………… | B60: 1843783.167 | C60: 1845096.729 | D60: 1848526.254 | E60: 1877943.543 | F60: 1901863.919 | G60: 1932488.07 | H60: 1963663.671
A61: Virginia………………………………………. | B61: 161234228.2 | C61: 161273511.1 | D61: 161456558.4 | E61: 164878999.5 | F61: 169026974.8 | G61: 172639371.5 | H61: 176295028.7
A62: Washington………………………………… | B62: 231768948 | C62: 232603490 | D62: 233750389.8 | E62: 238677789 | F62: 244310899.3 | G62: 249686273 | H62: 254927913.3
A63: West Virginia……………………………… | B63: 24824408.33 | C63: 24882243.79 | D63: 24938642.19 | E63: 25408464.74 | F63: 26410556.43 | G63: 26912389.14 | H63: 27419606.88
A64: Wisconsin………………………………… | B64: 80216786.92 | C64: 80277296.63 | D64: 80407746.04 | E64: 82093034.75 | F64: 84424943.24 | G64: 86199112.42 | H64: 87999281.34
A65: Wyoming…………………………………. | B65: 10937600.01 | C65: 10941042.98 | D65: 10949767.15 | E65: 11158049.59 | F65: 11357322.3 | G65: 11574762.99 | H65: 11793449.05
A66: Unallocated………………. | B66: 0 | C66: 0 | D66: 0 | E66: 0 | F66: 0 | G66: 0 | H66: 0
A67: Subtotal | B67: 8482130936 | C67: 8251087238 | D67: 8296411915 | E67: 8470110759 | F67: 8644715781 | G67: 8826225164 | H67: 9010159784
A68: Oversight | B68: 54195663.88 | C68: 57410252.82 | D68: 57732576.07 | E68: 58939096.15 | F68: 60151913.49 | G68: 61412685.58 | H68: 62691029.46
A69: Oversight (2) | C69: =C68-C84 -> 60853361.85 | D69: 61175685.1 | E69: 62349827.36 | F69: 63530096.25 | G69: 64757034.32 | H69: 63779187.04
B70: 0 | C70: 0 | D70: 0 | E70: 0 | F70: 0 | G70: 0 | H70: 0
A71: Subtotal | B71: 8536326600 | C71: 8308497491 | D71: 8354144491 | E71: 8529049855 | F71: 8704867694 | G71: 8887637849 | H71: 9072850813
A72: Ferry discretionary Program | B72: 30000000 | C72: 30000000 | D72: 30000000 | E72: 30000000 | F72: 30000000 | G72: 30000000 | H72: 30000000
A73: Tribal discretionary Program | B73: 5000000 | C73: 5000000 | D73: 5000000 | E73: 5000000 | F73: 5000000 | G73: 5000000 | H73: 5000000
A74: National RTAP | B74: 1823400 | C74: 1823400 | D74: 1823400 | E74: 1860414 | F74: 1897623 | G74: 1936302 | H74: 1975029
A75: Bus discretionary - underlying | B75: 0 | C75: 90000000 | D75: 200000000 | E75: 200000000 | F75: 200000000 | G75: 200000000 | H75: 200000000
A76: Bus discr. - H-B amendment | B76: 0 | C76: 262950000 | D76: 262950000 | E76: 268288000 | F76: 273653500 | G76: 279231500 | H76: 284816000
A77: Bus Discretionary TOTAL | B77: 0 | C77: 352950000 | D77: 462950000 | E77: 468288000 | F77: 473653500 | G77: 479231500 | H77: 484816000
A78: Transit Oriented Development | B78: 10000000 | C78: 10000000 | D78: 10000000 | E78: 10000000 | F78: 10000000 | G78: 10000000 | H78: 10000000
A79: National Transit Database | B79: 3850000 | C79: 3850000 | D79: 3850000 | E79: 3850000 | F79: 3850000 | G79: 3850000 | H79: 3850000
A80: National Transit Institute | B80: 5000000 | C80: 5000000 | D80: 5000000 | E80: 5000000 | F80: 5000000 | G80: 5000000 | H80: 5000000
A81: Bus Testing | B81: 3000000 | C81: 3000000 | D81: 3000000 | E81: 3000000 | F81: 3000000 | G81: 3000000 | H81: 3000000
A82: Total | B82: =B71+SUM(B72:B81) -> 8595000000 | C82: =C71+C72+C73+C74+C77+C78+C79+C80+C81 -> 8720120891 | D82: =D71+D72+D73+D74+D77+D78+D79+D80+D81 -> 8875767891 | E82: =E71+E72+E73+E74+E77+E78+E79+E80+E81 -> 9056048269 | F82: 9237268817 | G82: 9425655651 | H82: 9616491842
A83: TF | B83: 8595000000 | C83: 8723564000 | D83: 8879211000 | E83: 9059459000 | F83: 9240647000 | G83: 9429000000 | H83: 9617580000
A84: Differential | B84: 0 | C84: =C82-C83 -> -3443109.033 | D84: -3443109.033 | E84: -3410731.211 | F84: -3378182.755 | G84: -3344348.743 | H84: -1088157.581
C85: =C67+C69+C72+C73+C74+C77+C78+C79+C80+C81 -> 8723564000

Sheet FY 17
A1: FEDERAL TRANSIT ADMINISTRATION
A3: FISCAL YEAR 2017 ESTIMATED APPORTIONMENTS/ALLOCATIONS BY STATE FOR SELECTED FTA PROGRAMS
C5: The information in this table include allocations for formula programs apportioned via FTA's Apportionment Notice Published on March 10, 2014 as well as Discretionary Program allocations announced in Federal Register Announcements in 2014. For allocations under the Public Transportation Emergency Relief Program, Please Contact the FTA Office of Program Management at 202-366-4020
C6: Section 5303 | E6: Section 5304 | G6: Section 5307 + 5340 | I6: Section 5329 (e) | K6: Section 5310 | M6: Section 5311 + 5340 | O6: Section 5311(b)(3) | Q6: Section 5311(c)(2) | S6: Section 5311(c)(1)
B8: Metropolitan Planning | C8: Metropolitan | D8: Statewide Planning | E8: Statewide | F8: Urban | G8: Urbanized Area | H8: SSO | I8: State Safety | J8: 5310 | K8: Enhanced Mobility for | L8: 5311 | M8: Nonurbanized Area | N8: RTAP | P8: App | Q8: Appalachian Dev. Public | R8: Indian | S8: Indian Reserv. | T8: SGR | U8: High Intensity | V8: HIMB | W8: High Intensity | X8: 5339 | Y8: Bus and Bus | Z8: Statewide
A9: State | B9: Percentage | C9: Planning | D9: Percentage | E9: Planning | F9: Percentage | G9: Formula | H9: Percentqage | I9: Oversight Program | J9: Percentage | K9: Older Adults and People with Disabilities | L9: Percentage | M9: Formula | N9: Percentage | O9: RTAP | P9: Percentage | Q9: Trans. Assist. Program | R9: Percentage | S9: Formula | T9: Percentage | U9: Fixed Guideway | V9: Percentage | W9: MotorBus | X9: Percentage | Y9: Facilities Formula | Z9: Allocation | AA9: 5339 Total | AB9: State Total
A10: Alabama…………………………………… | B10: 0.007971166334 | C10: =B10*C$67 -> 875201.0567 | D10: 0.009962715709 | E10: =D10*E$67 -> 228505.6336 | F10: 0.004831867444 | G10: =F10*G$67 -> 24191883.16 | H10: 0 | I10: =H10*I$67 -> 0 | J10: 0.01631521576 | K10: =J10*K$67 -> 4353998.33 | L10: 0.02486553856 | M10: =L10*M$67 -> 15940230.32 | N10: 0.0249182639 | O10: =N10*O$67 -> 267872.2599 | P10: 0.25 | Q10: =P10*Q$67 -> 5000000 | R10: 7.44e-06 | S10: =R10*S$67 -> 223.2 | T10: 0 | U10: =T10*U$67 -> 0 | V10: 0 | W10: =V10*W$67 -> 0 | X10: 0.006682205509 | Y10: =X10*Y$67 -> 2274999.164 | Z10: 1750000 | AA10: =SUM(Y10+Z10) -> 4024999.164 | AB10: =SUM(C10+E10+G10+I10+K10+M10+O10+Q10+S10+U10+W10+AA10) -> 54882913.12
A11: Alaska………………………………………. | B11: 0.004000000788 | C11: =B11*C$67 -> 439183.5234 | D11: 0.004999711707 | E11: 114673.7822 | F11: 0.003381245737 | G11: =F11*G$67 -> 16929003.69 | H11: 0 | I11: =H11*I$67 -> 0 | J11: 0.001491093777 | K11: =J11*K$67 -> 397924.239 | L11: 0.01310523456 | M11: =L11*M$67 -> 8401203.807 | N11: 0.009144419019 | O11: =N11*O$67 -> 98302.84316 | P11: 0 | Q11: =P11*Q$67 -> 0 | R11: 0.01486264 | S11: =R11*S$67 -> 445879.2 | T11: 0.009551267246 | U11: =T11*U$67 -> 23415005.25 | V11: 0 | W11: =V11*W$67 -> 0 | X11: 0.001748402086 | Y11: =X11*Y$67 -> 595254.5575 | Z11: 1750000 | AA11: =SUM(Y11+Z11) -> 2345254.558 | AB11: =SUM(C11+E11+G11+I11+K11+M11+O11+Q11+S11+U11+W11+AA11) -> 52586430.89
A12: American Samoa……………………………. | B12: 0 | C12: 0 | D12: 0 | E12: 0 | G12: 0 | H12: 0 | I12: 0 | J12: 4.635198678e-05 | K12: 12369.8317 | L12: 0.0004854920731 | M12: 311228.1459 | N12: 0.001367206618 | O12: 14697.52179 | P12: 0 | Q12: 0 | R12: 0 | S12: 0 | T12: 0 | U12: 0 | V12: 0 | W12: 0 | X12: 0 | Y12: 0 | Z12: 500000 | AA12: 500000 | AB12: 838295.4994
A13: Arizona………………………………………. | B13: 0.02296302448 | C13: 2521245.004 | D13: 0.02192702709 | E13: 502920.0236 | F13: 0.01536407241 | G13: 76923849.59 | H13: 0.01924905521 | I13: 445585.1966 | J13: 0.02164952 | K13: 5777549.947 | L13: 0.01877265824 | M13: 12034346.06 | N13: 0.0158810583 | O13: 170721.965 | P13: 0 | Q13: 0 | R13: 0.06155668 | S13: 1846700.4 | T13: 0.000163793874 | U13: 401541.9442 | V13: 0.03591739399 | W13: 2609958.805 | X13: 0.0209724611 | Y13: 7140207.138 | Z13: 1750000 | AA13: 8890207.138 | AB13: 112124626.1
A14: Arkansas……………………………………. | B14: 0.004012067863 | C14: 440508.4383 | D14: 0.005057894075 | E14: 116008.2576 | F14: 0.002600280405 | G14: 13018916.69 | H14: 0.01010808204 | I14: 233986.1191 | J14: 0.009648577367 | K14: 2574890.235 | L14: 0.01934206344 | M14: 12399367.31 | N14: 0.01962438938 | O14: 210962.9127 | P14: 0 | Q14: 0 | R14: 0 | S14: 0 | T14: 0.0001319452713 | U14: 323464.8493 | V14: 0 | W14: 0 | X14: 0.003565206949 | Y14: 1213797.273 | Z14: 1750000 | AA14: 2963797.273 | AB14: 32281902.1
A15: California………………………………… | B15: 0.1499952909 | C15: 16468861.85 | D15: 0.1432202417 | E15: 3284910.766 | F15: 0.1604818017 | G15: 803489963.2 | H15: 0.1274520314 | I15: 2950313.035 | J15: 0.1103755967 | K15: 29455642.55 | L15: 0.04451564785 | M15: 28537072.62 | N15: 0.03542291784 | O15: 380797.6788 | P15: 0 | Q15: 0 | R15: 0.0212738 | S15: 638214 | T15: 0.154026701 | U15: 377597644.2 | V15: 0.2394678438 | W15: 17401073.36 | X15: 0.1808413205 | Y15: 61568572.29 | Z15: 1750000 | AA15: 63318572.29 | AB15: 1343523066
A16: Colorado……………………………………. | B16: 0.01679617675 | C16: 1844150.658 | D16: 0.01656154776 | E16: 379856.9662 | F16: 0.01515222898 | G16: 75863205.53 | H16: 0.02364576722 | I16: 547362.1288 | J16: 0.01445304974 | K16: 3857047.027 | L16: 0.01779622779 | M16: 11408398.38 | N16: 0.01503484483 | O16: 161625.1388 | P16: 0 | Q16: 0 | R16: 0.00609984 | S16: 182995.2 | T16: 0.005758380688 | U16: 14116714.62 | V16: 0.00587978619 | W16: 427258.1619 | X16: 0.01874620298 | Y16: 6382263.468 | Z16: 1750000 | AA16: 8132263.468 | AB16: 116920877.3
A17: Connecticut……………………………… | B17: 0.01039382401 | C17: 1141198.838 | D17: 0.01299046852 | E17: 297950.4111 | F17: 0.0192803977 | G17: 96531855.22 | H17: 0 | I17: 0 | J17: 0.01225706319 | K17: 3271009.925 | L17: 0.004753373426 | M17: 3047183.837 | N17: 0.01027496473 | O17: 110456.2515 | P17: 0 | Q17: 0 | R17: 0 | S17: 0 | T17: 0.02381332166 | U17: 58378541.53 | V17: 0.01362787676 | W17: 990277.7732 | X17: 0.01155847235 | Y17: 3935155.077 | Z17: 1750000 | AA17: 5685155.077 | AB17: 169453628.9
A18: Delaware……………………………………. | B18: 0.004000000788 | C18: 439183.5234 | D18: 0.004999711707 | E18: 114673.7822 | F18: 0.00396426939 | G18: 19848049.02 | H18: 0 | I18: 0 | J18: 0.003156320168 | K18: 842318.7866 | L18: 0.002713040228 | M18: 1739213.731 | N18: 0.008275123576 | O18: 88957.88495 | P18: 0 | Q18: 0 | R18: 0 | S18: 0 | T18: 0 | U18: 0 | V18: 0 | W18: 0 | X18: 0.002580878463 | Y18: 878676.4097 | Z18: 1750000 | AA18: 2628676.41 | AB18: 25701073.14
A19: District of Columbia………………………. | B19: 0.004000000788 | C19: 439183.5234 | D19: 0.004999711707 | E19: 114673.7822 | F19: 0.00423719201 | G19: 21214500.44 | H19: 0.08022275801 | I19: 1857030.021 | J19: 0.00144302505 | K19: 385096.2653 | L19: 0 | M19: 0 | N19: 0 | O19: 0 | P19: 0 | Q19: 0 | R19: 0 | S19: 0 | T19: 0.07014426217 | U19: 171959199.2 | V19: 0.0766135825 | W19: 5567171.558 | X19: 0.003529031997 | Y19: 1201481.282 | Z19: 500000 | AA19: 1701481.282 | AB19: 203238336.1
A20: Florida………………………………………. | B20: 0.07206520079 | C20: 7912460.641 | D20: 0.07043658731 | E20: 1615539.125 | F20: 0.05201352755 | G20: 260417984.5 | H20: 0.03410368609 | I20: 789446.4175 | J20: 0.0797727053 | K20: 21288730.15 | L20: 0.02529910643 | M20: 16218172.09 | N20: 0.02420573746 | O20: 260212.5743 | P20: 0 | Q20: 0 | R20: 0 | S20: 0 | T20: 0.01782058362 | U20: 43687298.06 | V20: 0.02226598741 | W20: 1617971.224 | X20: 0.06676305109 | Y20: 22729903.35 | Z20: 1750000 | AA20: 24479903.35 | AB20: 378287718.1
A21: Georgia……………………………………… | B21: 0.02845664015 | C21: 3124421.256 | D21: 0.02713904115 | E21: 622463.1894 | F21: 0.01849349634 | G21: 92592048.09 | H21: 0.03788671459 | I21: 877017.5465 | J21: 0.0264952058 | K21: 7070705.254 | L21: 0.03418615713 | M21: 21915279.13 | N21: 0.03180187412 | O21: 341871.3248 | P21: 0.0296 | Q21: 592000 | R21: 0 | S21: 0 | T21: 0.01903536017 | U21: 46665332.12 | V21: 0.05226137704 | W21: 3797604.058 | X21: 0.02124507764 | Y21: 7233021.165 | Z21: 1750000 | AA21: 8983021.165 | AB21: 186581763.1
A22: Guam………………………………………… | B22: 0 | C22: 0 | D22: 0 | E22: 0 | G22: 0 | H22: 0 | I22: 0 | J22: 0.0001754881403 | K22: 46832.05428 | L22: 0.001272349871 | M22: 815648.9328 | N22: 0.002162357105 | O22: 23245.41897 | P22: 0 | Q22: 0 | R22: 0 | S22: 0 | T22: 0 | U22: 0 | V22: 0 | W22: 0 | X22: 0 | Y22: 0 | Z22: 500000 | AA22: 500000 | AB22: 1385726.406
A23: Hawaii………………………………………. | B23: 0.004000000788 | C23: 439183.5234 | D23: 0.004999711707 | E23: 114673.7822 | F23: 0.006302367045 | G23: 31554285.99 | H23: 0.009674363316 | I23: 223946.2163 | J23: 0.004395293938 | K23: 1172960.428 | L23: 0.004336002151 | M23: 2779625.013 | N23: 0.00909655925 | O23: 97788.34887 | P23: 0 | Q23: 0 | R23: 0 | S23: 0 | T23: 0.0001238573054 | U23: 303637.1386 | V23: 0.01470165912 | W23: 1068304.807 | X23: 0.01036615936 | Y23: 3529224.57 | Z23: 1750000 | AA23: 5279224.57 | AB23: 43033629.82
A24: Idaho…………………………………………. | B24: 0.004000000788 | C24: 439183.5234 | D24: 0.004999711707 | E24: 114673.7822 | F24: 0.002116290274 | G24: 10595706.03 | H24: 0 | I24: 0 | J24: 0.005271798589 | K24: 1406870.898 | L24: 0.01238669807 | M24: 7940580.885 | N24: 0.01206395912 | O24: 129688.0074 | P24: 0 | Q24: 0 | R24: 0.04141664 | S24: 1242499.2 | T24: 0 | U24: 0 | V24: 0 | W24: 0 | X24: 0.003019350304 | Y24: 1027956.924 | Z24: 1750000 | AA24: 2777956.924 | AB24: 24647159.25
A25: Illinois……………………………………… | B25: 0.04770455379 | C25: 5237762.472 | D25: 0.04396164573 | E25: 1008307.775 | F25: 0.05534316814 | G25: 277088614.9 | H25: 0.0770149709 | I25: 1782774.821 | J25: 0.03788746303 | K25: 10110926.71 | L25: 0.02607866962 | M25: 16717916.61 | N25: 0.02580291592 | O25: 277382.3019 | P25: 0 | Q25: 0 | R25: 0 | S25: 0 | T25: 0.104631839 | U25: 256505759.4 | V25: 0 | W25: 0 | X25: 0.04406262923 | Y25: 15001401.04 | Z25: 1750000 | AA25: 16751401.04 | AB25: 585480846
A26: Indiana……………………………………… | B26: 0.01626858471 | C26: 1786223.237 | D26: 0.01643776291 | E26: 377017.8273 | F26: 0.01158624385 | G26: 58009260.54 | H26: 0 | I26: 0 | J26: 0.02057800609 | K26: 5491597.873 | L26: 0.02570824681 | M26: 16480454.43 | N26: 0.02639456818 | O26: 283742.5856 | P26: 0 | Q26: 0 | R26: 0 | S26: 0 | T26: 0.001106916121 | U26: 2713613.4 | V26: 0 | W26: 0 | X26: 0.01306697334 | Y26: 4448733.788 | Z26: 1750000 | AA26: 6198733.788 | AB26: 91340643.68
A27: Iowa…………………………………………. | B27: 0.004350021032 | C27: =B27*C$67 -> 477614.2968 | D27: 0.005436843301 | E27: 124699.867 | F27: 0.004173723365 | G27: 20896729.71 | H27: 0 | I27: 0 | J27: 0.009289615525 | K27: 2479095.041 | L27: 0.01965541976 | M27: 12600246.61 | N27: 0.0197339581 | O27: 212140.7805 | P27: 0 | Q27: 0 | R27: 0 | S27: 0 | T27: 0 | U27: 0 | V27: 0 | W27: 0 | X27: 0.005530684206 | Y27: 1882956.447 | Z27: 1750000 | AA27: 3632956.447 | AB27: 40423482.76
A28: Kansas………………………………………. | B28: 0.00589772193 | C28: 647545.4468 | D28: 0.006132892981 | E28: 140664.5173 | F28: 0.003658007758 | G28: 18314677.98 | H28: 0 | I28: 0 | J28: 0.008196292795 | K28: 2187322.906 | L28: 0.01770502652 | M28: 11349933.15 | N28: 0.01701019083 | O28: 182860.1815 | P28: 0 | Q28: 0 | R28: 0.00358388 | S28: 107516.4 | T28: 0 | U28: 0 | V28: 0 | W28: 0 | X28: 0.004932716583 | Y28: 1679374.585 | Z28: 1750000 | AA28: 3429374.585 | AB28: 36359895.17
A29: Kentucky…………………………………… | B29: 0.006586689984 | C29: 723191.2863 | D29: 0.007620057003 | E29: 174774.2287 | F29: 0.005133758067 | G29: 25703369.72 | H29: 0 | I29: 0 | J29: 0.01327687682 | K29: 3543164.88 | L29: 0.02693413172 | M29: 17266316.67 | N29: 0.02573310472 | O29: 276631.8289 | P29: 0.0882 | Q29: 1764000 | R29: 0 | S29: 0 | T29: 0 | U29: 0 | V29: 0 | W29: 0 | X29: 0.007234698109 | Y29: 2463098.767 | Z29: 1750000 | AA29: 4213098.767 | AB29: 53664547.38
A30: Louisiana……………………………………. | B30: 0.009531262728 | C30: 1046493.181 | D30: 0.01191258887 | E30: 273228.0784 | F30: 0.007041565377 | G30: 35255256.65 | H30: 0.01296410348 | I30: 300098.5003 | J30: 0.01566300206 | K30: 4179943.79 | L30: 0.01841591101 | M30: 11805650.72 | N30: 0.01954694699 | O30: 210130.4042 | P30: 0 | Q30: 0 | R30: 0 | S30: 0 | T30: 0.001657168917 | U30: 4062562.369 | V30: 0.00634620524 | W30: 461150.7798 | X30: 0.0095044024 | Y30: 3235833.96 | Z30: 1750000 | AA30: 4985833.96 | AB30: 62580348.43
A31: Maine………………………………………… | B31: 0.004000000788 | C31: 439183.5234 | D31: 0.004999711707 | E31: 114673.7822 | F31: 0.002710310389 | G31: 13569807.74 | H31: 0 | I31: 0 | J31: 0.004267874525 | K31: 1138956.348 | L31: 0.01107464745 | M31: 7099481.506 | N31: 0.01362976493 | O31: 146520.4779 | P31: 0 | Q31: 0 | R31: 0.00209244 | S31: 62773.2 | T31: 0.003293485409 | U31: 8074004.856 | V31: 0 | W31: 0 | X31: 0.001306281335 | Y31: 444731.7492 | Z31: 1750000 | AA31: 2194731.749 | AB31: 32840133.19
A32: Maryland……………………………………. | B32: 0.02250815393 | C32: 2471302.101 | D32: 0.02066347017 | E32: 473938.9824 | F32: 0.03175999988 | G32: 159013924.8 | H32: 0.02726192906 | I32: 631070.5585 | J32: 0.01750911927 | K32: 4672612.191 | L32: 0.008915532193 | M32: 5715365.313 | N32: 0.01340356158 | O32: 144088.7834 | P32: 0.0318 | Q32: 636000 | R32: 0 | S32: 0 | T32: 0.02482051546 | U32: 60847684.89 | V32: 0 | W32: 0 | X32: 0.02295667356 | Y32: 7815744.829 | Z32: 1750000 | AA32: 9565744.829 | AB32: 244171732.4
A33: Massachusetts……………………………. | B33: 0.02676146946 | C33: 2938298.534 | D33: 0.02533285618 | E33: 581036.3883 | F33: 0.03993096505 | G33: 199923787.6 | H33: 0.05152604488 | I33: 1192746.48 | J33: 0.0226064318 | K33: 6032918.458 | L33: 0.005895471338 | M33: 3779333.825 | N33: 0.01098570114 | O33: 118096.6942 | P33: 0 | Q33: 0 | R33: 0 | S33: 0 | T33: 0.05766606083 | U33: 141368792.4 | V33: 0.0007119252628 | W33: 51732.47282 | X33: 0.02332246484 | Y33: 7940280.787 | Z33: 1750000 | AA33: 9690280.787 | AB33: 365677023.7
A34: Michigan……………………………………. | B34: 0.02806427254 | C34: 3081340.918 | D34: 0.02810688498 | E34: 644661.7319 | F34: 0.01791950883 | G34: 89718244.32 | H34: 0.01304973479 | I34: 302080.7296 | J34: 0.03407517331 | K34: 9093551.067 | L34: 0.03338673791 | M34: 21402805.76 | N34: 0.03157293862 | O34: 339410.2596 | P34: 0 | Q34: 0 | R34: 0.0014982 | S34: 44946 | T34: 0.0005126279629 | U34: 1256711.401 | V34: 0 | W34: 0 | X34: 0.0258222891 | Y34: 8791361.78 | Z34: 1750000 | AA34: 10541361.78 | AB34: 136425114
A35: Minnesota…………………………………. | B35: 0.01450272874 | C35: 1592339.563 | D35: 0.01317920113 | E35: 302279.197 | F35: 0.01242420188 | G35: 62204694.91 | H35: 0.01412113532 | I35: 326881.9582 | J35: 0.01422662258 | K35: 3796621.011 | L35: 0.02494488507 | M35: 15991095.97 | N35: 0.02318362992 | O35: 249224.8804 | P35: 0 | Q35: 0 | R35: 0.06497376 | S35: 1949212.8 | T35: 0.002988328432 | U35: 7325910.177 | V35: 0.1096095253 | W35: 7964841.374 | X35: 0.01476922899 | Y35: 5028277.5 | Z35: 1750000 | AA35: 6778277.5 | AB35: 108481379.3
A36: Mississippi…………………………………. | B36: 0.004000000788 | C36: 439183.5234 | D36: 0.004999711707 | E36: 114673.7822 | F36: 0.001738577022 | G36: 8704595.62 | H36: 0 | I36: 0 | J36: 0.008044116589 | K36: 2146712.046 | L36: 0.02259996171 | M36: 14487866.17 | N36: 0.02257012045 | O36: 242629.6308 | P36: 0.0127 | Q36: 254000 | R36: 0.03018832 | S36: 905649.6 | T36: 0 | U36: 0 | V36: 0 | W36: 0 | X36: 0.002261756835 | Y36: 770029.4313 | Z36: 1750000 | AA36: 2520029.431 | AB36: 29815339.8
A37: Missouri……………………………………. | B37: 0.01555399055 | C37: 1707763.757 | D37: 0.01452464111 | E37: 333138.3145 | F37: 0.01003576382 | G37: 50246416.87 | H37: 0.03017316901 | I37: 698461.1609 | J37: 0.01891439157 | K37: 5047633.481 | L37: 0.02828471879 | M37: 18132120.12 | N37: 0.02602431446 | O37: 279762.3444 | P37: 0 | Q37: 0 | R37: 0 | S37: 0 | T37: 0.007125340215 | U37: 17467826.44 | V37: 0.0004136178801 | W37: 30055.78936 | X37: 0.01248070993 | Y37: 4249136.7 | Z37: 1750000 | AA37: 5999136.7 | AB37: 99942314.98
A38: Montana…………………………………… | B38: 0.004000000788 | C38: 439183.5234 | D38: 0.004999711707 | E38: 114673.7822 | F38: 0.0009200728779 | G38: 4606561.711 | H38: 0 | I38: 0 | J38: 0.003248651275 | K38: 866958.9441 | L38: 0.0161071082 | M38: 10325576.25 | N38: 0.01169285749 | O38: 125698.6511 | P38: 0 | Q38: 0 | R38: 0.06420504 | S38: 1926151.2 | T38: 0 | U38: 0 | V38: 0 | W38: 0 | X38: 0.001153552305 | Y38: 392734.1841 | Z38: 1750000 | AA38: 2142734.184 | AB38: 20547538.25
A39: N. Mariana Islands…………………………. | B39: 0 | C39: 0 | D39: 0 | E39: 0 | G39: 0 | H39: 0 | I39: 0 | J39: 3.662638138e-05 | K39: 9774.385194 | L39: 0.0004673274972 | M39: 299583.6153 | N39: 0.001354770616 | O39: 14563.8343 | P39: 0 | Q39: 0 | R39: 0 | S39: 0 | T39: 0 | U39: 0 | V39: 0 | W39: 0 | X39: 0 | Y39: 0 | Z39: 500000 | AA39: 500000 | AB39: 823921.8348
A40: Nebraska……………………………………. | B40: 0.004000000788 | C40: 439183.5234 | D40: 0.004999711707 | E40: 114673.7822 | F40: 0.002310874601 | G40: 11569938.33 | H40: 0 | I40: 0 | J40: 0.004774833359 | K40: 1274247.106 | L40: 0.01234123408 | M40: 7911435.868 | N40: 0.01258768442 | O40: 135318.0738 | P40: 0 | Q40: 0 | R40: 0.01868076 | S40: 560422.8 | T40: 0 | U40: 0 | V40: 0 | W40: 0 | X40: 0.003370902981 | Y40: 1147645.258 | Z40: 1750000 | AA40: 2897645.258 | AB40: 24902864.74
A41: Nevada………………………………………. | B41: 0.01082489821 | C41: 1188529 | D41: 0.01000950603 | E41: 229578.8202 | F41: 0.008289343325 | G41: 41502551.03 | H41: 0 | I41: 0 | J41: 0.008020575497 | K41: 2140429.697 | L41: 0.01039093463 | M41: 6661182.537 | N41: 0.008913599268 | O41: 95821.5223 | P41: 0 | Q41: 0 | R41: 0.00338348 | S41: 101504.4 | T41: 0.0009858635436 | U41: 2416852.073 | V41: 0 | W41: 0 | X41: 0.01074640236 | Y41: 3658680.707 | Z41: 1750000 | AA41: 5408680.707 | AB41: 59745129.79
A42: New Hampshire……………………………. | B42: 0.004000000788 | C42: 439183.5234 | D42: 0.004999711707 | E42: 114673.7822 | F42: 0.00166707193 | G42: 8346588.522 | H42: 0 | I42: 0 | J42: 0.004287477213 | K42: 1144187.665 | L42: 0.006339084466 | M42: 4063715.176 | N42: 0.01143264355 | O42: 122901.3416 | P42: 0 | Q42: 0 | R42: 0 | S42: 0 | T42: 0 | U42: 0 | V42: 0 | W42: 0 | X42: 0.001980271738 | Y42: 674196.0484 | Z42: 1750000 | AA42: 2424196.048 | AB42: 16655446.06
A43: New Jersey…………………………………. | B43: 0.03871707888 | C43: =B43*C$67 -> 4250974.942 | D43: 0.03474674586 | E43: 796954.1049 | F43: 0.080404862 | G43: 402565891.9 | H43: 0.04043515414 | I43: 936009.8932 | J43: 0.02776177558 | K43: 7408711.372 | L43: 0.00613516515 | M43: 3932991.248 | N43: 0.01134596838 | O43: 121969.5803 | P43: 0 | Q43: 0 | R43: 0 | S43: 0 | T43: 0.0706308469 | U43: 173152065.4 | V43: 0 | W43: 0 | X43: 0.04593402945 | Y43: 15638531.09 | Z43: 1750000 | AA43: 17388531.09 | AB43: 610554099.5
A44: New Mexico………………………………… | B44: 0.004000000788 | C44: 439183.5234 | D44: 0.004999711707 | E44: 114673.7822 | F44: 0.004937256378 | G44: 24719537.69 | H44: 0 | I44: 0 | J44: 0.006686221659 | K44: 1784334.229 | L44: 0.01664801735 | M44: 10672329.91 | N44: 0.01341712813 | O44: 144234.6243 | P44: 0 | Q44: 0 | R44: 0.024074 | S44: 722220 | T44: 0.001814595314 | U44: 4448494.394 | V44: 0 | W44: 0 | X44: 0.004643567055 | Y44: 1580931.798 | Z44: 1750000 | AA44: 3330931.798 | AB44: 46375939.95
A45: New York……………………………………. | B45: 0.07311576822 | C45: 8027808.595 | D45: 0.06862944209 | E45: 1574090.299 | F45: 0.1338097182 | G45: 669949891.1 | H45: 0.1052297893 | I45: 2435903.261 | J45: 0.06097806219 | K45: 16273053.62 | L45: 0.03316471385 | M45: 21260475.66 | N45: 0.03185218341 | O45: 342412.1514 | P45: 0.01 | Q45: 200000 | R45: 0.00227624 | S45: 68287.2 | T45: 0.2894780333 | U45: 709657629 | V45: 0.112080818 | W45: 8144419.329 | X45: 0.09079598492 | Y45: 30912067.81 | Z45: 1750000 | AA45: 32662067.81 | AB45: 1470596038
A46: North Carolina…………………………………… | B46: 0.01970086059 | C46: 2163072.916 | D46: 0.02241980949 | E46: 514222.5195 | F46: 0.01384363267 | G46: 69311409.7 | H46: 0.01524434526 | I46: 352882.4926 | J46: 0.02804378318 | K46: 7483969.992 | L46: 0.04277804033 | M46: 27423166.96 | N46: 0.03907109465 | O46: 420015.7147 | P46: 0.0725 | Q46: 1450000 | R46: 0.02251676 | S46: 675502.8 | T46: 0.0002737632627 | U46: 671132.7479 | V46: 0.005943733368 | W46: 431904.9217 | X46: 0.01906145675 | Y46: 6489593.611 | Z46: 1750000 | AA46: 8239593.611 | AB46: 119136874.4
A47: North Dakota………………………………. | B47: 0.004000000788 | C47: 439183.5234 | D47: 0.004999711707 | E47: 114673.7822 | F47: 0.001026799393 | G47: 5140913.161 | H47: 0 | I47: 0 | J47: 0.002242765777 | K47: 598520.9507 | L47: 0.008266730347 | M47: 5299446.275 | N47: 0.009213759156 | O47: 99048.2522 | P47: 0 | Q47: 0 | R47: 0.029133 | S47: 873990 | T47: 0 | U47: 0 | V47: 0 | W47: 0 | X47: 0.001287896771 | Y47: 438472.6079 | Z47: 1750000 | AA47: 2188472.608 | AB47: 14754248.55
A48: Ohio………………………………………… | B48: 0.032451968 | C48: 3563091.71 | D48: 0.03228222281 | E48: 740427.6097 | F48: 0.02113809754 | G48: 105832867.3 | H48: 0.02472331311 | I48: 572305.6127 | J48: 0.03848134252 | K48: 10269413.75 | L48: 0.0368327098 | M48: 23611870.54 | N48: 0.03676723091 | O48: 395249.0941 | P48: 0.0482 | Q48: 964000 | R48: 0 | S48: 0 | T48: 0.01071756191 | U48: 26274185.6 | V48: 0.004046042299 | W48: 294008.071 | X48: 0.02719502364 | Y48: 9258717.942 | Z48: 1750000 | AA48: 11008717.94 | AB48: 183526137.2
A49: Oklahoma…………………………………… | B49: 0.005887850575 | C49: 646461.6129 | D49: 0.007358912886 | E49: 168784.6066 | F49: 0.003665991838 | G49: 18354652.16 | H49: 0 | I49: 0 | J49: 0.01124265614 | K49: 3000297.806 | L49: 0.02380868139 | M49: 15262724.52 | N49: 0.02169724494 | O49: 233246.1868 | P49: 0 | Q49: 0 | R49: 0.31196952 | S49: 9359085.6 | T49: 0 | U49: 0 | V49: 0 | W49: 0 | X49: 0.005072469887 | Y49: 1726954.482 | Z49: 1750000 | AA49: 3476954.482 | AB49: 50502206.97
A50: Oregon………………………………………. | B50: 0.01043003462 | C50: 1145174.612 | D50: 0.01025445685 | E50: 235197.0316 | F50: 0.01077720287 | G50: 53958606.2 | H50: 0.03237966649 | I50: 749538.0893 | J50: 0.01279385913 | K50: 3414263.231 | L50: 0.01931467508 | M50: 12381809.81 | N50: 0.01713266662 | O50: 184176.8007 | P50: 0 | Q50: 0 | R50: 0.03027016 | S50: 908104.8 | T50: 0.008498435299 | U50: 20833979.62 | V50: 0.001555089075 | W50: 113001.4729 | X50: 0.01296888143 | Y50: 4415337.774 | Z50: 1750000 | AA50: 6165337.774 | AB50: 100089189.4
A51: Pennsylvania………………………………. | B51: 0.03897942047 | C51: 4279778.962 | D51: 0.03846408849 | E51: 882215.3689 | F51: 0.03693583563 | G51: 184927966.3 | H51: 0.06449988225 | I51: 1493070.304 | J51: 0.04605574033 | K51: 12290773.19 | L51: 0.03477270168 | M51: 22291287.69 | N51: 0.03464623293 | O51: 372448.2873 | P51: 0.2394 | Q51: 4788000 | R51: 0 | S51: 0 | T51: 0.07135361551 | U51: 174923938.2 | V51: 0.004158507427 | W51: 302180.4165 | X51: 0.03710949684 | Y51: 12634163.1 | Z51: 1750000 | AA51: 14384163.1 | AB51: 420935821.8
A52: Puerto Rico…………………………………. | B52: 0.01479463748 | C52: 1624389.934 | D52: 0.01448142989 | E52: 332147.2188 | F52: 0.009683792701 | G52: 48484190.48 | H52: 0.01355903693 | I52: 313870.269 | J52: 0.01978096088 | K52: 5278892.532 | L52: 0.003123081313 | M52: 2002073.485 | N52: 0.008771809993 | O52: 94297.28234 | P52: 0 | Q52: 0 | R52: 0 | S52: 0 | T52: 0.003057760421 | U52: 7496123.232 | V52: 0 | W52: 0 | X52: 0.01256286394 | Y52: 4277106.551 | Z52: 500000 | AA52: 4777106.551 | AB52: 70403090.99
A53: Rhode Island……………………………… | B53: 0.004793650249 | C53: 526322.9479 | D53: 0.004999711707 | E53: 114673.7822 | F53: 0.005672398837 | G53: 28400201.68 | H53: 0 | I53: 0 | J53: 0.003747166233 | K53: 999996.3078 | L53: 0.001270385128 | M53: 814389.4202 | N53: 0.006893125651 | O53: 74101.35607 | P53: 0 | Q53: 0 | R53: 0 | S53: 0 | T53: 0.001771381067 | U53: 4342554.334 | V53: 0 | W53: 0 | X53: 0.003530579403 | Y53: 1202008.106 | Z53: 1750000 | AA53: 2952008.106 | AB53: 38224247.94
A54: South Carolina……………………………… | B54: 0.008947388951 | C54: 982386.2577 | D54: 0.01105416979 | E54: 253539.3106 | F54: 0.005097735538 | G54: 25523014.43 | H54: 0 | I54: 0 | J54: 0.01547724843 | K54: 4130372.213 | L54: 0.02069485944 | M54: 13266586.81 | N54: 0.02178552172 | O54: 234195.1655 | P54: 0.01 | Q54: 200000 | R54: 0.00397732 | S54: 119319.6 | T54: 0 | U54: 0 | V54: 0 | W54: 0 | X54: 0.006932355101 | Y54: 2360164.176 | Z54: 1750000 | AA54: 4110164.176 | AB54: 48819577.96
A55: South Dakota………………………………. | B55: 0.004000000788 | C55: 439183.5234 | D55: 0.004999711707 | E55: 114673.7822 | F55: 0.0008136502964 | G55: 4073731.974 | H55: 0 | I55: 0 | J55: 0.0025060679 | K55: 668787.6895 | L55: 0.01033224622 | M55: 6623559.912 | N55: 0.01049306584 | O55: 112800.8465 | P55: 0 | Q55: 0 | R55: 0.09032248 | S55: 2709674.4 | T55: 0 | U55: 0 | V55: 0 | W55: 0 | X55: 0.001130513387 | Y55: 384890.4387 | Z55: 1750000 | AA55: 2134890.439 | AB55: 16877302.57
A56: Tennessee…………………………………. | B56: 0.01316029948 | C56: 1444946.39 | D56: 0.01478451944 | E56: 339098.9045 | F56: 0.01020282767 | G56: 51082861.41 | H56: 0.01391869736 | I56: 322195.8395 | J56: 0.02085301079 | K56: 5564987.647 | L56: 0.02984870284 | M56: 19134723.22 | N56: 0.02829492132 | O56: 304171.4522 | P56: 0.0555 | Q56: 1110000 | R56: 0 | S56: 0 | T56: 0.001772110771 | U56: 4344343.208 | V56: 0 | W56: 0 | X56: 0.01119991814 | Y56: 3813083.026 | Z56: 1750000 | AA56: 5563083.026 | AB56: 89210411.09
A57: Texas………………………………………… | B57: 0.08464520158 | C57: 9293692.637 | D57: 0.08118216795 | E57: 1862000.61 | F57: 0.05903275879 | G57: 295561420 | H57: 0.04105368217 | I57: 950327.8392 | J57: 0.07010318526 | K57: 18708251 | L57: 0.06619943609 | M57: 42437619.26 | N57: 0.05358117785 | O57: 575999.6465 | P57: 0 | Q57: 0 | R57: 0 | S57: 0 | T57: 0.01105467665 | U57: 27100624.98 | V57: 0.03675754814 | W57: 2671009.106 | X57: 0.07683320171 | Y57: 26158349.88 | Z57: 1750000 | AA57: 27908349.88 | AB57: 427069295
A58: Utah…………………………………………. | B58: 0.009215520109 | C58: 1011825.949 | D58: 0.009611962888 | E58: 220460.7393 | F58: 0.01008781422 | G58: 50507019.45 | H58: 0.02106359548 | I58: 487588.9354 | J58: 0.00659729296 | K58: 1760602.063 | L58: 0.01010656919 | M58: 6478888.048 | N58: 0.01010905715 | O58: 108672.7388 | P58: 0 | Q58: 0 | R58: 0.0036342 | S58: 109026 | T58: 0.003248700569 | U58: 7964214.476 | V58: 0.00380610493 | W58: 276572.8794 | X58: 0.00934305986 | Y58: 3180903.871 | Z58: 1750000 | AA58: 4930903.871 | AB58: 73855775.15
A59: Vermont…………………………………… | B59: 0.004000000788 | C59: =B59*C$67 -> 439183.5234 | D59: 0.004999711707 | E59: 114673.7822 | F59: 0.0005038978005 | G59: 2522883.1 | H59: 0 | I59: 0 | J59: 0.00176142599 | K59: 470067.0792 | L59: 0.005604631138 | M59: 3592888.647 | N59: 0.01008267775 | O59: 108389.1593 | P59: 0 | Q59: 0 | R59: 0 | S59: 0 | T59: 0 | U59: 0 | V59: 0 | W59: 0 | X59: 0.0004451780293 | Y59: 151563.678 | Z59: 1750000 | AA59: 1901563.678 | AB59: 9149648.969
A60: Virgin Islands……………………………… | B60: 0 | C60: 0 | D60: 0 | E60: 0 | F60: 0.0002226767211 | G60: 1114883.486 | H60: 0 | I60: 0 | J60: 0.0006112177898 | K60: 163114.0694 | L60: 0 | M60: 0 | N60: 0 | O60: 0 | P60: 0 | Q60: 0 | R60: 0 | S60: 0 | T60: 0 | U60: 0 | V60: 0 | W60: 0 | X60: 0.0003223323213 | Y60: 109740.0791 | Z60: 500000 | AA60: 609740.0791 | AB60: 1887737.634
A61: Virginia………………………………………. | B61: 0.02463070176 | C61: 2704349.063 | D61: 0.02392469447 | E61: 548738.6802 | F61: 0.02563270002 | G61: 128336153.9 | H61: 0.01149648436 | I61: 266125.4378 | J61: 0.02288604295 | K61: 6107537.545 | L61: 0.02422441619 | M61: 15529234.26 | N61: 0.02463157635 | O61: 264790.3581 | P61: 0.0575 | Q61: 1150000 | R61: 0 | S61: 0 | T61: 0.0001548792375 | U61: 379687.6441 | V61: 0.02290541809 | W61: 1664435.834 | X61: 0.0258200338 | Y61: 8790593.95 | Z61: 1750000 | AA61: 10540593.95 | AB61: 167491646.7
A62: Washington………………………………… | B62: 0.02238762393 | C62: 2458068.406 | D62: 0.02160010591 | E62: 495421.7335 | F62: 0.02916496187 | G62: 146021255.4 | H62: 0.02458699382 | I62: 569150.0366 | J62: 0.02227238599 | K62: 5943772.541 | L62: 0.02012247397 | M62: 12899655.03 | N62: 0.0190116336 | O62: 204375.7654 | P62: 0 | Q62: 0 | R62: 0.07361324 | S62: 2208397.2 | T62: 0.01980356246 | U62: 48548585.96 | V62: 0.2309299581 | W62: 16780662.81 | X62: 0.03493072958 | Y62: 11892388 | Z62: 1750000 | AA62: 13642388 | AB62: 249771732.8
A63: West Virginia……………………………… | B63: 0.004000000788 | C63: 439183.5234 | D63: 0.004999711707 | E63: 114673.7822 | F63: 0.001946286007 | G63: 9744539.603 | H63: 0.01069139762 | I63: 247488.9526 | J63: 0.007837960166 | K63: 2091695.628 | L63: 0.01244282181 | M63: 7976559.406 | N63: 0.01560162508 | O63: 167718.0475 | P63: 0.0946 | Q63: 1892000 | R63: 0 | S63: 0 | T63: 0.0004189417153 | U63: 1027038.843 | V63: 0 | W63: 0 | X63: 0.002288728735 | Y63: 779212.1854 | Z63: 1750000 | AA63: 2529212.185 | AB63: 26230109.97
A64: Wisconsin………………………………… | B64: 0.01293423419 | C64: 1420125.356 | D64: 0.01359629843 | E64: 311845.7737 | F64: 0.01011520732 | G64: 50644169.45 | H64: 0.01266441636 | I64: 293161.2172 | J64: 0.01779586538 | K64: 4749135.366 | L64: 0.02512414565 | M64: 16106012.23 | N64: 0.02537142431 | O64: 272743.7511 | P64: 0 | Q64: 0 | R64: 0.06890836 | S64: 2067250.8 | T64: 0.0005935168251 | U64: 1455011.07 | V64: 0 | W64: 0 | X64: 0.01385271223 | Y64: 4716243.566 | Z64: 1750000 | AA64: 6466243.566 | AB64: 83785698.59
A65: Wyoming…………………………………. | B65: 0.004000010172 | C65: 439184.5537 | D65: 0.004999711707 | E65: 114673.7822 | F65: 0.0004217026036 | G65: 2111353.474 | H65: 0 | I65: 0 | J65: 0.001634507616 | K65: 436196.7097 | L65: 0.01011015747 | M65: 6481188.343 | N65: 0.009381927831 | O65: 100856.0717 | P65: 0 | Q65: 0 | R65: 0.0054818 | S65: 164454 | T65: 0 | U65: 0 | V65: 0 | W65: 0 | X65: 0.0006185288435 | Y65: 210582.0601 | Z65: 1750000 | AA65: 1960582.06 | AB65: 11808489
A66: Unallocated………………. | B66: 0 | C66: 0 | D66: 0 | E66: 0 | F66: 0 | G66: 0 | H66: 0 | I66: 0 | J66: 0 | K66: 0 | L66: 0 | M66: 0 | N66: 0 | O66: 0 | P66: 0 | Q66: 0 | R66: 0 | S66: 0 | T66: 0 | U66: 0 | V66: 0 | W66: 0 | X66: 0 | Y66: 0 | Z66: 0 | AA66: 0 | AB66: 0
A67: Subtotal | C67: =C70-C68 -> 109795859.2 | E67: =E70-E68 -> 22936078.91 | G67: =G70-G68 -> 5006735685 | I67: =I70-I68 -> 23148419.07 | K67: =K70-K68 -> 266867346.1 | M67: =M70-M68 -> 641057111.3 | O67: =O70-O68 -> 10750037.04 | Q67: =Q70-Q68 -> 20000000 | S67: =S70-S68 -> 30000000 | U67: =U70-U68 -> 2451507705 | W67: =W70-W68 -> 72665595 | Y67: =Y70-Y68 -> 340456330 | Z67: =SUM(Z10:Z66) -> 90500000 | AA67: 430956330 | AB67: =SUM(C67+E67+G67+I67+K67+M67+O67+Q67+S67+U67+W67+AA67) -> 9086420167
A68: Oversight | C68: =C70*0.005 -> 551737.9861 | E68: =E70*0.005 -> 115256.6779 | F68: =G77*0.0075 -> 34324015.46 | G68: ='Program Totals'!F11*0.0075 -> 34722628.6 | I68: 0 | K68: =K70*0.005 -> 1341041.94 | M68: ='Program Totals'!F17*0.005 -> 3161775.6 | O68: 0 | Q68: 0 | S68: 0 | U68: =(U70+W70)*0.01 -> 25496700 | W68: 0 | Y68: =AA75*0.0075 -> 5399670 | Z68: 0 | AA68: =Y68 -> 5399670 | AB68: =SUM(C68+E68+G68+I68+K68+M68+O68+Q68+S68+U68+W68+AA68) -> 70788810.81
C69: 0 | E69: 0 | G69: 0 | I69: 0 | K69: 0 | M69: 0 | O69: 0 | Q69: 0 | S69: 0 | U69: 0 | W69: 0 | Y69: 0 | Z69: 0 | AA69: 0 | AB69: =SUM(C69:Z69) -> 0
A70: Subtotal | C70: ='Program Totals'!F9 -> 110347597.2 | E70: ='Program Totals'!F10 -> 23051335.59 | G70: =G77+G80+H79 -> 5041458314 | I70: ='Program Totals'!F12 -> 23148419.07 | K70: ='Program Totals'!F15 -> 268208388 | M70: =M77+I79 -> 644218886.9 | O70: ='Program Totals'!F23-O74 -> 10750037.04 | Q70: ='Program Totals'!F21 -> 20000000 | S70: ='Program Totals'!F19 -> 30000000 | U70: ='Program Totals'!F37 -> 2477004405 | W70: ='Program Totals'!F38 -> 72665595 | Y70: ='Program Totals'!F40-Z67 -> 345856000 | Z70: =Z67 -> 90500000 | AA70: =SUM(Y70+Z70) -> 436356000 | AB70: 9157208978 | AC70: =AB67+AB68 -> 9157208978
A71: Bus and Bus Facilities Discretionary Program | C71: 0 | E71: 0 | G71: 0 | I71: 0 | K71: 0 | M71: 0 | O71: 0 | Q71: 0 | S71: 0 | U71: 0 | W71: 0 | Y71: ='Program Totals'!F43 -> 283600000 | Z71: 0 | AA71: =Y71 -> 283600000 | AB71: 283600000
A72: Ferry discretionary Program | C72: 0 | E72: 0 | G72: ='Program Totals'!F13 -> 30000000 | I72: 0 | K72: 0 | M72: 0 | O72: 0 | Q72: 0 | S72: 0 | U72: 0 | W72: 0 | Y72: 0 | Z72: 0 | AA72: 0 | AB72: 30000000
A73: Tribal discretionary Program | C73: 0 | E73: 0 | G73: 0 | I73: 0 | K73: 0 | M73: 0 | O73: 0 | Q73: 0 | S73: 5000000 | U73: 0 | W73: 0 | Y73: 0 | Z73: 0 | AA73: 0 | AB73: 5000000
A74: National RTAP | C74: 0 | E74: 0 | G74: 0 | I74: 0 | K74: 0 | M74: 0 | O74: ='Program Totals'!F22 -> 1897065.36 | Q74: 0 | S74: 0 | U74: 0 | W74: 0 | Y74: 0 | Z74: 0 | AA74: 0 | AB74: 1897065.36
A75: Total | C75: =C70+C71+C72+C73+C74 -> 110347597.2 | E75: =E70+E71+E72+E73+E74 -> 23051335.59 | G75: 5071458314 | I75: 23148419.07 | K75: 268208388 | M75: 644218886.9 | O75: 12647102.4 | Q75: 20000000 | S75: 35000000 | U75: 2477004405 | W75: 72665595 | Y75: 629456000 | Z75: 90500000 | AA75: 719956000 | AB75: 9477706043 | AC75: ='Program Totals'!F61 -> 9477706043 | AD75: =AC70+AB71+AB72+AB73+AB74 -> 9477706043
AC76: =AB70+AB71+AB72+AB73+AB74 -> 9477706043
G77: ='Program Totals'!F14 -> 4576535395 | M77: ='Program Totals'!F18 -> 564708017.6
A78: *Allocations for UZAs that are within multiple-states are split between the applicable states.
G79: ='Program Totals'!F46 -> 279129509.6 | H79: =G79*0.715147032 -> 199618640.3 | I79: =G79-H79 -> 79510869.26
G80: ='Program Totals'!F47 -> 265304278.8 | I80: =SUM(I10:I66)-I67 -> 0 | K80: 0 | M80: 0 | O80: 0 | Q80: 0 | S80: 0 | U80: 0 | W80: 0 | Y80: 0 | Z80: 0 | AA80: 0 | AB80: 0

Sheet FY18
A1: FEDERAL TRANSIT ADMINISTRATION
A3: FISCAL YEAR 2018 ESTIMATED APPORTIONMENTS/ALLOCATIONS BY STATE FOR SELECTED FTA PROGRAMS
C5: The information in this table include allocations for formula programs apportioned via FTA's Apportionment Notice Published on March 10, 2014 as well as Discretionary Program allocations announced in Federal Register Announcements in 2014. For allocations under the Public Transportation Emergency Relief Program, Please Contact the FTA Office of Program Management at 202-366-4020
C6: Section 5303 | E6: Section 5304 | G6: Section 5307 + 5340 | I6: Section 5329 (e) | K6: Section 5310 | M6: Section 5311 + 5340 | O6: Section 5311(b)(3) | Q6: Section 5311(c)(2) | S6: Section 5311(c)(1)
B8: Metropolitan Planning | C8: Metropolitan | D8: Statewide Planning | E8: Statewide | F8: Urban | G8: Urbanized Area | H8: SSO | I8: State Safety | J8: 5310 | K8: Enhanced Mobility for | L8: 5311 | M8: Nonurbanized Area | N8: RTAP | P8: App | Q8: Appalachian Dev. Public | R8: Indian | S8: Indian Reserv. | T8: SGR | U8: High Intensity | V8: HIMB | W8: High Intensity | X8: 5339 | Y8: Bus and Bus | Z8: Statewide
A9: State | B9: Percentage | C9: Planning | D9: Percentage | E9: Planning | F9: Percentage | G9: Formula | H9: Percentqage | I9: Oversight Program | J9: Percentage | K9: Older Adults and People with Disabilities | L9: Percentage | M9: Formula | N9: Percentage | O9: RTAP | P9: Percentage | Q9: Trans. Assist. Program | R9: Percentage | S9: Formula | T9: Percentage | U9: Fixed Guideway | V9: Percentage | W9: MotorBus | X9: Percentage | Y9: Facilities Formula | Z9: Allocation | AA9: 5339 Total | AB9: State Total
A10: Alabama…………………………………… | B10: 0.007971166334 | C10: =B10*C$67 -> 893580.2789 | D10: 0.009962715709 | E10: =D10*E$67 -> 233304.252 | F10: 0.004833651452 | G10: =F10*G$67 -> 24695601.96 | H10: 0 | I10: =H10*I$67 -> 0 | J10: 0.01631521576 | K10: =J10*K$67 -> 4445432.295 | L10: 0.02486553856 | M10: =L10*M$67 -> 16311780.25 | N10: 0.0249182639 | O10: =N10*O$67 -> 273497.5774 | P10: 0.25 | Q10: =P10*Q$67 -> 5000000 | R10: 7.44e-06 | S10: =R10*S$67 -> 223.2 | T10: 0 | U10: =T10*U$67 -> 0 | V10: 0 | W10: =V10*W$67 -> 0 | X10: 0.006682205509 | Y10: =X10*Y$67 -> 2334874.364 | Z10: 1750000 | AA10: =SUM(Y10+Z10) -> 4084874.364 | AB10: =SUM(C10+E10+G10+I10+K10+M10+O10+Q10+S10+U10+W10+AA10) -> 55938294.18
A11: Alaska………………………………………. | B11: 0.004000000788 | C11: =B11*C$67 -> 448406.3774 | D11: 0.004999711707 | E11: 117081.9317 | F11: 0.003388340803 | G11: =F11*G$67 -> 17311367.32 | H11: 0 | I11: =H11*I$67 -> 0 | J11: 0.001491093777 | K11: =J11*K$67 -> 406280.648 | L11: 0.01310523456 | M11: =L11*M$67 -> 8597026.994 | N11: 0.009144419019 | O11: =N11*O$67 -> 100367.2029 | P11: 0 | Q11: =P11*Q$67 -> 0 | R11: 0.01486264 | S11: =R11*S$67 -> 445879.2 | T11: 0.009551267246 | U11: =T11*U$67 -> 23819389.34 | V11: 0 | W11: =V11*W$67 -> 0 | X11: 0.001748402086 | Y11: =X11*Y$67 -> 610920.9307 | Z11: 1750000 | AA11: =SUM(Y11+Z11) -> 2360920.931 | AB11: =SUM(C11+E11+G11+I11+K11+M11+O11+Q11+S11+U11+W11+AA11) -> 53606719.94
A12: American Samoa……………………………. | B12: 0 | C12: 0 | D12: 0 | E12: 0 | G12: 0 | H12: 0 | I12: 0 | J12: 4.635198678e-05 | K12: 12629.59816 | L12: 0.0004854920731 | M12: 318482.5452 | N12: 0.001367206618 | O12: 15006.16975 | P12: 0 | Q12: 0 | R12: 0 | S12: 0 | T12: 0 | U12: 0 | V12: 0 | W12: 0 | X12: 0 | Y12: 0 | Z12: 500000 | AA12: 500000 | AB12: 846118.3131
A13: Arizona………………………………………. | B13: 0.02296302448 | C13: 2574191.149 | D13: 0.02192702709 | E13: 513481.3441 | F13: 0.0153769052 | G13: 78562125.12 | H13: 0.01924905521 | I13: 454942.4858 | J13: 0.02164952 | K13: 5898878.496 | L13: 0.01877265824 | M13: 12314853.96 | N13: 0.0158810583 | O13: 174307.1262 | P13: 0 | Q13: 0 | R13: 0.06155668 | S13: 1846700.4 | T13: 0.000163793874 | U13: 408476.6927 | V13: 0.03591739399 | W13: 2655033.568 | X13: 0.0209724611 | Y13: 7328128.672 | Z13: 1750000 | AA13: 9078128.672 | AB13: 114481119
A14: Arkansas……………………………………. | B14: 0.004012067863 | C14: 449759.1155 | D14: 0.005057894075 | E14: 118444.431 | F14: 0.002601637548 | G14: 13292022.8 | H14: 0.01010808204 | I14: 238899.8276 | J14: 0.009648577367 | K14: 2628962.93 | L14: 0.01934206344 | M14: 12688383.47 | N14: 0.01962438938 | O14: 215393.1338 | P14: 0 | Q14: 0 | R14: 0 | S14: 0 | T14: 0.0001319452713 | U14: 329051.1832 | V14: 0 | W14: 0 | X14: 0.003565206949 | Y14: 1245742.936 | Z14: 1750000 | AA14: 2995742.936 | AB14: 32956659.83
A15: California………………………………… | B15: 0.1499952909 | C15: 16814707.95 | D15: 0.1432202417 | E15: 3353893.892 | F15: 0.160725624 | G15: 821163063.8 | H15: 0.1274520314 | I15: 3012269.609 | J15: 0.1103755967 | K15: 30074211.05 | L15: 0.04451564785 | M15: 29202241.64 | N15: 0.03542291784 | O15: 388794.4301 | P15: 0 | Q15: 0 | R15: 0.0212738 | S15: 638214 | T15: 0.154026701 | U15: 384118867.5 | V15: 0.2394678438 | W15: 17701595.06 | X15: 0.1808413205 | Y15: 63188981.94 | Z15: 1750000 | AA15: 64938981.94 | AB15: 1371406841
A16: Colorado……………………………………. | B16: 0.01679617675 | C16: 1882877.822 | D16: 0.01656154776 | E16: 387833.9625 | F16: 0.01517025377 | G16: 77506322.59 | H16: 0.02364576722 | I16: 558856.7335 | J16: 0.01445304974 | K16: 3938045.014 | L16: 0.01779622779 | M16: 11674316.1 | N16: 0.01503484483 | O16: 165019.2668 | P16: 0 | Q16: 0 | R16: 0.00609984 | S16: 182995.2 | T16: 0.005758380688 | U16: 14360514.47 | V16: 0.00587978619 | W16: 434637.0372 | X16: 0.01874620298 | Y16: 6550236.85 | Z16: 1750000 | AA16: 8300236.85 | AB16: 119391655
A17: Connecticut……………………………… | B17: 0.01039382401 | C17: 1165164.013 | D17: 0.01299046852 | E17: 304207.3698 | F17: 0.01917133561 | G17: 97948244.31 | H17: 0 | I17: 0 | J17: 0.01225706319 | K17: 3339701.133 | L17: 0.004753373426 | M17: 3118210.474 | N17: 0.01027496473 | O17: 112775.8328 | P17: 0 | Q17: 0 | R17: 0 | S17: 0 | T17: 0.02381332166 | U17: 59386756.26 | V17: 0.01362787676 | W17: 1007380.164 | X17: 0.01155847235 | Y17: 4038723.554 | Z17: 1750000 | AA17: 5788723.554 | AB17: 172171163.1
A18: Delaware……………………………………. | B18: 0.004000000788 | C18: 448406.3774 | D18: 0.004999711707 | E18: 117081.9317 | F18: 0.003942916038 | G18: 20144746.89 | H18: 0 | I18: 0 | J18: 0.003156320168 | K18: 860007.4812 | L18: 0.002713040228 | M18: 1779752.966 | N18: 0.008275123576 | O18: 90826.00053 | P18: 0 | Q18: 0 | R18: 0 | S18: 0 | T18: 0 | U18: 0 | V18: 0 | W18: 0 | X18: 0.002580878463 | Y18: 901802.1 | Z18: 1750000 | AA18: 2651802.1 | AB18: 26092623.74
A19: District of Columbia………………………. | B19: 0.004000000788 | C19: 448406.3774 | D19: 0.004999711707 | E19: 117081.9317 | F19: 0.004248027722 | G19: 21703592.57 | H19: 0.08022275801 | I19: 1896027.652 | J19: 0.00144302505 | K19: 393183.2869 | L19: 0 | M19: 0 | N19: 0 | O19: 0 | P19: 0 | Q19: 0 | R19: 0 | S19: 0 | T19: 0.07014426217 | U19: 174928985.6 | V19: 0.0766135825 | W19: 5663318.262 | X19: 0.003529031997 | Y19: 1233102.802 | Z19: 500000 | AA19: 1733102.802 | AB19: 206883698.5
A20: Florida………………………………………. | B20: 0.07206520079 | C20: 8078622.314 | D20: 0.07043658731 | E20: 1649465.446 | F20: 0.0520602293 | G20: 265980845.7 | H20: 0.03410368609 | I20: 806024.7923 | J20: 0.0797727053 | K20: 21735793.48 | L20: 0.02529910643 | M20: 16596200.55 | N20: 0.02420573746 | O20: 265677.0384 | P20: 0 | Q20: 0 | R20: 0 | S20: 0 | T20: 0.01782058362 | U20: 44441790.66 | V20: 0.02226598741 | W20: 1645914.067 | X20: 0.06676305109 | Y20: 23328126.66 | Z20: 1750000 | AA20: 25078126.66 | AB20: 386278460.7
A21: Georgia……………………………………… | B21: 0.02845664015 | C21: 3190034.103 | D21: 0.02713904115 | E21: 635534.9163 | F21: 0.01850915081 | G21: 94565076.87 | H21: 0.03788671459 | I21: 895434.915 | J21: 0.0264952058 | K21: 7219190.065 | L21: 0.03418615713 | M21: 22426101.14 | N21: 0.03180187412 | O21: 349050.6226 | P21: 0.0296 | Q21: 592000 | R21: 0 | S21: 0 | T21: 0.01903536017 | U21: 47471256.26 | V21: 0.05226137704 | W21: 3863189.807 | X21: 0.02124507764 | Y21: 7423385.451 | Z21: 1750000 | AA21: 9173385.451 | AB21: 190380254.1
A22: Guam………………………………………… | B22: 0 | C22: 0 | D22: 0 | E22: 0 | G22: 0 | H22: 0 | I22: 0 | J22: 0.0001754881403 | K22: 47815.52741 | L22: 0.001272349871 | M22: 834660.8478 | N22: 0.002162357105 | O22: 23733.57277 | P22: 0 | Q22: 0 | R22: 0 | S22: 0 | T22: 0 | U22: 0 | V22: 0 | W22: 0 | X22: 0 | Y22: 0 | Z22: 500000 | AA22: 500000 | AB22: 1406209.948
A23: Hawaii………………………………………. | B23: 0.004000000788 | C23: 448406.3774 | D23: 0.004999711707 | E23: 117081.9317 | F23: 0.006313608624 | G23: 32256849.1 | H23: 0.009674363316 | I23: 228649.0868 | J23: 0.004395293938 | K23: 1197592.597 | L23: 0.004336002151 | M23: 2844415.136 | N23: 0.00909655925 | O23: 99841.9042 | P23: 0 | Q23: 0 | R23: 0 | S23: 0 | T23: 0.0001238573054 | U23: 308881.0421 | V23: 0.01470165912 | W23: 1086754.748 | X23: 0.01036615936 | Y23: 3622109.452 | Z23: 1750000 | AA23: 5372109.452 | AB23: 43960581.38
A24: Idaho…………………………………………. | B24: 0.004000000788 | C24: 448406.3774 | D24: 0.004999711707 | E24: 117081.9317 | F24: 0.002117742289 | G24: 10819754.2 | H24: 0 | I24: 0 | J24: 0.005271798589 | K24: 1436415.187 | L24: 0.01238669807 | M24: 8125667.438 | N24: 0.01206395912 | O24: 132411.4555 | P24: 0 | Q24: 0 | R24: 0.04141664 | S24: 1242499.2 | T24: 0 | U24: 0 | V24: 0 | W24: 0 | X24: 0.003019350304 | Y24: 1055011.495 | Z24: 1750000 | AA24: 2805011.495 | AB24: 25127247.29
A25: Illinois……………………………………… | B25: 0.04770455379 | C25: 5347755.484 | D25: 0.04396164573 | E25: 1029482.239 | F25: 0.05543981541 | G25: 283247484.4 | H25: 0.0770149709 | I25: 1820213.092 | J25: 0.03788746303 | K25: 10323256.17 | L25: 0.02607866962 | M25: 17107593.59 | N25: 0.02580291592 | O25: 283207.3302 | P25: 0 | Q25: 0 | R25: 0 | S25: 0 | T25: 0.104631839 | U25: 260935690 | V25: 0 | W25: 0 | X25: 0.04406262923 | Y25: 15396219.6 | Z25: 1750000 | AA25: 17146219.6 | AB25: 597240901.9
A26: Indiana……………………………………… | B26: 0.01626858471 | C26: 1823733.925 | D26: 0.01643776291 | E26: 384935.2017 | F26: 0.01159825161 | G26: 59256611.29 | H26: 0 | I26: 0 | J26: 0.02057800609 | K26: 5606921.428 | L26: 0.02570824681 | M26: 16864596.42 | N26: 0.02639456818 | O26: 289701.1799 | P26: 0 | Q26: 0 | R26: 0 | S26: 0 | T26: 0.001106916121 | U26: 2760478.309 | V26: 0 | W26: 0 | X26: 0.01306697334 | Y26: 4565819.03 | Z26: 1750000 | AA26: 6315819.03 | AB26: 93302796.78
A27: Iowa…………………………………………. | B27: 0.004350021032 | C27: =B27*C$67 -> 487644.197 | D27: 0.005436843301 | E27: 127318.5642 | F27: 0.004178516828 | G27: 21348454.56 | H27: 0 | I27: 0 | J27: 0.009289615525 | K27: 2531156.037 | L27: 0.01965541976 | M27: 12893945.05 | N27: 0.0197339581 | O27: 216595.7369 | P27: 0 | Q27: 0 | R27: 0 | S27: 0 | T27: 0 | U27: 0 | V27: 0 | W27: 0 | X27: 0.005530684206 | Y27: 1932513.562 | Z27: 1750000 | AA27: 3682513.562 | AB27: 41287627.7
A28: Kansas………………………………………. | B28: 0.00589772193 | C28: 661143.9012 | D28: 0.006132892981 | E28: 143618.4722 | F28: 0.003660778372 | G28: 18703277.73 | H28: 0 | I28: 0 | J28: 0.008196292795 | K28: 2233256.687 | L28: 0.01770502652 | M28: 11614488.11 | N28: 0.01701019083 | O28: 186700.2453 | P28: 0 | Q28: 0 | R28: 0.00358388 | S28: 107516.4 | T28: 0 | U28: 0 | V28: 0 | W28: 0 | X28: 0.004932716583 | Y28: 1723573.673 | Z28: 1750000 | AA28: 3473573.673 | AB28: 37123575.21
A29: Kentucky…………………………………… | B29: 0.006586689984 | C29: 738378.3033 | D29: 0.007620057003 | E29: 178444.4875 | F29: 0.005138728123 | G29: 26254268.76 | H29: 0 | I29: 0 | J29: 0.01327687682 | K29: 3617571.342 | L29: 0.02693413172 | M29: 17668776.28 | N29: 0.02573310472 | O29: 282441.0973 | P29: 0.0882 | Q29: 1764000 | R29: 0 | S29: 0 | T29: 0 | U29: 0 | V29: 0 | W29: 0 | X29: 0.007234698109 | Y29: 2527924.519 | Z29: 1750000 | AA29: 4277924.519 | AB29: 54781804.79
A30: Louisiana……………………………………. | B30: 0.009531262728 | C30: 1068469.537 | D30: 0.01191258887 | E30: 278965.868 | F30: 0.007046432721 | G30: 36000919.69 | H30: 0.01296410348 | I30: 306400.5688 | J30: 0.01566300206 | K30: 4267722.609 | L30: 0.01841591101 | M30: 12080827.96 | N30: 0.01954694699 | O30: 214543.1427 | P30: 0 | Q30: 0 | R30: 0 | S30: 0 | T30: 0.001657168917 | U30: 4132724.026 | V30: 0.00634620524 | W30: 469114.9906 | X30: 0.0095044024 | Y30: 3320997.159 | Z30: 1750000 | AA30: 5070997.159 | AB30: 63890685.56
A31: Maine………………………………………… | B31: 0.004000000788 | C31: 448406.3774 | D31: 0.004999711707 | E31: 117081.9317 | F31: 0.002715733241 | G31: 13874948.95 | H31: 0 | I31: 0 | J31: 0.004267874525 | K31: 1162874.431 | L31: 0.01107464745 | M31: 7264962.921 | N31: 0.01362976493 | O31: 149597.4079 | P31: 0 | Q31: 0 | R31: 0.00209244 | S31: 62773.2 | T31: 0.003293485409 | U31: 8213445.316 | V31: 0 | W31: 0 | X31: 0.001306281335 | Y31: 456436.5458 | Z31: 1750000 | AA31: 2206436.546 | AB31: 33500527.08
A32: Maryland……………………………………. | B32: 0.02250815393 | C32: 2523199.445 | D32: 0.02066347017 | E32: 483891.701 | F32: 0.0316219461 | G32: 161559641.1 | H32: 0.02726192906 | I32: 644323.0402 | J32: 0.01750911927 | K32: 4770737.047 | L32: 0.008915532193 | M32: 5848584.441 | N32: 0.01340356158 | O32: 147114.6479 | P32: 0.0318 | Q32: 636000 | R32: 0 | S32: 0 | T32: 0.02482051546 | U32: 61898542.47 | V32: 0 | W32: 0 | X32: 0.02295667356 | Y32: 8021445.691 | Z32: 1750000 | AA32: 9771445.691 | AB32: 248283479.6
A33: Massachusetts……………………………. | B33: 0.02676146946 | C33: 3000002.803 | D33: 0.02533285618 | E33: 593238.1524 | F33: 0.03972650889 | G33: 202966651.7 | H33: 0.05152604488 | I33: 1217794.156 | J33: 0.0226064318 | K33: 6159609.745 | L33: 0.005895471338 | M33: 3867426.105 | N33: 0.01098570114 | O33: 120576.7247 | P33: 0 | Q33: 0 | R33: 0 | S33: 0 | T33: 0.05766606083 | U33: 143810273.4 | V33: 0.0007119252628 | W33: 52625.90797 | X33: 0.02332246484 | Y33: 8149259.282 | Z33: 1750000 | AA33: 9899259.282 | AB33: 371687458
A34: Michigan……………………………………. | B34: 0.02806427254 | C34: 3146049.077 | D34: 0.02810688498 | E34: 658199.6282 | F34: 0.01793677076 | G34: 91640730.71 | H34: 0.01304973479 | I34: 308424.4249 | J34: 0.03407517331 | K34: 9284515.639 | L34: 0.03338673791 | M34: 21901682.55 | N34: 0.03157293862 | O34: 346537.875 | P34: 0 | Q34: 0 | R34: 0.0014982 | S34: 44946 | T34: 0.0005126279629 | U34: 1278415.18 | V34: 0 | W34: 0 | X34: 0.0258222891 | Y34: 9022739.688 | Z34: 1750000 | AA34: 10772739.69 | AB34: 139382240.8
A35: Minnesota…………………………………. | B35: 0.01450272874 | C35: 1625778.694 | D35: 0.01317920113 | E35: 308627.0601 | F35: 0.01244127603 | G35: 63563706.18 | H35: 0.01412113532 | I35: 333746.4793 | J35: 0.01422662258 | K35: 3876350.052 | L35: 0.02494488507 | M35: 16363831.52 | N35: 0.02318362992 | O35: 254458.6029 | P35: 0 | Q35: 0 | R35: 0.06497376 | S35: 1949212.8 | T35: 0.002988328432 | U35: 7452430.819 | V35: 0.1096095253 | W35: 8102396.548 | X35: 0.01476922899 | Y35: 5160615.625 | Z35: 1750000 | AA35: 6910615.625 | AB35: 110741154.4
A36: Mississippi…………………………………. | B36: 0.004000000788 | C36: 448406.3774 | D36: 0.004999711707 | E36: 117081.9317 | F36: 0.001739370395 | G36: 8886614.884 | H36: 0 | I36: 0 | J36: 0.008044116589 | K36: 2191792.998 | L36: 0.02259996171 | M36: 14825563.02 | N36: 0.02257012045 | O36: 247724.8531 | P36: 0.0127 | Q36: 254000 | R36: 0.03018832 | S36: 905649.6 | T36: 0 | U36: 0 | V36: 0 | W36: 0 | X36: 0.002261756835 | Y36: 790295.6658 | Z36: 1750000 | AA36: 2540295.666 | AB36: 30417129.33
A37: Missouri……………………………………. | B37: 0.01555399055 | C37: 1743626.795 | D37: 0.01452464111 | E37: 340134.2191 | F37: 0.01004612982 | G37: 51326668 | H37: 0.03017316901 | I37: 713128.8453 | J37: 0.01891439157 | K37: 5153633.784 | L37: 0.02828471879 | M37: 18554760.69 | N37: 0.02602431446 | O37: 285637.3536 | P37: 0 | Q37: 0 | R37: 0 | S37: 0 | T37: 0.007125340215 | U37: 17769500.98 | V37: 0.0004136178801 | W37: 30574.86176 | X37: 0.01248070993 | Y37: 4360968.79 | Z37: 1750000 | AA37: 6110968.79 | AB37: 102028634.3
A38: Montana…………………………………… | B38: 0.004000000788 | C38: 448406.3774 | D38: 0.004999711707 | E38: 117081.9317 | F38: 0.0009211493186 | G38: 4706242.712 | H38: 0 | I38: 0 | J38: 0.003248651275 | K38: 885165.0819 | L38: 0.0161071082 | M38: 10566254.53 | N38: 0.01169285749 | O38: 128338.3227 | P38: 0 | Q38: 0 | R38: 0.06420504 | S38: 1926151.2 | T38: 0 | U38: 0 | V38: 0 | W38: 0 | X38: 0.001153552305 | Y38: 403070.4684 | Z38: 1750000 | AA38: 2153070.468 | AB38: 20930710.62
A39: N. Mariana Islands…………………………. | B39: 0 | C39: 0 | D39: 0 | E39: 0 | G39: 0 | H39: 0 | I39: 0 | J39: 3.662638138e-05 | K39: 9979.647283 | L39: 0.0004673274972 | M39: 306566.593 | N39: 0.001354770616 | O39: 14869.67482 | P39: 0 | Q39: 0 | R39: 0 | S39: 0 | T39: 0 | U39: 0 | V39: 0 | W39: 0 | X39: 0 | Y39: 0 | Z39: 500000 | AA39: 500000 | AB39: 831415.9151
A40: Nebraska……………………………………. | B40: 0.004000000788 | C40: 448406.3774 | D40: 0.004999711707 | E40: 117081.9317 | F40: 0.002312070172 | G40: 11812594.53 | H40: 0 | I40: 0 | J40: 0.004774833359 | K40: 1301006.295 | L40: 0.01234123408 | M40: 8095843.082 | N40: 0.01258768442 | O40: 138159.7533 | P40: 0 | Q40: 0 | R40: 0.01868076 | S40: 560422.8 | T40: 0 | U40: 0 | V40: 0 | W40: 0 | X40: 0.003370902981 | Y40: 1177849.88 | Z40: 1750000 | AA40: 2927849.88 | AB40: 25401364.64
A41: Nevada………………………………………. | B41: 0.01082489821 | C41: 1213488.109 | D41: 0.01000950603 | E41: 234399.9754 | F41: 0.008298532046 | G41: 42398018.62 | H41: 0 | I41: 0 | J41: 0.008020575497 | K41: 2185378.72 | L41: 0.01039093463 | M41: 6816447.666 | N41: 0.008913599268 | O41: 97833.77426 | P41: 0 | Q41: 0 | R41: 0.00338348 | S41: 101504.4 | T41: 0.0009858635436 | U41: 2458591.826 | V41: 0 | W41: 0 | X41: 0.01074640236 | Y41: 3754972.716 | Z41: 1750000 | AA41: 5504972.716 | AB41: 61010635.81
A42: New Hampshire……………………………. | B42: 0.004000000788 | C42: 448406.3774 | D42: 0.004999711707 | E42: 117081.9317 | F42: 0.001668569384 | G42: 8524885.535 | H42: 0 | I42: 0 | J42: 0.004287477213 | K42: 1168215.606 | L42: 0.006339084466 | M42: 4158436.084 | N42: 0.01143264355 | O42: 125482.2698 | P42: 0 | Q42: 0 | R42: 0 | S42: 0 | T42: 0 | U42: 0 | V42: 0 | W42: 0 | X42: 0.001980271738 | Y42: 691940.0653 | Z42: 1750000 | AA42: 2441940.065 | AB42: 16984447.87
A43: New Jersey…………………………………. | B43: 0.03871707888 | C43: =B43*C$67 -> 4340245.416 | D43: 0.03474674586 | E43: 813690.1411 | F43: 0.08012995189 | G43: 409391826.6 | H43: 0.04043515414 | I43: 955666.1009 | J43: 0.02776177558 | K43: 7564294.311 | L43: 0.00613516515 | M43: 4024665.12 | N43: 0.01134596838 | O43: 124530.9415 | P43: 0 | Q43: 0 | R43: 0 | S43: 0 | T43: 0.0706308469 | U43: 176142452.9 | V43: 0 | W43: 0 | X43: 0.04593402945 | Y43: 16050118.13 | Z43: 1750000 | AA43: 17800118.13 | AB43: 621157489.7
A44: New Mexico………………………………… | B44: 0.004000000788 | C44: 448406.3774 | D44: 0.004999711707 | E44: 117081.9317 | F44: 0.004944881783 | G44: 25263888.69 | H44: 0 | I44: 0 | J44: 0.006686221659 | K44: 1821805.248 | L44: 0.01664801735 | M44: 10921090.65 | N44: 0.01341712813 | O44: 147263.5514 | P44: 0 | Q44: 0 | R44: 0.024074 | S44: 722220 | T44: 0.001814595314 | U44: 4525321.212 | V44: 0 | W44: 0 | X44: 0.004643567055 | Y44: 1622539.992 | Z44: 1750000 | AA44: 3372539.992 | AB44: 47339617.65
A45: New York……………………………………. | B45: 0.07311576822 | C45: 8196392.576 | D45: 0.06862944209 | E45: 1607146.195 | F45: 0.1337275188 | G45: 683227081.6 | H45: 0.1052297893 | I45: 2487057.23 | J45: 0.06097806219 | K45: 16614787.75 | L45: 0.03316471385 | M45: 21756034.89 | N45: 0.03185218341 | O45: 349602.8066 | P45: 0.01 | Q45: 200000 | R45: 0.00227624 | S45: 68287.2 | T45: 0.2894780333 | U45: 721913626.9 | V45: 0.112080818 | W45: 8285075.867 | X45: 0.09079598492 | Y45: 31725635.69 | Z45: 1750000 | AA45: 33475635.69 | AB45: 1498180729
A46: North Carolina…………………………………… | B46: 0.01970086059 | C46: 2208497.447 | D46: 0.02241980949 | E46: 525021.1924 | F46: 0.01385285141 | G46: 70775584.03 | H46: 0.01524434526 | I46: 360293.0249 | J46: 0.02804378318 | K46: 7641133.362 | L46: 0.04277804033 | M46: 28062372.02 | N46: 0.03907109465 | O46: 428836.0447 | P46: 0.0725 | Q46: 1450000 | R46: 0.02251676 | S46: 675502.8 | T46: 0.0002737632627 | U46: 682723.4096 | V46: 0.005943733368 | W46: 439364.0478 | X46: 0.01906145675 | Y46: 6660391.791 | Z46: 1750000 | AA46: 8410391.791 | AB46: 121659719.2
A47: North Dakota………………………………. | B47: 0.004000000788 | C47: 448406.3774 | D47: 0.004999711707 | E47: 117081.9317 | F47: 0.001027832674 | G47: 5251298.494 | H47: 0 | I47: 0 | J47: 0.002242765777 | K47: 611089.8907 | L47: 0.008266730347 | M47: 5422970.771 | N47: 0.009213759156 | O47: 101128.2655 | P47: 0 | Q47: 0 | R47: 0.029133 | S47: 873990 | T47: 0 | U47: 0 | V47: 0 | W47: 0 | X47: 0.001287896771 | Y47: 450012.6716 | Z47: 1750000 | AA47: 2200012.672 | AB47: 15025978.4
A48: Ohio………………………………………… | B48: 0.032451968 | C48: 3637916.636 | D48: 0.03228222281 | E48: 755976.5895 | F48: 0.02115906171 | G48: 108103733 | H48: 0.02472331311 | I48: 584324.0305 | J48: 0.03848134252 | K48: 10485071.44 | L48: 0.0368327098 | M48: 24162238.31 | N48: 0.03676723091 | O48: 403549.3251 | P48: 0.0482 | Q48: 964000 | R48: 0 | S48: 0 | T48: 0.01071756191 | U48: 26727948.58 | V48: 0.004046042299 | W48: 299085.6777 | X48: 0.02719502364 | Y48: 9502396.094 | Z48: 1750000 | AA48: 11252396.09 | AB48: 187376239.6
A49: Oklahoma…………………………………… | B49: 0.005887850575 | C49: 660037.3068 | D49: 0.007358912886 | E49: 172329.0834 | F49: 0.003667024275 | G49: 18735188.66 | H49: 0 | I49: 0 | J49: 0.01124265614 | K49: 3063304.06 | L49: 0.02380868139 | M49: 15618482.5 | N49: 0.02169724494 | O49: 238144.3567 | P49: 0 | Q49: 0 | R49: 0.31196952 | S49: 9359085.6 | T49: 0 | U49: 0 | V49: 0 | W49: 0 | X49: 0.005072469887 | Y49: 1772405.815 | Z49: 1750000 | AA49: 3522405.815 | AB49: 51368977.39
A50: Oregon………………………………………. | B50: 0.01043003462 | C50: 1169223.279 | D50: 0.01025445685 | E50: 240136.1693 | F50: 0.01079303942 | G50: 55142702.82 | H50: 0.03237966649 | I50: 765278.3892 | J50: 0.01279385913 | K50: 3485962.759 | L50: 0.01931467508 | M50: 12670416.72 | N50: 0.01713266662 | O50: 188044.5136 | P50: 0 | Q50: 0 | R50: 0.03027016 | S50: 908104.8 | T50: 0.008498435299 | U50: 21193788.63 | V50: 0.001555089075 | W50: 114953.0419 | X50: 0.01296888143 | Y50: 4531544.074 | Z50: 1750000 | AA50: 6281544.074 | AB50: 102160155.2
A51: Pennsylvania………………………………. | B51: 0.03897942047 | C51: 4369654.32 | D51: 0.03846408849 | E51: 900741.8916 | F51: 0.03699061835 | G51: 188988717.2 | H51: 0.06449988225 | I51: 1524424.781 | J51: 0.04605574033 | K51: 12548879.43 | L51: 0.03477270168 | M51: 22810874.06 | N51: 0.03464623293 | O51: 380269.7014 | P51: 0.2394 | Q51: 4788000 | R51: 0 | S51: 0 | T51: 0.07135361551 | U51: 177944926.5 | V51: 0.004158507427 | W51: 307399.162 | X51: 0.03710949684 | Y51: 12966678.85 | Z51: 1750000 | AA51: 14716678.85 | AB51: 429280565.9
A52: Puerto Rico…………………………………. | B52: 0.01479463748 | C52: 1658502.122 | D52: 0.01448142989 | E52: 339122.3104 | F52: 0.00970855693 | G52: 49601974.81 | H52: 0.01355903693 | I52: 320461.5446 | J52: 0.01978096088 | K52: 5389749.275 | L52: 0.003123081313 | M52: 2048739.703 | N52: 0.008771809993 | O52: 96277.52527 | P52: 0 | Q52: 0 | R52: 0 | S52: 0 | T52: 0.003057760421 | U52: 7625583.505 | V52: 0 | W52: 0 | X52: 0.01256286394 | Y52: 4389674.774 | Z52: 500000 | AA52: 4889674.774 | AB52: 71970085.57
A53: Rhode Island……………………………… | B53: 0.004793650249 | C53: 537375.7298 | D53: 0.004999711707 | E53: 117081.9317 | F53: 0.005632891713 | G53: 28778999.27 | H53: 0 | I53: 0 | J53: 0.003747166233 | K53: 1020996.23 | L53: 0.001270385128 | M53: 833371.9774 | N53: 0.006893125651 | O53: 75657.48455 | P53: 0 | Q53: 0 | R53: 0 | S53: 0 | T53: 0.001771381067 | U53: 4417551.536 | V53: 0 | W53: 0 | X53: 0.003530579403 | Y53: 1233643.492 | Z53: 1750000 | AA53: 2983643.492 | AB53: 38764677.66
A54: South Carolina……………………………… | B54: 0.008947388951 | C54: 1003016.369 | D54: 0.01105416979 | E54: 258863.6362 | F54: 0.005097781162 | G54: 26045066.7 | H54: 0 | I54: 0 | J54: 0.01547724843 | K54: 4217110.029 | L54: 0.02069485944 | M54: 13575816.93 | N54: 0.02178552172 | O54: 239113.2639 | P54: 0.01 | Q54: 200000 | R54: 0.00397732 | S54: 119319.6 | T54: 0 | U54: 0 | V54: 0 | W54: 0 | X54: 0.006932355101 | Y54: 2422280.816 | Z54: 1750000 | AA54: 4172280.816 | AB54: 49830587.34
A55: South Dakota………………………………. | B55: 0.004000000788 | C55: 448406.3774 | D55: 0.004999711707 | E55: 117081.9317 | F55: 0.0008144922801 | G55: 4161321.384 | H55: 0 | I55: 0 | J55: 0.0025060679 | K55: 682832.231 | L55: 0.01033224622 | M55: 6777948.097 | N55: 0.01049306584 | O55: 115169.6643 | P55: 0 | Q55: 0 | R55: 0.09032248 | S55: 2709674.4 | T55: 0 | U55: 0 | V55: 0 | W55: 0 | X55: 0.001130513387 | Y55: 395020.2851 | Z55: 1750000 | AA55: 2145020.285 | AB55: 17157454.37
A56: Tennessee…………………………………. | B56: 0.01316029948 | C56: 1475290.264 | D56: 0.01478451944 | E56: 346219.9815 | F56: 0.01021225597 | G56: 52175422.89 | H56: 0.01391869736 | I56: 328961.9521 | J56: 0.02085301079 | K56: 5681852.387 | L56: 0.02984870284 | M56: 19580733.41 | N56: 0.02829492132 | O56: 310559.0527 | P56: 0.0555 | Q56: 1110000 | R56: 0 | S56: 0 | T56: 0.001772110771 | U56: 4419371.305 | V56: 0 | W56: 0 | X56: 0.01119991814 | Y56: 3913438.715 | Z56: 1750000 | AA56: 5663438.715 | AB56: 91091849.95
A57: Texas………………………………………… | B57: 0.08464520158 | C57: 9488860.182 | D57: 0.08118216795 | E57: 1901102.623 | F57: 0.05907996815 | G57: 301845383.7 | H57: 0.04105368217 | I57: 970284.7238 | J57: 0.07010318526 | K57: 19101124.27 | L57: 0.06619943609 | M57: 43426795.34 | N57: 0.05358117785 | O57: 588095.6391 | P57: 0 | Q57: 0 | R57: 0 | S57: 0 | T57: 0.01105467665 | U57: 27568660.82 | V57: 0.03675754814 | W57: 2717138.226 | X57: 0.07683320171 | Y57: 26846805.71 | Z57: 1750000 | AA57: 28596805.71 | AB57: 436204251.3
A58: Utah…………………………………………. | B58: 0.009215520109 | C58: 1033074.293 | D58: 0.009611962888 | E58: 225090.4148 | F58: 0.01010159067 | G58: 51610022.95 | H58: 0.02106359548 | I58: 497828.303 | J58: 0.00659729296 | K58: 1797574.707 | L58: 0.01010656919 | M58: 6629904.085 | N58: 0.01010905715 | O58: 110954.8663 | P58: 0 | Q58: 0 | R58: 0.0036342 | S58: 109026 | T58: 0.003248700569 | U58: 8101758.823 | V58: 0.00380610493 | W58: 281349.3751 | X58: 0.00934305986 | Y58: 3264621.377 | Z58: 1750000 | AA58: 5014621.377 | AB58: 75411205.19
A59: Vermont…………………………………… | B59: 0.004000000788 | C59: =B59*C$67 -> 448406.3774 | D59: 0.004999711707 | E59: 117081.9317 | F59: 0.0005047153129 | G59: 2578640.308 | H59: 0 | I59: 0 | J59: 0.00176142599 | K59: 479938.4879 | L59: 0.005604631138 | M59: 3676635.086 | N59: 0.01008267775 | O59: 110665.3316 | P59: 0 | Q59: 0 | R59: 0 | S59: 0 | T59: 0 | U59: 0 | V59: 0 | W59: 0 | X59: 0.0004451780293 | Y59: 155552.649 | Z59: 1750000 | AA59: 1905552.649 | AB59: 9316920.172
A60: Virgin Islands……………………………… | B60: 0 | C60: 0 | D60: 0 | E60: 0 | F60: 0.0002232461692 | G60: 1140586.695 | H60: 0 | I60: 0 | J60: 0.0006112177898 | K60: 166539.4649 | L60: 0 | M60: 0 | N60: 0 | O60: 0 | P60: 0 | Q60: 0 | R60: 0 | S60: 0 | T60: 0 | U60: 0 | V60: 0 | W60: 0 | X60: 0.0003223323213 | Y60: 112628.304 | Z60: 500000 | AA60: 612628.304 | AB60: 1919754.464
A61: Virginia………………………………………. | B61: 0.02463070176 | C61: 2761140.393 | D61: 0.02392469447 | E61: 560262.1925 | F61: 0.02567050654 | G61: 131153149.5 | H61: 0.01149648436 | I61: 271714.072 | J61: 0.02288604295 | K61: 6235795.833 | L61: 0.02422441619 | M61: 15891204.31 | N61: 0.02463157635 | O61: 270350.9556 | P61: 0.0575 | Q61: 1150000 | R61: 0 | S61: 0 | T61: 0.0001548792375 | U61: 386244.9624 | V61: 0.02290541809 | W61: 1693181.135 | X61: 0.0258200338 | Y61: 9021951.65 | Z61: 1750000 | AA61: 10771951.65 | AB61: 171144995
A62: Washington………………………………… | B62: 0.02238762393 | C62: 2509687.842 | D62: 0.02160010591 | E62: 505825.5899 | F62: 0.02921372598 | G62: 149255807.1 | H62: 0.02458699382 | I62: 581102.1874 | J62: 0.02227238599 | K62: 6068591.764 | L62: 0.02012247397 | M62: 13200332.37 | N62: 0.0190116336 | O62: 208667.6564 | P62: 0 | Q62: 0 | R62: 0.07361324 | S62: 2208397.2 | T62: 0.01980356246 | U62: 49387034.44 | V62: 0.2309299581 | W62: 17070469.84 | X62: 0.03493072958 | Y62: 12205381.13 | Z62: 1750000 | AA62: 13955381.13 | AB62: 254951297.1
A63: West Virginia……………………………… | B63: 0.004000000788 | C63: 448406.3774 | D63: 0.004999711707 | E63: 117081.9317 | F63: 0.001948625089 | G63: 9955717.753 | H63: 0.01069139762 | I63: 252686.2206 | J63: 0.007837960166 | K63: 2135621.236 | L63: 0.01244282181 | M63: 8162484.58 | N63: 0.01560162508 | O63: 171240.1265 | P63: 0.0946 | Q63: 1892000 | R63: 0 | S63: 0 | T63: 0.0004189417153 | U63: 1044776.108 | V63: 0 | W63: 0 | X63: 0.002288728735 | Y63: 799720.0988 | Z63: 1750000 | AA63: 2549720.099 | AB63: 26729734.43
A64: Wisconsin………………………………… | B64: 0.01293423419 | C64: 1449947.989 | D64: 0.01359629843 | E64: 318394.535 | F64: 0.01012675717 | G64: 51738601.1 | H64: 0.01266441636 | I64: 299317.6027 | J64: 0.01779586538 | K64: 4848867.209 | L64: 0.02512414565 | M64: 16481426.37 | N64: 0.02537142431 | O64: 278471.3698 | P64: 0 | Q64: 0 | R64: 0.06890836 | S64: 2067250.8 | T64: 0.0005935168251 | U64: 1480139.543 | V64: 0 | W64: 0 | X64: 0.01385271223 | Y64: 4840369.339 | Z64: 1750000 | AA64: 6590369.339 | AB64: 85552785.85
A65: Wyoming…………………………………. | B65: 0.004000010172 | C65: 448407.4293 | D65: 0.004999711707 | E65: 117081.9317 | F65: 0.0004221041561 | G65: 2156571.761 | H65: 0 | I65: 0 | J65: 0.001634507616 | K65: 445356.8406 | L65: 0.01011015747 | M65: 6632257.998 | N65: 0.009381927831 | O65: 102974.0492 | P65: 0 | Q65: 0 | R65: 0.0054818 | S65: 164454 | T65: 0 | U65: 0 | V65: 0 | W65: 0 | X65: 0.0006185288435 | Y65: 216124.3228 | Z65: 1750000 | AA65: 1966124.323 | AB65: 12033228.33
A66: Unallocated………………. | B66: 0 | C66: 0 | D66: 0 | E66: 0 | F66: 0 | G66: 0 | H66: 0 | I66: 0 | J66: 0 | K66: 0 | L66: 0 | M66: 0 | N66: 0 | O66: 0 | P66: 0 | Q66: 0 | R66: 0 | S66: 0 | T66: 0 | U66: 0 | V66: 0 | W66: 0 | X66: 0 | Y66: 0 | Z66: 0 | AA66: 0 | AB66: 0
A67: Subtotal | C67: =C70-C68 -> 112101572.3 | E67: =E70-E68 -> 23417736.57 | G67: =G70-G68 -> 5109098620 | I67: =I70-I68 -> 23634535.87 | K67: =K70-K68 -> 272471560.3 | M67: =M70-M68 -> 655999475.4 | O67: =O70-O68 -> 10975787.82 | Q67: =Q70-Q68 -> 20000000 | S67: =S70-S68 -> 30000000 | U67: =U70-U68 -> 2493845971 | W67: =W70-W68 -> 73920551.39 | Y67: =Y70-Y68 -> 349416724.9 | Z67: =SUM(Z10:Z66) -> 90500000 | AA67: 439916724.9 | AB67: =SUM(C67+E67+G67+I67+K67+M67+O67+Q67+S67+U67+W67+AA67) -> 9265382535
A68: Oversight | C68: =C70*0.005 -> 563324.4838 | E68: =E70*0.005 -> 117677.0682 | F68: =G77*0.0075 -> 35049544.79 | G68: ='Program Totals'!H11*0.0075 -> 35451803.81 | I68: 0 | K68: =K70*0.005 -> 1369203.821 | M68: ='Program Totals'!H17*0.005 -> 3228172.888 | O68: 0 | Q68: 0 | S68: 0 | U68: =(U70+W70)*0.01 -> 25937035.57 | W68: 0 | Y68: =AA75*0.0075 -> 5602751.07 | Z68: 0 | AA68: =Y68 -> 5602751.07 | AB68: =SUM(C68+E68+G68+I68+K68+M68+O68+Q68+S68+U68+W68+AA68) -> 72269968.71
C69: 0 | E69: 0 | G69: 0 | I69: 0 | K69: 0 | M69: 0 | O69: 0 | Q69: 0 | S69: 0 | U69: 0 | W69: 0 | Y69: 0 | Z69: 0 | AA69: 0 | AB69: =SUM(C69:Z69) -> 0
A70: Subtotal | C70: ='Program Totals'!H9 -> 112664896.8 | E70: ='Program Totals'!H10 -> 23535413.64 | G70: =G77+G80+H79 -> 5144550423 | I70: ='Program Totals'!H12 -> 23634535.87 | K70: ='Program Totals'!H15 -> 273840764.1 | M70: =M77+I79 -> 659227648.3 | O70: ='Program Totals'!H23-O74 -> 10975787.82 | Q70: ='Program Totals'!H21 -> 20000000 | S70: ='Program Totals'!H19 -> 30000000 | U70: ='Program Totals'!H37 -> 2519783006 | W70: ='Program Totals'!H38 -> 73920551.39 | Y70: ='Program Totals'!H40-Z67 -> 355019476 | Z70: =Z67 -> 90500000 | AA70: =SUM(Y70+Z70) -> 445519476 | AB70: 9337652503 | AC70: =AB67+AB68 -> 9337652503
A71: Bus and Bus Facilities Discretionary Program | C71: 0 | E71: 0 | G71: 0 | I71: 0 | K71: 0 | M71: 0 | O71: 0 | Q71: 0 | S71: 0 | U71: 0 | W71: 0 | Y71: ='Program Totals'!H43 -> 301514000 | Z71: 0 | AA71: =Y71 -> 301514000 | AB71: 301514000
A72: Ferry discretionary Program | C72: 0 | E72: 0 | G72: ='Program Totals'!H13 -> 30000000 | I72: 0 | K72: 0 | M72: 0 | O72: 0 | Q72: 0 | S72: 0 | U72: 0 | W72: 0 | Y72: 0 | Z72: 0 | AA72: 0 | AB72: 30000000
A73: Tribal discretionary Program | C73: 0 | E73: 0 | G73: 0 | I73: 0 | K73: 0 | M73: 0 | O73: 0 | Q73: 0 | S73: 5000000 | U73: 0 | W73: 0 | Y73: 0 | Z73: 0 | AA73: 0 | AB73: 5000000
A74: National RTAP | C74: 0 | E74: 0 | G74: 0 | I74: 0 | K74: 0 | M74: 0 | O74: ='Program Totals'!H22 -> 1936903.733 | Q74: 0 | S74: 0 | U74: 0 | W74: 0 | Y74: 0 | Z74: 0 | AA74: 0 | AB74: 1936903.733
A75: Total | C75: =C70+C71+C72+C73+C74 -> 112664896.8 | E75: =E70+E71+E72+E73+E74 -> 23535413.64 | G75: 5174550423 | I75: 23634535.87 | K75: 273840764.1 | M75: 659227648.3 | O75: 12912691.55 | Q75: 20000000 | S75: 35000000 | U75: 2519783006 | W75: 73920551.39 | Y75: 656533476 | Z75: 90500000 | AA75: 747033476 | AB75: 9676103407 | AC75: ='Program Totals'!H61 -> 9676103407 | AD75: =AC70+AB71+AB72+AB73+AB74 -> 9676103407
AC76: =AB70+AB71+AB72+AB73+AB74 -> 9676103407
G77: ='Program Totals'!H14 -> 4673272638 | M77: ='Program Totals'!H18 -> 577721886
A78: *Allocations for UZAs that are within multiple-states are split between the applicable states.
G79: ='Program Totals'!H46 -> 286132747.3 | H79: =G79*0.715147032 -> 204626985 | I79: =G79-H79 -> 81505762.31
G80: ='Program Totals'!H47 -> 266650800.2 | I80: =SUM(I10:I66)-I67 -> 0 | K80: 0 | M80: 0 | O80: 0 | Q80: 0 | S80: 0 | U80: 0 | W80: 0 | Y80: 0 | Z80: 0 | AA80: 0 | AB80: 0

Sheet FY19
A1: FEDERAL TRANSIT ADMINISTRATION
A3: FISCAL YEAR 2019 ESTIMATED APPORTIONMENTS/ALLOCATIONS BY STATE FOR SELECTED FTA PROGRAMS
C5: The information in this table include allocations for formula programs apportioned via FTA's Apportionment Notice Published on March 10, 2014 as well as Discretionary Program allocations announced in Federal Register Announcements in 2014. For allocations under the Public Transportation Emergency Relief Program, Please Contact the FTA Office of Program Management at 202-366-4020
C6: Section 5303 | E6: Section 5304 | G6: Section 5307 + 5340 | I6: Section 5329 (e) | K6: Section 5310 | M6: Section 5311 + 5340 | O6: Section 5311(b)(3) | Q6: Section 5311(c)(2) | S6: Section 5311(c)(1)
B8: Metropolitan Planning | C8: Metropolitan | D8: Statewide Planning | E8: Statewide | F8: Urban | G8: Urbanized Area | H8: SSO | I8: State Safety | J8: 5310 | K8: Enhanced Mobility for | L8: 5311 | M8: Nonurbanized Area | N8: RTAP | P8: App | Q8: Appalachian Dev. Public | R8: Indian | S8: Indian Reserv. | T8: SGR | U8: High Intensity | V8: HIMB | W8: High Intensity | X8: 5339 | Y8: Bus and Bus | Z8: Statewide
A9: State | B9: Percentage | C9: Planning | D9: Percentage | E9: Planning | F9: Percentage | G9: Formula | H9: Percentqage | I9: Oversight Program | J9: Percentage | K9: Older Adults and People with Disabilities | L9: Percentage | M9: Formula | N9: Percentage | O9: RTAP | P9: Percentage | Q9: Trans. Assist. Program | R9: Percentage | S9: Formula | T9: Percentage | U9: Fixed Guideway | V9: Percentage | W9: MotorBus | X9: Percentage | Y9: Facilities Formula | Z9: Allocation | AA9: 5339 Total | AB9: State Total
A10: Alabama…………………………………… | B10: 0.007971166334 | C10: =B10*C$67 -> 912524.1808 | D10: 0.009962715709 | E10: =D10*E$67 -> 238250.3021 | F10: 0.00482590369 | G10: =F10*G$67 -> 25164883.41 | H10: 0 | I10: =H10*I$67 -> 0 | J10: 0.01631521576 | K10: =J10*K$67 -> 4539675.459 | L10: 0.02486553856 | M10: =L10*M$67 -> 16694461.69 | N10: 0.0249182639 | O10: =N10*O$67 -> 279295.726 | P10: 0.25 | Q10: =P10*Q$67 -> 5000000 | R10: 7.44e-06 | S10: =R10*S$67 -> 223.2 | T10: 0 | U10: =T10*U$67 -> 0 | V10: 0 | W10: =V10*W$67 -> 0 | X10: 0.006682205509 | Y10: =X10*Y$67 -> 2396484.837 | Z10: 1750000 | AA10: =SUM(Y10+Z10) -> 4146484.837 | AB10: =SUM(C10+E10+G10+I10+K10+M10+O10+Q10+S10+U10+W10+AA10) -> 56975798.8
A11: Alaska………………………………………. | B11: 0.004000000788 | C11: =B11*C$67 -> 457912.5926 | D11: 0.004999711707 | E11: 119564.0686 | F11: 0.003376896687 | G11: =F11*G$67 -> 17608973.75 | H11: 0 | I11: =H11*I$67 -> 0 | J11: 0.001491093777 | K11: =J11*K$67 -> 414893.7977 | L11: 0.01310523456 | M11: =L11*M$67 -> 8798716.975 | N11: 0.009144419019 | O11: =N11*O$67 -> 102494.9876 | P11: 0 | Q11: =P11*Q$67 -> 0 | R11: 0.01486264 | S11: =R11*S$67 -> 445879.2 | T11: 0.009551267246 | U11: =T11*U$67 -> 24229556.7 | V11: 0 | W11: =V11*W$67 -> 0 | X11: 0.001748402086 | Y11: =X11*Y$67 -> 627041.3386 | Z11: 1750000 | AA11: =SUM(Y11+Z11) -> 2377041.339 | AB11: =SUM(C11+E11+G11+I11+K11+M11+O11+Q11+S11+U11+W11+AA11) -> 54555033.41
A12: American Samoa……………………………. | B12: 0 | C12: 0 | D12: 0 | E12: 0 | G12: 0 | H12: 0 | I12: 0 | J12: 4.635198678e-05 | K12: 12897.34564 | L12: 0.0004854920731 | M12: 325954.2838 | N12: 0.001367206618 | O12: 15324.30055 | P12: 0 | Q12: 0 | R12: 0 | S12: 0 | T12: 0 | U12: 0 | V12: 0 | W12: 0 | X12: 0 | Y12: 0 | Z12: 500000 | AA12: 500000 | AB12: 854175.93
A13: Arizona………………………………………. | B13: 0.02296302448 | C13: 2628764.001 | D13: 0.02192702709 | E13: 524367.1486 | F13: 0.01540836423 | G13: 80347581.35 | H13: 0.01924905521 | I13: 464587.2665 | J13: 0.02164952 | K13: 6023934.72 | L13: 0.01877265824 | M13: 12603765.77 | N13: 0.0158810583 | O13: 178002.4373 | P13: 0 | Q13: 0 | R13: 0.06155668 | S13: 1846700.4 | T13: 0.000163793874 | U13: 415510.6182 | V13: 0.03591739399 | W13: 2700752.966 | X13: 0.0209724611 | Y13: 7521496.451 | Z13: 1750000 | AA13: 9271496.451 | AB13: 117005463.1
A14: Arkansas……………………………………. | B14: 0.004012067863 | C14: 459294.0088 | D14: 0.005057894075 | E14: 120955.453 | F14: 0.002590379896 | G14: 13507647.94 | H14: 0.01010808204 | I14: 243964.504 | J14: 0.009648577367 | K14: 2684696.944 | L14: 0.01934206344 | M14: 12986058.45 | N14: 0.01962438938 | O14: 219959.4683 | P14: 0 | Q14: 0 | R14: 0 | S14: 0 | T14: 0.0001319452713 | U14: 334717.4099 | V14: 0 | W14: 0 | X14: 0.003565206949 | Y14: 1278614.431 | Z14: 1750000 | AA14: 3028614.431 | AB14: 33585908.61
A15: California………………………………… | B15: 0.1499952909 | C15: 17171179.76 | D15: 0.1432202417 | E15: 3424996.443 | F15: 0.16094378 | G15: 839248298 | H15: 0.1274520314 | I15: 3076129.725 | J15: 0.1103755967 | K15: 30711784.32 | L15: 0.04451564785 | M15: 29887338.89 | N15: 0.03542291784 | O15: 397036.872 | P15: 0 | Q15: 0 | R15: 0.0212738 | S15: 638214 | T15: 0.154026701 | U15: 390733353.8 | V15: 0.2394678438 | W15: 18006414.65 | X15: 0.1808413205 | Y15: 64856353.46 | Z15: 1750000 | AA15: 66606353.46 | AB15: 1399901100
A16: Colorado……………………………………. | B16: 0.01679617675 | C16: 1922794.832 | D16: 0.01656154776 | E16: 396056.0425 | F16: 0.01524685129 | G16: 79505365.15 | H16: 0.02364576722 | I16: 570704.4962 | J16: 0.01445304974 | K16: 4021531.569 | L16: 0.01779622779 | M16: 11948200.61 | N16: 0.01503484483 | O16: 168517.6752 | P16: 0 | Q16: 0 | R16: 0.00609984 | S16: 182995.2 | T16: 0.005758380688 | U16: 14607801.02 | V16: 0.00587978619 | W16: 442121.441 | X16: 0.01874620298 | Y16: 6723078.35 | Z16: 1750000 | AA16: 8473078.35 | AB16: 122239166.4
A17: Connecticut……………………………… | B17: 0.01039382401 | C17: 1189865.49 | D17: 0.01299046852 | E17: 310656.566 | F17: 0.01917651961 | G17: 99996790.46 | H17: 0 | I17: 0 | J17: 0.01225706319 | K17: 3410502.797 | L17: 0.004753373426 | M17: 3191365.043 | N17: 0.01027496473 | O17: 115166.6804 | P17: 0 | Q17: 0 | R17: 0 | S17: 0 | T17: 0.02381332166 | U17: 60409389.93 | V17: 0.01362787676 | W17: 1024727.144 | X17: 0.01155847235 | Y17: 4145293.599 | Z17: 1750000 | AA17: 5895293.599 | AB17: 175543757.7
A18: Delaware……………………………………. | B18: 0.004000000788 | C18: 457912.5926 | D18: 0.004999711707 | E18: 119564.0686 | F18: 0.003942355046 | G18: 20557580.81 | H18: 0 | I18: 0 | J18: 0.003156320168 | K18: 878239.6398 | L18: 0.002713040228 | M18: 1821506.742 | N18: 0.008275123576 | O18: 92751.51174 | P18: 0 | Q18: 0 | R18: 0 | S18: 0 | T18: 0 | U18: 0 | V18: 0 | W18: 0 | X18: 0.002580878463 | Y18: 925598.007 | Z18: 1750000 | AA18: 2675598.007 | AB18: 26603153.37
A19: District of Columbia………………………. | B19: 0.004000000788 | C19: 457912.5926 | D19: 0.004999711707 | E19: 119564.0686 | F19: 0.004234852027 | G19: 22082818.96 | H19: 0.08022275801 | I19: 1936223.438 | J19: 0.00144302505 | K19: 401518.7726 | L19: 0 | M19: 0 | N19: 0 | O19: 0 | P19: 0 | Q19: 0 | R19: 0 | S19: 0 | T19: 0.07014426217 | U19: 177941244.2 | V19: 0.0766135825 | W19: 5760840.004 | X19: 0.003529031997 | Y19: 1265640.761 | Z19: 500000 | AA19: 1765640.761 | AB19: 210465762.8
A20: Florida………………………………………. | B20: 0.07206520079 | C20: 8249889.108 | D20: 0.07043658731 | E20: 1684434.114 | F20: 0.05192844292 | G20: 270783110.4 | H20: 0.03410368609 | I20: 823112.5179 | J20: 0.0797727053 | K20: 22196592.31 | L20: 0.02529910643 | M20: 16985554.61 | N20: 0.02420573746 | O20: 271309.3916 | P20: 0 | Q20: 0 | R20: 0 | S20: 0 | T20: 0.01782058362 | U20: 45207073.6 | V20: 0.02226598741 | W20: 1674256.533 | X20: 0.06676305109 | Y20: 23943687.36 | Z20: 1750000 | AA20: 25693687.36 | AB20: 393569019.9
A21: Georgia……………………………………… | B21: 0.02845664015 | C21: 3257662.825 | D21: 0.02713904115 | E21: 649008.2566 | F21: 0.01856881759 | G21: 96827902.02 | H21: 0.03788671459 | I21: 914418.1352 | J21: 0.0264952058 | K21: 7372236.894 | L21: 0.03418615713 | M21: 22952227.2 | N21: 0.03180187412 | O21: 356450.4958 | P21: 0.0296 | Q21: 592000 | R21: 0 | S21: 0 | T21: 0.01903536017 | U21: 48288706.27 | V21: 0.05226137704 | W21: 3929713.527 | X21: 0.02124507764 | Y21: 7619266.776 | Z21: 1750000 | AA21: 9369266.776 | AB21: 194509592.4
A22: Guam………………………………………… | B22: 0 | C22: 0 | D22: 0 | E22: 0 | G22: 0 | H22: 0 | I22: 0 | J22: 0.0001754881403 | K22: 48829.2166 | L22: 0.001272349871 | M22: 854242.3532 | N22: 0.002162357105 | O22: 24236.72451 | P22: 0 | Q22: 0 | R22: 0 | S22: 0 | T22: 0 | U22: 0 | V22: 0 | W22: 0 | X22: 0 | Y22: 0 | Z22: 500000 | AA22: 500000 | AB22: 1427308.294
A23: Hawaii………………………………………. | B23: 0.004000000788 | C23: 457912.5926 | D23: 0.004999711707 | E23: 119564.0686 | F23: 0.006399997244 | G23: 33373062.29 | H23: 0.009674363316 | I23: 233496.4475 | J23: 0.004395293938 | K23: 1222981.56 | L23: 0.004336002151 | M23: 2911146.349 | N23: 0.00909655925 | O23: 101958.5526 | P23: 0 | Q23: 0 | R23: 0 | S23: 0 | T23: 0.0001238573054 | U23: 314199.941 | V23: 0.01470165912 | W23: 1105468.55 | X23: 0.01036615936 | Y23: 3717686.275 | Z23: 1750000 | AA23: 5467686.275 | AB23: 45307476.63
A24: Idaho…………………………………………. | B24: 0.004000000788 | C24: 457912.5926 | D24: 0.004999711707 | E24: 119564.0686 | F24: 0.002108788278 | G24: 10996367.64 | H24: 0 | I24: 0 | J24: 0.005271798589 | K24: 1466867.189 | L24: 0.01238669807 | M24: 8316299.119 | N24: 0.01206395912 | O24: 135218.5784 | P24: 0 | Q24: 0 | R24: 0.04141664 | S24: 1242499.2 | T24: 0 | U24: 0 | V24: 0 | W24: 0 | X24: 0.003019350304 | Y24: 1082850.147 | Z24: 1750000 | AA24: 2832850.147 | AB24: 25567578.53
A25: Illinois……………………………………… | B25: 0.04770455379 | C25: 5461127.9 | D25: 0.04396164573 | E25: 1051307.262 | F25: 0.05550025333 | G25: 289408470.2 | H25: 0.0770149709 | I25: 1858801.61 | J25: 0.03788746303 | K25: 10542109.2 | L25: 0.02607866962 | M25: 17508945.15 | N25: 0.02580291592 | O25: 289211.3256 | P25: 0 | Q25: 0 | R25: 0 | S25: 0 | T25: 0.104631839 | U25: 265428975 | V25: 0 | W25: 0 | X25: 0.04406262923 | Y25: 15802480.58 | Z25: 1750000 | AA25: 17552480.58 | AB25: 609101428.2
A26: Indiana……………………………………… | B26: 0.01626858471 | C26: 1862397.084 | D26: 0.01643776291 | E26: 393095.828 | F26: 0.01170141114 | G26: 61017514.21 | H26: 0 | I26: 0 | J26: 0.02057800609 | K26: 5725788.162 | L26: 0.02570824681 | M26: 17260247.16 | N26: 0.02639456818 | O26: 295842.8449 | P26: 0 | Q26: 0 | R26: 0 | S26: 0 | T26: 0.001106916121 | U26: 2808013.454 | V26: 0 | W26: 0 | X26: 0.01306697334 | Y26: 4686297.575 | Z26: 1750000 | AA26: 6436297.575 | AB26: 95799196.32
A27: Iowa…………………………………………. | B27: 0.004350021032 | C27: =B27*C$67 -> 497982.254 | D27: 0.005436843301 | E27: 130017.7178 | F27: 0.004308320981 | G27: 22465926 | H27: 0 | I27: 0 | J27: 0.009289615525 | K27: 2584816.545 | L27: 0.01965541976 | M27: 13196442.59 | N27: 0.0197339581 | O27: 221187.5665 | P27: 0 | Q27: 0 | R27: 0 | S27: 0 | T27: 0 | U27: 0 | V27: 0 | W27: 0 | X27: 0.005530684206 | Y27: 1983506.915 | Z27: 1750000 | AA27: 3733506.915 | AB27: 42829879.59
A28: Kansas………………………………………. | B28: 0.00589772193 | C28: 675160.1519 | D28: 0.006132892981 | E28: 146663.1838 | F28: 0.003686695333 | G28: 19224432.19 | H28: 0 | I28: 0 | J28: 0.008196292795 | K28: 2280601.729 | L28: 0.01770502652 | M28: 11886969.03 | N28: 0.01701019083 | O28: 190658.2905 | P28: 0 | Q28: 0 | R28: 0.00358388 | S28: 107516.4 | T28: 0 | U28: 0 | V28: 0 | W28: 0 | X28: 0.004932716583 | Y28: 1769053.717 | Z28: 1750000 | AA28: 3519053.717 | AB28: 38031054.69
A29: Kentucky…………………………………… | B29: 0.006586689984 | C29: 754031.9233 | D29: 0.007620057003 | E29: 182227.5107 | F29: 0.0051451019 | G29: 26829356.27 | H29: 0 | I29: 0 | J29: 0.01327687682 | K29: 3694263.855 | L29: 0.02693413172 | M29: 18083293.43 | N29: 0.02573310472 | O29: 288428.8486 | P29: 0.0882 | Q29: 1764000 | R29: 0 | S29: 0 | T29: 0 | U29: 0 | V29: 0 | W29: 0 | X29: 0.007234698109 | Y29: 2594629.018 | Z29: 1750000 | AA29: 4344629.018 | AB29: 55940230.86
A30: Louisiana……………………………………. | B30: 0.009531262728 | C30: 1091121.092 | D30: 0.01191258887 | E30: 284879.9444 | F30: 0.007016661499 | G30: 36588684.71 | H30: 0.01296410348 | I30: 312896.2609 | J30: 0.01566300206 | K30: 4358198.329 | L30: 0.01841591101 | M30: 12364249.43 | N30: 0.01954694699 | O30: 219091.4573 | P30: 0 | Q30: 0 | R30: 0 | S30: 0 | T30: 0.001657168917 | U30: 4203889.097 | V30: 0.00634620524 | W30: 477193.1012 | X30: 0.0095044024 | Y30: 3408628.514 | Z30: 1750000 | AA30: 5158628.514 | AB30: 65058831.93
A31: Maine………………………………………… | B31: 0.004000000788 | C31: 457912.5926 | D31: 0.004999711707 | E31: 119564.0686 | F31: 0.002747242076 | G31: 14325612.56 | H31: 0 | I31: 0 | J31: 0.004267874525 | K31: 1187527.369 | L31: 0.01107464745 | M31: 7435402.1 | N31: 0.01362976493 | O31: 152768.873 | P31: 0 | Q31: 0 | R31: 0.00209244 | S31: 62773.2 | T31: 0.003293485409 | U31: 8354879.976 | V31: 0 | W31: 0 | X31: 0.001306281335 | Y31: 468480.5648 | Z31: 1750000 | AA31: 2218480.565 | AB31: 34314921.31
A32: Maryland……………………………………. | B32: 0.02250815393 | C32: 2576691.273 | D32: 0.02066347017 | E32: 494150.2051 | F32: 0.03141558347 | G32: 163817918.1 | H32: 0.02726192906 | I32: 657982.6887 | J32: 0.01750911927 | K32: 4871876.673 | L32: 0.008915532193 | M32: 5985794.768 | N32: 0.01340356158 | O32: 150233.4784 | P32: 0.0318 | Q32: 636000 | R32: 0 | S32: 0 | T32: 0.02482051546 | U32: 62964428.83 | V32: 0 | W32: 0 | X32: 0.02295667356 | Y32: 8233108.068 | Z32: 1750000 | AA32: 9983108.068 | AB32: 252138184
A33: Massachusetts……………………………. | B33: 0.02676146946 | C33: 3063602.862 | D33: 0.02533285618 | E33: 605814.8013 | F33: 0.03947305749 | G33: 205833964.6 | H33: 0.05152604488 | I33: 1243611.392 | J33: 0.0226064318 | K33: 6290193.472 | L33: 0.005895471338 | M33: 3958157.598 | N33: 0.01098570114 | O33: 123132.9513 | P33: 0 | Q33: 0 | R33: 0 | S33: 0 | T33: 0.05766606083 | U33: 146286671.1 | V33: 0.0007119252628 | W33: 53532.12055 | X33: 0.02332246484 | Y33: 8364294.284 | Z33: 1750000 | AA33: 10114294.28 | AB33: 377572975.2
A34: Michigan……………………………………. | B34: 0.02806427254 | C34: 3212745.317 | D34: 0.02810688498 | E34: 672153.4603 | F34: 0.01798645204 | G34: 93791131.67 | H34: 0.01304973479 | I34: 314963.0227 | J34: 0.03407517331 | K34: 9481347.371 | L34: 0.03338673791 | M34: 22415505.52 | N34: 0.03157293862 | O34: 353884.478 | P34: 0 | Q34: 0 | R34: 0.0014982 | S34: 44946 | T34: 0.0005126279629 | U34: 1300429.354 | V34: 0 | W34: 0 | X34: 0.0258222891 | Y34: 9260823.271 | Z34: 1750000 | AA34: 11010823.27 | AB34: 142597929.5
A35: Minnesota…………………………………. | B35: 0.01450272874 | C35: 1660245.202 | D35: 0.01317920113 | E35: 315169.9538 | F35: 0.01254847429 | G35: 65434561.64 | H35: 0.01412113532 | I35: 340821.9046 | J35: 0.01422662258 | K35: 3958528.673 | L35: 0.02494488507 | M35: 16747734.1 | N35: 0.02318362992 | O35: 259853.1253 | P35: 0 | Q35: 0 | R35: 0.06497376 | S35: 1949212.8 | T35: 0.002988328432 | U35: 7580760.89 | V35: 0.1096095253 | W35: 8241918.96 | X35: 0.01476922899 | Y35: 5296789.104 | Z35: 1750000 | AA35: 7046789.104 | AB35: 113535596.4
A36: Mississippi…………………………………. | B36: 0.004000000788 | C36: 457912.5926 | D36: 0.004999711707 | E36: 119564.0686 | F36: 0.001759002068 | G36: 9172392.32 | H36: 0 | I36: 0 | J36: 0.008044116589 | K36: 2238259.01 | L36: 0.02259996171 | M36: 15173377.16 | N36: 0.02257012045 | O36: 252976.62 | P36: 0.0127 | Q36: 254000 | R36: 0.03018832 | S36: 905649.6 | T36: 0 | U36: 0 | V36: 0 | W36: 0 | X36: 0.002261756835 | Y36: 811149.2458 | Z36: 1750000 | AA36: 2561149.246 | AB36: 31135280.62
A37: Missouri……………………………………. | B37: 0.01555399055 | C37: 1780591.684 | D37: 0.01452464111 | E37: 347345.0646 | F37: 0.01007326582 | G37: 52527480.06 | H37: 0.03017316901 | I37: 728247.1768 | J37: 0.01891439157 | K37: 5262890.82 | L37: 0.02828471879 | M37: 18990063.42 | N37: 0.02602431446 | O37: 291692.8655 | P37: 0 | Q37: 0 | R37: 0 | S37: 0 | T37: 0.007125340215 | U37: 18075489.91 | V37: 0.0004136178801 | W37: 31101.35765 | X37: 0.01248070993 | Y37: 4476041.94 | Z37: 1750000 | AA37: 6226041.94 | AB37: 104260944.3
A38: Montana…………………………………… | B38: 0.004000000788 | C38: 457912.5926 | D38: 0.004999711707 | E38: 119564.0686 | F38: 0.0009583638481 | G38: 4997429.715 | H38: 0 | I38: 0 | J38: 0.003248651275 | K38: 903930.5817 | L38: 0.0161071082 | M38: 10814143.44 | N38: 0.01169285749 | O38: 131059.0952 | P38: 0 | Q38: 0 | R38: 0.06420504 | S38: 1926151.2 | T38: 0 | U38: 0 | V38: 0 | W38: 0 | X38: 0.001153552305 | Y38: 413706.3134 | Z38: 1750000 | AA38: 2163706.313 | AB38: 21513897.01
A39: N. Mariana Islands…………………………. | B39: 0 | C39: 0 | D39: 0 | E39: 0 | G39: 0 | H39: 0 | I39: 0 | J39: 3.662638138e-05 | K39: 10191.21581 | L39: 0.0004673274972 | M39: 313758.7782 | N39: 0.001354770616 | O39: 15184.91192 | P39: 0 | Q39: 0 | R39: 0 | S39: 0 | T39: 0 | U39: 0 | V39: 0 | W39: 0 | X39: 0 | Y39: 0 | Z39: 500000 | AA39: 500000 | AB39: 839134.9059
A40: Nebraska……………………………………. | B40: 0.004000000788 | C40: 457912.5926 | D40: 0.004999711707 | E40: 119564.0686 | F40: 0.002304178124 | G40: 12015236.43 | H40: 0 | I40: 0 | J40: 0.004774833359 | K40: 1328587.629 | L40: 0.01234123408 | M40: 8285775.07 | N40: 0.01258768442 | O40: 141088.7401 | P40: 0 | Q40: 0 | R40: 0.01868076 | S40: 560422.8 | T40: 0 | U40: 0 | V40: 0 | W40: 0 | X40: 0.003370902981 | Y40: 1208929.876 | Z40: 1750000 | AA40: 2958929.876 | AB40: 25867517.21
A41: Nevada………………………………………. | B41: 0.01082489821 | C41: 1239214.057 | D41: 0.01000950603 | E41: 239369.2549 | F41: 0.008265558333 | G41: 43101111.24 | H41: 0 | I41: 0 | J41: 0.008020575497 | K41: 2231708.749 | L41: 0.01039093463 | M41: 6976364.483 | N41: 0.008913599268 | O41: 99907.85028 | P41: 0 | Q41: 0 | R41: 0.00338348 | S41: 101504.4 | T41: 0.0009858635436 | U41: 2500928.517 | V41: 0 | W41: 0 | X41: 0.01074640236 | Y41: 3854055.41 | Z41: 1750000 | AA41: 5604055.41 | AB41: 62094163.96
A42: New Hampshire……………………………. | B42: 0.004000000788 | C42: 457912.5926 | D42: 0.004999711707 | E42: 119564.0686 | F42: 0.00166172797 | G42: 8665152.333 | H42: 0 | I42: 0 | J42: 0.004287477213 | K42: 1192981.777 | L42: 0.006339084466 | M42: 4255994.797 | N42: 0.01143264355 | O42: 128142.4939 | P42: 0 | Q42: 0 | R42: 0 | S42: 0 | T42: 0 | U42: 0 | V42: 0 | W42: 0 | X42: 0.001980271738 | Y42: 710198.33 | Z42: 1750000 | AA42: 2460198.33 | AB42: 17279946.39
A43: New Jersey…………………………………. | B43: 0.03871707888 | C43: =B43*C$67 -> 4432258.619 | D43: 0.03474674586 | E43: 830940.372 | F43: 0.0796195343 | G43: 415179503.5 | H43: 0.04043515414 | I43: 975926.2223 | J43: 0.02776177558 | K43: 7724657.35 | L43: 0.00613516515 | M43: 4119085.508 | N43: 0.01134596838 | O43: 127170.9974 | P43: 0 | Q43: 0 | R43: 0 | S43: 0 | T43: 0.0706308469 | U43: 179175607.4 | V43: 0 | W43: 0 | X43: 0.04593402945 | Y43: 16473633.58 | Z43: 1750000 | AA43: 18223633.58 | AB43: 630788783.5
A44: New Mexico………………………………… | B44: 0.004000000788 | C44: 457912.5926 | D44: 0.004999711707 | E44: 119564.0686 | F44: 0.004953759205 | G44: 25831591.52 | H44: 0 | I44: 0 | J44: 0.006686221659 | K44: 1860427.519 | L44: 0.01664801735 | M44: 11177304.17 | N44: 0.01341712813 | O44: 150385.5387 | P44: 0 | Q44: 0 | R44: 0.024074 | S44: 722220 | T44: 0.001814595314 | U44: 4603246.765 | V44: 0 | W44: 0 | X44: 0.004643567055 | Y44: 1665354.054 | Z44: 1750000 | AA44: 3415354.054 | AB44: 48338006.22
A45: New York……………………………………. | B45: 0.07311576822 | C45: 8370156.098 | D45: 0.06862944209 | E45: 1641217.695 | F45: 0.1331686738 | G45: 694413806 | H45: 0.1052297893 | I45: 2539782.843 | J45: 0.06097806219 | K45: 16967021.25 | L45: 0.03316471385 | M45: 22266440.9 | N45: 0.03185218341 | O45: 357014.3861 | P45: 0.01 | Q45: 200000 | R45: 0.00227624 | S45: 68287.2 | T45: 0.2894780333 | U45: 734344903.2 | V45: 0.112080818 | W45: 8427743.998 | X45: 0.09079598492 | Y45: 32562781.97 | Z45: 1750000 | AA45: 34312781.97 | AB45: 1523909156
A46: North Carolina…………………………………… | B46: 0.01970086059 | C46: 2255317.593 | D46: 0.02241980949 | E46: 536151.6417 | F46: 0.01382133855 | G46: 72071967.35 | H46: 0.01524434526 | I46: 367931.237 | J46: 0.02804378318 | K46: 7803125.389 | L46: 0.04277804033 | M46: 28720727.43 | N46: 0.03907109465 | O46: 437927.3688 | P46: 0.0725 | Q46: 1450000 | R46: 0.02251676 | S46: 675502.8 | T46: 0.0002737632627 | U46: 694479.8346 | V46: 0.005943733368 | W46: 446929.8503 | X46: 0.01906145675 | Y46: 6836139.956 | Z46: 1750000 | AA46: 8586139.956 | AB46: 124046200.5
A47: North Dakota………………………………. | B47: 0.004000000788 | C47: 457912.5926 | D47: 0.004999711707 | E47: 119564.0686 | F47: 0.001073014342 | G47: 5595279.669 | H47: 0 | I47: 0 | J47: 0.002242765777 | K47: 624044.9964 | L47: 0.008266730347 | M47: 5550196.016 | N47: 0.009213759156 | O47: 103272.1847 | P47: 0 | Q47: 0 | R47: 0.029133 | S47: 873990 | T47: 0 | U47: 0 | V47: 0 | W47: 0 | X47: 0.001287896771 | Y47: 461887.1835 | Z47: 1750000 | AA47: 2211887.183 | AB47: 15536146.71
A48: Ohio………………………………………… | B48: 0.032451968 | C48: 3715040.468 | D48: 0.03228222281 | E48: 772003.2932 | F48: 0.02110731906 | G48: 110065027.7 | H48: 0.02472331311 | I48: 596711.7 | J48: 0.03848134252 | K48: 10707354.95 | L48: 0.0368327098 | M48: 24729094.89 | N48: 0.03676723091 | O48: 412104.5708 | P48: 0.0482 | Q48: 964000 | R48: 0 | S48: 0 | T48: 0.01071756191 | U48: 27188201.04 | V48: 0.004046042299 | W48: 304235.9014 | X48: 0.02719502364 | Y48: 9753136.399 | Z48: 1750000 | AA48: 11503136.4 | AB48: 190956910.9
A49: Oklahoma…………………………………… | B49: 0.005887850575 | C49: 674030.0977 | D49: 0.007358912886 | E49: 175982.46 | F49: 0.003650624765 | G49: 19036340.65 | H49: 0 | I49: 0 | J49: 0.01124265614 | K49: 3128246.106 | L49: 0.02380868139 | M49: 15984898.87 | N49: 0.02169724494 | O49: 243193.0171 | P49: 0 | Q49: 0 | R49: 0.31196952 | S49: 9359085.6 | T49: 0 | U49: 0 | V49: 0 | W49: 0 | X49: 0.005072469887 | Y49: 1819174.396 | Z49: 1750000 | AA49: 3569174.396 | AB49: 52170951.2
A50: Oregon………………………………………. | B50: 0.01043003462 | C50: 1194010.813 | D50: 0.01025445685 | E50: 245227.056 | F50: 0.01079764708 | G50: 56304797.47 | H50: 0.03237966649 | I50: 781502.291 | J50: 0.01279385913 | K50: 3559865.17 | L50: 0.01931467508 | M50: 12967670.19 | N50: 0.01713266662 | O50: 192031.0573 | P50: 0 | Q50: 0 | R50: 0.03027016 | S50: 908104.8 | T50: 0.008498435299 | U50: 21558743.43 | V50: 0.001555089075 | W50: 116932.5211 | X50: 0.01296888143 | Y50: 4651118.204 | Z50: 1750000 | AA50: 6401118.204 | AB50: 104230003
A51: Pennsylvania………………………………. | B51: 0.03897942047 | C51: 4462290.992 | D51: 0.03846408849 | E51: 919837.6197 | F51: 0.03720618936 | G51: 194013282.8 | H51: 0.06449988225 | I51: 1556742.586 | J51: 0.04605574033 | K51: 12814915.67 | L51: 0.03477270168 | M51: 23346027.05 | N51: 0.03464623293 | O51: 388331.419 | P51: 0.2394 | Q51: 4788000 | R51: 0 | S51: 0 | T51: 0.07135361551 | U51: 181009119.3 | V51: 0.004158507427 | W51: 312692.5431 | X51: 0.03710949684 | Y51: 13308831.39 | Z51: 1750000 | AA51: 15058831.39 | AB51: 438670071.4
A52: Puerto Rico…………………………………. | B52: 0.01479463748 | C52: 1693662.367 | D52: 0.01448142989 | E52: 346311.7034 | F52: 0.009828193494 | G52: 51249539.83 | H52: 0.01355903693 | I52: 327255.3294 | J52: 0.01978096088 | K52: 5504011.96 | L52: 0.003123081313 | M52: 2096804.025 | N52: 0.008771809993 | O52: 98318.6088 | P52: 0 | Q52: 0 | R52: 0 | S52: 0 | T52: 0.003057760421 | U52: 7756895.247 | V52: 0 | W52: 0 | X52: 0.01256286394 | Y52: 4505505.39 | Z52: 500000 | AA52: 5005505.39 | AB52: 74078304.46
A53: Rhode Island……………………………… | B53: 0.004793650249 | C53: 548768.0953 | D53: 0.004999711707 | E53: 119564.0686 | F53: 0.005582881279 | G53: 29112175.77 | H53: 0 | I53: 0 | J53: 0.003747166233 | K53: 1042641.35 | L53: 0.001270385128 | M53: 852923.2453 | N53: 0.006893125651 | O53: 77261.42322 | P53: 0 | Q53: 0 | R53: 0 | S53: 0 | T53: 0.001771381067 | U53: 4493621.307 | V53: 0 | W53: 0 | X53: 0.003530579403 | Y53: 1266195.718 | Z53: 1750000 | AA53: 3016195.718 | AB53: 39263150.98
A54: South Carolina……………………………… | B54: 0.008947388951 | C54: 1024280.316 | D54: 0.01105416979 | E54: 264351.5453 | F54: 0.005087757311 | G54: 26530330.44 | H54: 0 | I54: 0 | J54: 0.01547724843 | K54: 4306512.762 | L54: 0.02069485944 | M54: 13894311.48 | N54: 0.02178552172 | O54: 244182.4651 | P54: 0.01 | Q54: 200000 | R54: 0.00397732 | S54: 119319.6 | T54: 0 | U54: 0 | V54: 0 | W54: 0 | X54: 0.006932355101 | Y54: 2486197.687 | Z54: 1750000 | AA54: 4236197.687 | AB54: 50819486.3
A55: South Dakota………………………………. | B55: 0.004000000788 | C55: 457912.5926 | D55: 0.004999711707 | E55: 119564.0686 | F55: 0.0008255439648 | G55: 4304834.691 | H55: 0 | I55: 0 | J55: 0.0025060679 | K55: 697308.2743 | L55: 0.01033224622 | M55: 6936961.698 | N55: 0.01049306584 | O55: 117611.2612 | P55: 0 | Q55: 0 | R55: 0.09032248 | S55: 2709674.4 | T55: 0 | U55: 0 | V55: 0 | W55: 0 | X55: 0.001130513387 | Y55: 405443.7094 | Z55: 1750000 | AA55: 2155443.709 | AB55: 17499310.7
A56: Tennessee…………………………………. | B56: 0.01316029948 | C56: 1506566.417 | D56: 0.01478451944 | E56: 353559.8451 | F56: 0.0101841566 | G56: 53105724.84 | H56: 0.01391869736 | I56: 335935.9455 | J56: 0.02085301079 | K56: 5802307.658 | L56: 0.02984870284 | M56: 20040105.9 | N56: 0.02829492132 | O56: 317142.9046 | P56: 0.0555 | Q56: 1110000 | R56: 0 | S56: 0 | T56: 0.001772110771 | U56: 4495472.411 | V56: 0 | W56: 0 | X56: 0.01119991814 | Y56: 4016702.862 | Z56: 1750000 | AA56: 5766702.862 | AB56: 92833518.78
A57: Texas………………………………………… | B57: 0.08464520158 | C57: 9690024.018 | D57: 0.08118216795 | E57: 1941405.999 | F57: 0.05887506074 | G57: 307006549.3 | H57: 0.04105368217 | I57: 990854.76 | J57: 0.07010318526 | K57: 19506068.1 | L57: 0.06619943609 | M57: 44445606.79 | N57: 0.05358117785 | O57: 600563.2666 | P57: 0 | Q57: 0 | R57: 0 | S57: 0 | T57: 0.01105467665 | U57: 28043390.24 | V57: 0.03675754814 | W57: 2763927.059 | X57: 0.07683320171 | Y57: 27555214.01 | Z57: 1750000 | AA57: 29305214.01 | AB57: 444293603.5
A58: Utah…………………………………………. | B58: 0.009215520109 | C58: 1054975.469 | D58: 0.009611962888 | E58: 229862.3316 | F58: 0.01010385822 | G58: 52687005.46 | H58: 0.02106359548 | I58: 508382.263 | J58: 0.00659729296 | K58: 1835683.291 | L58: 0.01010656919 | M58: 6785444.51 | N58: 0.01010905715 | O58: 113307.1095 | P58: 0 | Q58: 0 | R58: 0.0036342 | S58: 109026 | T58: 0.003248700569 | U58: 8241270.254 | V58: 0.00380610493 | W58: 286194.1816 | X58: 0.00934305986 | Y58: 3350765.141 | Z58: 1750000 | AA58: 5100765.141 | AB58: 76951916.01
A59: Vermont…………………………………… | B59: 0.004000000788 | C59: =B59*C$67 -> 457912.5926 | D59: 0.004999711707 | E59: 119564.0686 | F59: 0.0005709336359 | G59: 2977158.125 | H59: 0 | I59: 0 | J59: 0.00176142599 | K59: 490113.1838 | L59: 0.005604631138 | M59: 3762890.539 | N59: 0.01008267775 | O59: 113011.4367 | P59: 0 | Q59: 0 | R59: 0 | S59: 0 | T59: 0 | U59: 0 | V59: 0 | W59: 0 | X59: 0.0004451780293 | Y59: 159657.2262 | Z59: 1750000 | AA59: 1909657.226 | AB59: 9830307.172
A60: Virgin Islands……………………………… | B60: 0 | C60: 0 | D60: 0 | E60: 0 | F60: 0.0002225537482 | G60: 1160516.141 | H60: 0 | I60: 0 | J60: 0.0006112177898 | K60: 170070.1015 | L60: 0 | M60: 0 | N60: 0 | O60: 0 | P60: 0 | Q60: 0 | R60: 0 | S60: 0 | T60: 0 | U60: 0 | V60: 0 | W60: 0 | X60: 0.0003223323213 | Y60: 115600.234 | Z60: 500000 | AA60: 615600.234 | AB60: 1946186.476
A61: Virginia………………………………………. | B61: 0.02463070176 | C61: 2819676.57 | D61: 0.02392469447 | E61: 572139.751 | F61: 0.02584644328 | G61: 134777395.8 | H61: 0.01149648436 | I61: 277474.4104 | J61: 0.02288604295 | K61: 6367994.705 | L61: 0.02422441619 | M61: 16264018.85 | N61: 0.02463157635 | O61: 276082.3959 | P61: 0.0575 | Q61: 1150000 | R61: 0 | S61: 0 | T61: 0.0001548792375 | U61: 392896.0599 | V61: 0.02290541809 | W61: 1722337.535 | X61: 0.0258200338 | Y61: 9260014.438 | Z61: 1750000 | AA61: 11010014.44 | AB61: 175630030.5
A62: Washington………………………………… | B62: 0.02238762393 | C62: 2562893.225 | D62: 0.02160010591 | E62: 516549.0925 | F62: 0.02942998067 | G62: 153463906.4 | H62: 0.02458699382 | I62: 593421.5538 | J62: 0.02227238599 | K62: 6197245.909 | L62: 0.02012247397 | M62: 13510017.89 | N62: 0.0190116336 | O62: 213091.4108 | P62: 0 | Q62: 0 | R62: 0.07361324 | S62: 2208397.2 | T62: 0.01980356246 | U62: 50237473.96 | V62: 0.2309299581 | W62: 17364421.52 | X62: 0.03493072958 | Y62: 12527445.26 | Z62: 1750000 | AA62: 14277445.26 | AB62: 261144863.5
A63: West Virginia……………………………… | B63: 0.004000000788 | C63: 457912.5926 | D63: 0.004999711707 | E63: 119564.0686 | F63: 0.002056920316 | G63: 10725899.91 | H63: 0.01069139762 | I63: 258043.1684 | J63: 0.007837960166 | K63: 2180896.406 | L63: 0.01244282181 | M63: 8353980.007 | N63: 0.01560162508 | O63: 174870.4172 | P63: 0.0946 | Q63: 1892000 | R63: 0 | S63: 0 | T63: 0.0004189417153 | U63: 1062767.043 | V63: 0 | W63: 0 | X63: 0.002288728735 | Y63: 820822.3618 | Z63: 1750000 | AA63: 2570822.362 | AB63: 27796755.97
A64: Wisconsin………………………………… | B64: 0.01293423419 | C64: 1480686.886 | D64: 0.01359629843 | E64: 325144.4991 | F64: 0.01026393097 | G64: 53521711.73 | H64: 0.01266441636 | I64: 305663.1359 | J64: 0.01779586538 | K64: 4951663.193 | L64: 0.02512414565 | M64: 16868087.77 | N64: 0.02537142431 | O64: 284374.9629 | P64: 0 | Q64: 0 | R64: 0.06890836 | S64: 2067250.8 | T64: 0.0005935168251 | U64: 1505627.389 | V64: 0 | W64: 0 | X64: 0.01385271223 | Y64: 4968092.46 | Z64: 1750000 | AA64: 6718092.46 | AB64: 88028302.83
A65: Wyoming…………………………………. | B65: 0.004000010172 | C65: 457913.6668 | D65: 0.004999711707 | E65: 119564.0686 | F65: 0.0004203871904 | G65: 2192127.177 | H65: 0 | I65: 0 | J65: 0.001634507616 | K65: 454798.4056 | L65: 0.01011015747 | M65: 6787853.646 | N65: 0.009381927831 | O65: 105157.099 | P65: 0 | Q65: 0 | R65: 0.0054818 | S65: 164454 | T65: 0 | U65: 0 | V65: 0 | W65: 0 | X65: 0.0006185288435 | Y65: 221827.2085 | Z65: 1750000 | AA65: 1971827.208 | AB65: 12253695.27
A66: Unallocated………………. | B66: 0 | C66: 0 | D66: 0 | E66: 0 | F66: 0 | G66: 0 | H66: 0 | I66: 0 | J66: 0 | K66: 0 | L66: 0 | M66: 0 | N66: 0 | O66: 0 | P66: 0 | Q66: 0 | R66: 0 | S66: 0 | T66: 0 | U66: 0 | V66: 0 | W66: 0 | X66: 0 | Y66: 0 | Z66: 0 | AA66: 0 | AB66: 0
A67: Subtotal | C67: =C70-C68 -> 114478125.6 | E67: =E70-E68 -> 23914192.58 | G67: =G70-G68 -> 5214543229 | I67: =I70-I68 -> 24135588.03 | K67: =K70-K68 -> 278247957.4 | M67: =M70-M68 -> 671389507.5 | O67: =O70-O68 -> 11208474.52 | Q67: =Q70-Q68 -> 20000000 | S67: =S70-S68 -> 30000000 | U67: =U70-U68 -> 2536789735 | W67: =W70-W68 -> 75193455.47 | Y67: =Y70-Y68 -> 358636805.4 | Z67: =SUM(Z10:Z66) -> 90500000 | AA67: 449136805.4 | AB67: =SUM(C67+E67+G67+I67+K67+M67+O67+Q67+S67+U67+W67+AA67) -> 9449037070
A68: Oversight | C68: =C70*0.005 -> 575266.9628 | E68: =E70*0.005 -> 120171.822 | F68: =G77*0.0075 -> 35797365.14 | G68: ='Program Totals'!J11*0.0075 -> 36203382.05 | I68: 0 | K68: =K70*0.005 -> 1398230.942 | M68: ='Program Totals'!J17*0.005 -> 3296610.153 | O68: 0 | Q68: 0 | S68: 0 | U68: =(U70+W70)*0.01 -> 26383668.59 | W68: 0 | Y68: =AA75*0.0075 -> 5827683.517 | Z68: 0 | AA68: =Y68 -> 5827683.517 | AB68: =SUM(C68+E68+G68+I68+K68+M68+O68+Q68+S68+U68+W68+AA68) -> 73805014.03
C69: 0 | E69: 0 | G69: 0 | I69: 0 | K69: 0 | M69: 0 | O69: 0 | Q69: 0 | S69: 0 | U69: 0 | W69: 0 | Y69: 0 | Z69: 0 | AA69: 0 | AB69: =SUM(C69:Z69) -> 0
A70: Subtotal | C70: ='Program Totals'!J9 -> 115053392.6 | E70: ='Program Totals'!J10 -> 24034364.4 | G70: =G77+G80+H79 -> 5250746611 | I70: ='Program Totals'!J12 -> 24135588.03 | K70: ='Program Totals'!J15 -> 279646188.3 | M70: =M77+I79 -> 674686117.6 | O70: ='Program Totals'!J23-O74 -> 11208474.52 | Q70: ='Program Totals'!J21 -> 20000000 | S70: ='Program Totals'!J19 -> 30000000 | U70: ='Program Totals'!J37 -> 2563173403 | W70: ='Program Totals'!J38 -> 75193455.47 | Y70: ='Program Totals'!J40-Z67 -> 364464488.9 | Z70: =Z67 -> 90500000 | AA70: =SUM(Y70+Z70) -> 454964488.9 | AB70: 9522842084 | AC70: =AB67+AB68 -> 9522842084
A71: Bus and Bus Facilities Discretionary Program | C71: 0 | E71: 0 | G71: 0 | I71: 0 | K71: 0 | M71: 0 | O71: 0 | Q71: 0 | S71: 0 | U71: 0 | W71: 0 | Y71: ='Program Totals'!J43 -> 322059980 | Z71: 0 | AA71: =Y71 -> 322059980 | AB71: 322059980
A72: Ferry discretionary Program | C72: 0 | E72: 0 | G72: ='Program Totals'!J13 -> 30000000 | I72: 0 | K72: 0 | M72: 0 | O72: 0 | Q72: 0 | S72: 0 | U72: 0 | W72: 0 | Y72: 0 | Z72: 0 | AA72: 0 | AB72: 30000000
A73: Tribal discretionary Program | C73: 0 | E73: 0 | G73: 0 | I73: 0 | K73: 0 | M73: 0 | O73: 0 | Q73: 0 | S73: 5000000 | U73: 0 | W73: 0 | Y73: 0 | Z73: 0 | AA73: 0 | AB73: 5000000
A74: National RTAP | C74: 0 | E74: 0 | G74: 0 | I74: 0 | K74: 0 | M74: 0 | O74: ='Program Totals'!J22 -> 1977966.092 | Q74: 0 | S74: 0 | U74: 0 | W74: 0 | Y74: 0 | Z74: 0 | AA74: 0 | AB74: 1977966.092
A75: Total | C75: =C70+C71+C72+C73+C74 -> 115053392.6 | E75: =E70+E71+E72+E73+E74 -> 24034364.4 | G75: 5280746611 | I75: 24135588.03 | K75: 279646188.3 | M75: 674686117.6 | O75: 13186440.61 | Q75: 20000000 | S75: 35000000 | U75: 2563173403 | W75: 75193455.47 | Y75: 686524468.9 | Z75: 90500000 | AA75: 777024468.9 | AB75: 9881880030 | AC75: ='Program Totals'!J61 -> 9881880030 | AD75: =AC70+AB71+AB72+AB73+AB74 -> 9881880030
AC76: =AB70+AB71+AB72+AB73+AB74 -> 9881880030
G77: ='Program Totals'!J14 -> 4772982018 | M77: ='Program Totals'!J18 -> 591135590
A78: *Allocations for UZAs that are within multiple-states are split between the applicable states.
G79: ='Program Totals'!J46 -> 293311066 | H79: =G79*0.715147032 -> 209760538.3 | I79: =G79-H79 -> 83550527.69
G80: ='Program Totals'!J47 -> 268004054.2 | I80: =SUM(I10:I66)-I67 -> 0 | K80: 0 | M80: 0 | O80: 0 | Q80: 0 | S80: 0 | U80: 0 | W80: 0 | Y80: 0 | Z80: 0 | AA80: 0 | AB80: 0

Sheet FY20
A1: FEDERAL TRANSIT ADMINISTRATION
A3: FISCAL YEAR 2020 ESTIMATED APPORTIONMENTS/ALLOCATIONS BY STATE FOR SELECTED FTA PROGRAMS
C5: The information in this table include allocations for formula programs apportioned via FTA's Apportionment Notice Published on March 10, 2014 as well as Discretionary Program allocations announced in Federal Register Announcements in 2014. For allocations under the Public Transportation Emergency Relief Program, Please Contact the FTA Office of Program Management at 202-366-4020
C6: Section 5303 | E6: Section 5304 | G6: Section 5307 + 5340 | I6: Section 5329 (e) | K6: Section 5310 | M6: Section 5311 + 5340 | O6: Section 5311(b)(3) | Q6: Section 5311(c)(2) | S6: Section 5311(c)(1)
B8: Metropolitan Planning | C8: Metropolitan | D8: Statewide Planning | E8: Statewide | F8: Urban | G8: Urbanized Area | H8: SSO | I8: State Safety | J8: 5310 | K8: Enhanced Mobility for | L8: 5311 | M8: Nonurbanized Area | N8: RTAP | P8: App | Q8: Appalachian Dev. Public | R8: Indian | S8: Indian Reserv. | T8: SGR | U8: High Intensity | V8: HIMB | W8: High Intensity | X8: 5339 | Y8: Bus and Bus | Z8: Statewide
A9: State | B9: Percentage | C9: Planning | D9: Percentage | E9: Planning | F9: Percentage | G9: Formula | H9: Percentqage | I9: Oversight Program | J9: Percentage | K9: Older Adults and People with Disabilities | L9: Percentage | M9: Formula | N9: Percentage | O9: RTAP | P9: Percentage | Q9: Trans. Assist. Program | R9: Percentage | S9: Formula | T9: Percentage | U9: Fixed Guideway | V9: Percentage | W9: MotorBus | X9: Percentage | Y9: Facilities Formula | Z9: Allocation | AA9: 5339 Total | AB9: State Total
A10: Alabama…………………………………… | B10: 0.007971166334 | C10: =B10*C$67 -> 931869.6934 | D10: 0.009962715709 | E10: =D10*E$67 -> 243301.2085 | F10: 0.004827217023 | G10: =F10*G$67 -> 25691515.08 | H10: 0 | I10: =H10*I$67 -> 0 | J10: 0.01631521576 | K10: =J10*K$67 -> 4635916.579 | L10: 0.02486553856 | M10: =L10*M$67 -> 17085449.18 | N10: 0.0249182639 | O10: =N10*O$67 -> 285216.7954 | P10: 0.25 | Q10: =P10*Q$67 -> 5000000 | R10: 7.44e-06 | S10: =R10*S$67 -> 223.2 | T10: 0 | U10: =T10*U$67 -> 0 | V10: 0 | W10: =V10*W$67 -> 0 | X10: 0.006682205509 | Y10: =X10*Y$67 -> 2459351.202 | Z10: 1750000 | AA10: =SUM(Y10+Z10) -> 4209351.202 | AB10: =SUM(C10+E10+G10+I10+K10+M10+O10+Q10+S10+U10+W10+AA10) -> 58082842.93
A11: Alaska………………………………………. | B11: 0.004000000788 | C11: =B11*C$67 -> 467620.3396 | D11: 0.004999711707 | E11: 122098.8269 | F11: 0.003382156638 | G11: =F11*G$67 -> 18000584.57 | H11: 0 | I11: =H11*I$67 -> 0 | J11: 0.001491093777 | K11: =J11*K$67 -> 423689.5462 | L11: 0.01310523456 | M11: =L11*M$67 -> 9004784.612 | N11: 0.009144419019 | O11: =N11*O$67 -> 104667.8813 | P11: 0 | Q11: =P11*Q$67 -> 0 | R11: 0.01486264 | S11: =R11*S$67 -> 445879.2 | T11: 0.009551267246 | U11: =T11*U$67 -> 24646778.95 | V11: 0 | W11: =V11*W$67 -> 0 | X11: 0.001748402086 | Y11: =X11*Y$67 -> 643490.3514 | Z11: 1750000 | AA11: =SUM(Y11+Z11) -> 2393490.351 | AB11: =SUM(C11+E11+G11+I11+K11+M11+O11+Q11+S11+U11+W11+AA11) -> 55609594.28
A12: American Samoa……………………………. | B12: 0 | C12: 0 | D12: 0 | E12: 0 | G12: 0 | H12: 0 | I12: 0 | J12: 4.635198678e-05 | K12: 13170.76937 | L12: 0.0004854920731 | M12: 333588.1956 | N12: 0.001367206618 | O12: 15649.17572 | P12: 0 | Q12: 0 | R12: 0 | S12: 0 | T12: 0 | U12: 0 | V12: 0 | W12: 0 | X12: 0 | Y12: 0 | Z12: 500000 | AA12: 500000 | AB12: 862408.1407
A13: Arizona………………………………………. | B13: 0.02296302448 | C13: 2684493.798 | D13: 0.02192702709 | E13: 535483.7321 | F13: 0.0154179769 | G13: 82057878.1 | H13: 0.01924905521 | I13: 474436.5165 | J13: 0.02164952 | K13: 6151642.136 | L13: 0.01877265824 | M13: 12898948.38 | N13: 0.0158810583 | O13: 181776.089 | P13: 0 | Q13: 0 | R13: 0.06155668 | S13: 1846700.4 | T13: 0.000163793874 | U13: 422665.5272 | V13: 0.03591739399 | W13: 2747258.737 | X13: 0.0209724611 | Y13: 7718805.917 | Z13: 1750000 | AA13: 9468805.917 | AB13: 119470089.3
A14: Arkansas……………………………………. | B14: 0.004012067863 | C14: 469031.0418 | D14: 0.005057894075 | E14: 123519.7086 | F14: 0.002591368798 | G14: 13791837.04 | H14: 0.01010808204 | I14: 249136.5515 | J14: 0.009648577367 | K14: 2741612.519 | L14: 0.01934206344 | M14: 13290194.42 | N14: 0.01962438938 | O14: 224622.609 | P14: 0 | Q14: 0 | R14: 0 | S14: 0 | T14: 0.0001319452713 | U14: 340481.0956 | V14: 0 | W14: 0 | X14: 0.003565206949 | Y14: 1312155.991 | Z14: 1750000 | AA14: 3062155.991 | AB14: 34292590.98
A15: California………………………………… | B15: 0.1499952909 | C15: 17535208.77 | D15: 0.1432202417 | E15: 3497606.367 | F15: 0.1611256995 | G15: 857546557.1 | H15: 0.1274520314 | I15: 3141343.675 | J15: 0.1103755967 | K15: 31362874.15 | L15: 0.04451564785 | M15: 30587306.09 | N15: 0.03542291784 | O15: 405454.0537 | P15: 0 | Q15: 0 | R15: 0.0212738 | S15: 638214 | T15: 0.154026701 | U15: 397461609.3 | V15: 0.2394678438 | W15: 18316477.15 | X15: 0.1808413205 | Y15: 66557713.37 | Z15: 1750000 | AA15: 68307713.37 | AB15: 1428800364
A16: Colorado……………………………………. | B16: 0.01679617675 | C16: 1963558.082 | D16: 0.01656154776 | E16: 404452.4306 | F16: 0.01526041468 | G16: 81219297.17 | H16: 0.02364576722 | I16: 582803.4315 | J16: 0.01445304974 | K16: 4106788.038 | L16: 0.01779622779 | M16: 12228029.76 | N16: 0.01503484483 | O16: 172090.2499 | P16: 0 | Q16: 0 | R16: 0.00609984 | S16: 182995.2 | T16: 0.005758380688 | U16: 14859340.89 | V16: 0.00587978619 | W16: 449734.5766 | X16: 0.01874620298 | Y16: 6899443.121 | Z16: 1750000 | AA16: 8649443.121 | AB16: 124818533
A17: Connecticut……………………………… | B17: 0.01039382401 | C17: 1215090.639 | D17: 0.01299046852 | E17: 317242.4852 | F17: 0.01909534187 | G17: 101629626.6 | H17: 0 | I17: 0 | J17: 0.01225706319 | K17: 3482805.457 | L17: 0.004753373426 | M17: 3266107.424 | N17: 0.01027496473 | O17: 117608.214 | P17: 0 | Q17: 0 | R17: 0 | S17: 0 | T17: 0.02381332166 | U17: 61449612.9 | V17: 0.01362787676 | W17: 1042372.492 | X17: 0.01155847235 | Y17: 4254036.011 | Z17: 1750000 | AA17: 6004036.011 | AB17: 178524502.2
A18: Delaware……………………………………. | B18: 0.004000000788 | C18: 467620.3396 | D18: 0.004999711707 | E18: 122098.8269 | F18: 0.003926458201 | G18: 20897477.69 | H18: 0 | I18: 0 | J18: 0.003156320168 | K18: 896858.3201 | L18: 0.002713040228 | M18: 1864166.779 | N18: 0.008275123576 | O18: 94717.84379 | P18: 0 | Q18: 0 | R18: 0 | S18: 0 | T18: 0 | U18: 0 | V18: 0 | W18: 0 | X18: 0.002580878463 | Y18: 949878.9795 | Z18: 1750000 | AA18: 2699878.98 | AB18: 27042818.78
A19: District of Columbia………………………. | B19: 0.004000000788 | C19: 467620.3396 | D19: 0.004999711707 | E19: 122098.8269 | F19: 0.004242893288 | G19: 22581615.11 | H19: 0.08022275801 | I19: 1977271.375 | J19: 0.00144302505 | K19: 410030.9706 | L19: 0 | M19: 0 | N19: 0 | O19: 0 | P19: 0 | Q19: 0 | R19: 0 | S19: 0 | T19: 0.07014426217 | U19: 181005313.7 | V19: 0.0766135825 | W19: 5860039.12 | X19: 0.003529031997 | Y19: 1298841.987 | Z19: 500000 | AA19: 1798841.987 | AB19: 214222831.5
A20: Florida………………………………………. | B20: 0.07206520079 | C20: 8424786.757 | D20: 0.07043658731 | E20: 1720144.117 | F20: 0.05196295822 | G20: 276558339.6 | H20: 0.03410368609 | I20: 840562.5033 | J20: 0.0797727053 | K20: 22667160.06 | L20: 0.02529910643 | M20: 17383359.55 | N20: 0.02420573746 | O20: 277061.1507 | P20: 0 | Q20: 0 | R20: 0 | S20: 0 | T20: 0.01782058362 | U20: 45985519.41 | V20: 0.02226598741 | W20: 1703086.49 | X20: 0.06676305109 | Y20: 24571795.9 | Z20: 1750000 | AA20: 26321795.9 | AB20: 401881815.5
A21: Georgia……………………………………… | B21: 0.02845664015 | C21: 3326725.277 | D21: 0.02713904115 | E21: 662767.2316 | F21: 0.01858058433 | G21: 98889973.27 | H21: 0.03788671459 | I21: 933803.7996 | J21: 0.0264952058 | K21: 7528528.316 | L21: 0.03418615713 | M21: 23489772.75 | N21: 0.03180187412 | O21: 364007.2463 | P21: 0.0296 | Q21: 592000 | R21: 0 | S21: 0 | T21: 0.01903536017 | U21: 49120216.43 | V21: 0.05226137704 | W21: 3997381.455 | X21: 0.02124507764 | Y21: 7819141.025 | Z21: 1750000 | AA21: 9569141.025 | AB21: 198474316.8
A22: Guam………………………………………… | B22: 0 | C22: 0 | D22: 0 | E22: 0 | G22: 0 | H22: 0 | I22: 0 | J22: 0.0001754881403 | K22: 49864.39599 | L22: 0.001272349871 | M22: 874248.8728 | N22: 0.002162357105 | O22: 24750.54307 | P22: 0 | Q22: 0 | R22: 0 | S22: 0 | T22: 0 | U22: 0 | V22: 0 | W22: 0 | X22: 0 | Y22: 0 | Z22: 500000 | AA22: 500000 | AB22: 1448863.812
A23: Hawaii………………………………………. | B23: 0.004000000788 | C23: 467620.3396 | D23: 0.004999711707 | E23: 122098.8269 | F23: 0.006408529693 | G23: 34107610.34 | H23: 0.009674363316 | I23: 238446.5721 | J23: 0.004395293938 | K23: 1248908.77 | L23: 0.004336002151 | M23: 2979325.954 | N23: 0.00909655925 | O23: 104120.0739 | P23: 0 | Q23: 0 | R23: 0 | S23: 0 | T23: 0.0001238573054 | U23: 319610.325 | V23: 0.01470165912 | W23: 1124504.229 | X23: 0.01036615936 | Y23: 3815211.375 | Z23: 1750000 | AA23: 5565211.375 | AB23: 46277456.81
A24: Idaho…………………………………………. | B24: 0.004000000788 | C24: 467620.3396 | D24: 0.004999711707 | E24: 122098.8269 | F24: 0.002109852179 | G24: 11229099.26 | H24: 0 | I24: 0 | J24: 0.005271798589 | K24: 1497964.774 | L24: 0.01238669807 | M24: 8511068.438 | N24: 0.01206395912 | O24: 138085.2122 | P24: 0 | Q24: 0 | R24: 0.04141664 | S24: 1242499.2 | T24: 0 | U24: 0 | V24: 0 | W24: 0 | X24: 0.003019350304 | Y24: 1111256.275 | Z24: 1750000 | AA24: 2861256.275 | AB24: 26069692.32
A25: Illinois……………………………………… | B25: 0.04770455379 | C25: 5576903.812 | D25: 0.04396164573 | E25: 1073594.976 | F25: 0.05557231388 | G25: 295768127.5 | H25: 0.0770149709 | I25: 1898208.204 | J25: 0.03788746303 | K25: 10765601.91 | L25: 0.02607866962 | M25: 17919008 | N25: 0.02580291592 | O25: 295342.6058 | P25: 0 | Q25: 0 | R25: 0 | S25: 0 | T25: 0.104631839 | U25: 269999544.5 | V25: 0 | W25: 0 | X25: 0.04406262923 | Y25: 16217022.96 | Z25: 1750000 | AA25: 17967022.96 | AB25: 621263354.5
A26: Indiana……………………………………… | B26: 0.01626858471 | C26: 1901879.903 | D26: 0.01643776291 | E26: 401429.4595 | F26: 0.01171054579 | G26: 62326110.95 | H26: 0 | I26: 0 | J26: 0.02057800609 | K26: 5847174.871 | L26: 0.02570824681 | M26: 17664485.46 | N26: 0.02639456818 | O26: 302114.7132 | P26: 0 | Q26: 0 | R26: 0 | S26: 0 | T26: 0.001106916121 | U26: 2856366.203 | V26: 0 | W26: 0 | X26: 0.01306697334 | Y26: 4809232.004 | Z26: 1750000 | AA26: 6559232.004 | AB26: 97858793.56
A27: Iowa…………………………………………. | B27: 0.004350021032 | C27: =B27*C$67 -> 508539.4778 | D27: 0.005436843301 | E27: 132774.0934 | F27: 0.004312135788 | G27: 22950138.99 | H27: 0 | I27: 0 | J27: 0.009289615525 | K27: 2639614.656 | L27: 0.01965541976 | M27: 13505505.8 | N27: 0.0197339581 | O27: 225876.7429 | P27: 0 | Q27: 0 | R27: 0 | S27: 0 | T27: 0 | U27: 0 | V27: 0 | W27: 0 | X27: 0.005530684206 | Y27: 2035539.738 | Z27: 1750000 | AA27: 3785539.738 | AB27: 43747989.5
A28: Kansas………………………………………. | B28: 0.00589772193 | C28: 689473.5471 | D28: 0.006132892981 | E28: 149772.4433 | F28: 0.003688807034 | G28: 19632645.7 | H28: 0 | I28: 0 | J28: 0.008196292795 | K28: 2328950.485 | L28: 0.01770502652 | M28: 12165364.13 | N28: 0.01701019083 | O28: 194700.2463 | P28: 0 | Q28: 0 | R28: 0.00358388 | S28: 107516.4 | T28: 0 | U28: 0 | V28: 0 | W28: 0 | X28: 0.004932716583 | Y28: 1815460.845 | Z28: 1750000 | AA28: 3565460.845 | AB28: 38833883.79
A29: Kentucky…………………………………… | B29: 0.006586689984 | C29: 770017.4001 | D29: 0.007620057003 | E29: 186090.7339 | F29: 0.005148813793 | G29: 27403124.11 | H29: 0 | I29: 0 | J29: 0.01327687682 | K29: 3772582.248 | L29: 0.02693413172 | M29: 18506807.62 | N29: 0.02573310472 | O29: 294543.5402 | P29: 0.0882 | Q29: 1764000 | R29: 0 | S29: 0 | T29: 0 | U29: 0 | V29: 0 | W29: 0 | X29: 0.007234698109 | Y29: 2662693.248 | Z29: 1750000 | AA29: 4412693.248 | AB29: 57109858.91
A30: Louisiana……………………………………. | B30: 0.009531262728 | C30: 1114252.859 | D30: 0.01191258887 | E30: 290919.3992 | F30: 0.007020228299 | G30: 37363205.41 | H30: 0.01296410348 | I30: 319529.6616 | J30: 0.01566300206 | K30: 4450592.133 | L30: 0.01841591101 | M30: 12653822.52 | N30: 0.01954694699 | O30: 223736.1962 | P30: 0 | Q30: 0 | R30: 0 | S30: 0 | T30: 0.001657168917 | U30: 4276278.208 | V30: 0.00634620524 | W30: 485410.1552 | X30: 0.0095044024 | Y30: 3498046.182 | Z30: 1750000 | AA30: 5248046.182 | AB30: 66425792.72
A31: Maine………………………………………… | B31: 0.004000000788 | C31: 467620.3396 | D31: 0.004999711707 | E31: 122098.8269 | F31: 0.002751338764 | G31: 14643232.53 | H31: 0 | I31: 0 | J31: 0.004267874525 | K31: 1212702.949 | L31: 0.01107464745 | M31: 7609540.642 | N31: 0.01362976493 | O31: 156007.5731 | P31: 0 | Q31: 0 | R31: 0.00209244 | S31: 62773.2 | T31: 0.003293485409 | U31: 8498747.313 | V31: 0 | W31: 0 | X31: 0.001306281335 | Y31: 480770.094 | Z31: 1750000 | AA31: 2230770.094 | AB31: 35003493.47
A32: Maryland……………………………………. | B32: 0.02250815393 | C32: 2631317.128 | D32: 0.02066347017 | E32: 504626.1895 | F32: 0.03131242216 | G32: 166651626 | H32: 0.02726192906 | I32: 671931.9217 | J32: 0.01750911927 | K32: 4975160.458 | L32: 0.008915532193 | M32: 6125983.228 | N32: 0.01340356158 | O32: 153418.4281 | P32: 0.0318 | Q32: 636000 | R32: 0 | S32: 0 | T32: 0.02482051546 | U32: 64048648.43 | V32: 0 | W32: 0 | X32: 0.02295667356 | Y32: 8449085.057 | Z32: 1750000 | AA32: 10199085.06 | AB32: 256597796.8
A33: Massachusetts……………………………. | B33: 0.02676146946 | C33: 3128551.243 | D33: 0.02533285618 | E33: 618658.0751 | F33: 0.03932037576 | G33: 209271723.6 | H33: 0.05152604488 | I33: 1269975.954 | J33: 0.0226064318 | K33: 6423545.574 | L33: 0.005895471338 | M33: 4050858.407 | N33: 0.01098570114 | O33: 125743.3699 | P33: 0 | Q33: 0 | R33: 0 | S33: 0 | T33: 0.05766606083 | U33: 148805662.9 | V33: 0.0007119252628 | W33: 54453.91998 | X33: 0.02332246484 | Y33: 8583712.647 | Z33: 1750000 | AA33: 10333712.65 | AB33: 384082885.7
A34: Michigan……………………………………. | B34: 0.02806427254 | C34: 3280855.518 | D34: 0.02810688498 | E34: 686403.1137 | F34: 0.01799939643 | G34: 95796762.93 | H34: 0.01304973479 | I34: 321640.2388 | J34: 0.03407517331 | K34: 9682351.935 | L34: 0.03338673791 | M34: 22940480.95 | N34: 0.03157293862 | O34: 361386.8289 | P34: 0 | Q34: 0 | R34: 0.0014982 | S34: 44946 | T34: 0.0005126279629 | U34: 1322822.172 | V34: 0 | W34: 0 | X34: 0.0258222891 | Y34: 9503760.046 | Z34: 1750000 | AA34: 11253760.05 | AB34: 145691409.7
A35: Minnesota…………………………………. | B35: 0.01450272874 | C35: 1695442.401 | D35: 0.01317920113 | E35: 321851.5568 | F35: 0.01256138811 | G35: 66854481.71 | H35: 0.01412113532 | I35: 348047.329 | J35: 0.01422662258 | K35: 4042449.481 | L35: 0.02494488507 | M35: 17139969.25 | N35: 0.02318362992 | O35: 265362.0115 | P35: 0 | Q35: 0 | R35: 0.06497376 | S35: 1949212.8 | T35: 0.002988328432 | U35: 7711298.239 | V35: 0.1096095253 | W35: 8383841.158 | X35: 0.01476922899 | Y35: 5435738.399 | Z35: 1750000 | AA35: 7185738.399 | AB35: 115897694.3
A36: Mississippi…………………………………. | B36: 0.004000000788 | C36: 467620.3396 | D36: 0.004999711707 | E36: 122098.8269 | F36: 0.001759629944 | G36: 9365139.173 | H36: 0 | I36: 0 | J36: 0.008044116589 | K36: 2285710.101 | L36: 0.02259996171 | M36: 15528740.56 | N36: 0.02257012045 | O36: 258339.7243 | P36: 0.0127 | Q36: 254000 | R36: 0.03018832 | S36: 905649.6 | T36: 0 | U36: 0 | V36: 0 | W36: 0 | X36: 0.002261756835 | Y36: 832427.9136 | Z36: 1750000 | AA36: 2582427.914 | AB36: 31769726.24
A37: Missouri……………………………………. | B37: 0.01555399055 | C37: 1818340.227 | D37: 0.01452464111 | E37: 354708.78 | F37: 0.01008103396 | G37: 53653489.11 | H37: 0.03017316901 | I37: 743686.0169 | J37: 0.01891439157 | K37: 5374464.105 | L37: 0.02828471879 | M37: 19434814.34 | N37: 0.02602431446 | O37: 297876.7542 | P37: 0 | Q37: 0 | R37: 0 | S37: 0 | T37: 0.007125340215 | U37: 18386741.85 | V37: 0.0004136178801 | W37: 31636.90927 | X37: 0.01248070993 | Y37: 4593460.787 | Z37: 1750000 | AA37: 6343460.787 | AB37: 106439218.9
A38: Montana…………………………………… | B38: 0.004000000788 | C38: 467620.3396 | D38: 0.004999711707 | E38: 122098.8269 | F38: 0.000959235832 | G38: 5105264.944 | H38: 0 | I38: 0 | J38: 0.003248651275 | K38: 923093.91 | L38: 0.0161071082 | M38: 11067412.75 | N38: 0.01169285749 | O38: 133837.548 | P38: 0 | Q38: 0 | R38: 0.06420504 | S38: 1926151.2 | T38: 0 | U38: 0 | V38: 0 | W38: 0 | X38: 0.001153552305 | Y38: 424558.9638 | Z38: 1750000 | AA38: 2174558.964 | AB38: 21920038.48
A39: N. Mariana Islands…………………………. | B39: 0 | C39: 0 | D39: 0 | E39: 0 | G39: 0 | H39: 0 | I39: 0 | J39: 3.662638138e-05 | K39: 10407.26958 | L39: 0.0004673274972 | M39: 321107.0688 | N39: 0.001354770616 | O39: 15506.83206 | P39: 0 | Q39: 0 | R39: 0 | S39: 0 | T39: 0 | U39: 0 | V39: 0 | W39: 0 | X39: 0 | Y39: 0 | Z39: 500000 | AA39: 500000 | AB39: 847021.1705
A40: Nebraska……………………………………. | B40: 0.004000000788 | C40: 467620.3396 | D40: 0.004999711707 | E40: 122098.8269 | F40: 0.002305053141 | G40: 12268001.88 | H40: 0 | I40: 0 | J40: 0.004774833359 | K40: 1356753.687 | L40: 0.01234123408 | M40: 8479829.51 | N40: 0.01258768442 | O40: 144079.8214 | P40: 0 | Q40: 0 | R40: 0.01868076 | S40: 560422.8 | T40: 0 | U40: 0 | V40: 0 | W40: 0 | X40: 0.003370902981 | Y40: 1240643.42 | Z40: 1750000 | AA40: 2990643.42 | AB40: 26389450.29
A41: Nevada………………………………………. | B41: 0.01082489821 | C41: 1265485.395 | D41: 0.01000950603 | E41: 244443.8831 | F41: 0.008272335954 | G41: 44027198.87 | H41: 0 | I41: 0 | J41: 0.008020575497 | K41: 2279020.975 | L41: 0.01039093463 | M41: 7139752.276 | N41: 0.008913599268 | O41: 102025.8967 | P41: 0 | Q41: 0 | R41: 0.00338348 | S41: 101504.4 | T41: 0.0009858635436 | U41: 2543993.4 | V41: 0 | W41: 0 | X41: 0.01074640236 | Y41: 3955157.847 | Z41: 1750000 | AA41: 5705157.847 | AB41: 63408582.95
A42: New Hampshire……………………………. | B42: 0.004000000788 | C42: 467620.3396 | D42: 0.004999711707 | E42: 122098.8269 | F42: 0.001662829708 | G42: 8849946.938 | H42: 0 | I42: 0 | J42: 0.004287477213 | K42: 1218272.991 | L42: 0.006339084466 | M42: 4355671.011 | N42: 0.01143264355 | O42: 130859.1148 | P42: 0 | Q42: 0 | R42: 0 | S42: 0 | T42: 0 | U42: 0 | V42: 0 | W42: 0 | X42: 0.001980271738 | Y42: 728828.7787 | Z42: 1750000 | AA42: 2478828.779 | AB42: 17623298
A43: New Jersey…………………………………. | B43: 0.03871707888 | C43: =B43*C$67 -> 4526222.501 | D43: 0.03474674586 | E43: 848556.3079 | F43: 0.07941391758 | G43: 422658407.8 | H43: 0.04043515414 | I43: 996615.8582 | J43: 0.02776177558 | K43: 7888420.086 | L43: 0.00613516515 | M43: 4215555.28 | N43: 0.01134596838 | O43: 129867.0226 | P43: 0 | Q43: 0 | R43: 0 | S43: 0 | T43: 0.0706308469 | U43: 182260932 | V43: 0 | W43: 0 | X43: 0.04593402945 | Y43: 16905782.14 | Z43: 1750000 | AA43: 18655782.14 | AB43: 642180359
A44: New Mexico………………………………… | B44: 0.004000000788 | C44: 467620.3396 | D44: 0.004999711707 | E44: 122098.8269 | F44: 0.004959452536 | G44: 26395301.68 | H44: 0 | I44: 0 | J44: 0.006686221659 | K44: 1899868.583 | L44: 0.01664801735 | M44: 11439078.77 | N44: 0.01341712813 | O44: 153573.7121 | P44: 0 | Q44: 0 | R44: 0.024074 | S44: 722220 | T44: 0.001814595314 | U44: 4682512.638 | V44: 0 | W44: 0 | X44: 0.004643567055 | Y44: 1709040.855 | Z44: 1750000 | AA44: 3459040.855 | AB44: 49341315.41
A45: New York……………………………………. | B45: 0.07311576822 | C45: 8547603.408 | D45: 0.06862944209 | E45: 1676011.51 | F45: 0.133106422 | G45: 708421774.3 | H45: 0.1052297893 | I45: 2593626.239 | J45: 0.06097806219 | K45: 17326722.1 | L45: 0.03316471385 | M45: 22787925.21 | N45: 0.03185218341 | O45: 364583.0911 | P45: 0.01 | Q45: 200000 | R45: 0.00227624 | S45: 68287.2 | T45: 0.2894780333 | U45: 746989997.6 | V45: 0.112080818 | W45: 8572866.021 | X45: 0.09079598492 | Y45: 33416992.99 | Z45: 1750000 | AA45: 35166992.99 | AB45: 1552716390
A46: North Carolina…………………………………… | B46: 0.01970086059 | C46: 2303130.326 | D46: 0.02241980949 | E46: 547518.0565 | F46: 0.0138281413 | G46: 73596421.89 | H46: 0.01524434526 | I46: 375731.3793 | J46: 0.02804378318 | K46: 7968551.647 | L46: 0.04277804033 | M46: 29393372.37 | N46: 0.03907109465 | O46: 447211.4291 | P46: 0.0725 | Q46: 1450000 | R46: 0.02251676 | S46: 675502.8 | T46: 0.0002737632627 | U46: 706438.4701 | V46: 0.005943733368 | W46: 454625.7846 | X46: 0.01906145675 | Y46: 7015470.643 | Z46: 1750000 | AA46: 8765470.643 | AB46: 126683974.8
A47: North Dakota………………………………. | B47: 0.004000000788 | C47: 467620.3396 | D47: 0.004999711707 | E47: 122098.8269 | F47: 0.001073869325 | G47: 5715369.709 | H47: 0 | I47: 0 | J47: 0.002242765777 | K47: 637274.7503 | L47: 0.008266730347 | M47: 5680182.67 | N47: 0.009213759156 | O47: 105461.555 | P47: 0 | Q47: 0 | R47: 0.029133 | S47: 873990 | T47: 0 | U47: 0 | V47: 0 | W47: 0 | X47: 0.001287896771 | Y47: 474003.7502 | Z47: 1750000 | AA47: 2224003.75 | AB47: 15826001.6
A48: Ohio………………………………………… | B48: 0.032451968 | C48: 3793799.326 | D48: 0.03228222281 | E48: 788369.763 | F48: 0.02112282688 | G48: 112420349.6 | H48: 0.02472331311 | I48: 609361.988 | J48: 0.03848134252 | K48: 10934350.88 | L48: 0.0368327098 | M48: 25308255.03 | N48: 0.03676723091 | O48: 420841.1877 | P48: 0.0482 | Q48: 964000 | R48: 0 | S48: 0 | T48: 0.01071756191 | U48: 27656369.83 | V48: 0.004046042299 | W48: 309474.709 | X48: 0.02719502364 | Y48: 10008987.9 | Z48: 1750000 | AA48: 11758987.9 | AB48: 194964160.2
A49: Oklahoma…………………………………… | B49: 0.005887850575 | C49: 688319.5357 | D49: 0.007358912886 | E49: 179713.2881 | F49: 0.003651362188 | G49: 19433355.96 | H49: 0 | I49: 0 | J49: 0.01124265614 | K49: 3194564.924 | L49: 0.02380868139 | M49: 16359268.27 | N49: 0.02169724494 | O49: 248348.7091 | P49: 0 | Q49: 0 | R49: 0.31196952 | S49: 9359085.6 | T49: 0 | U49: 0 | V49: 0 | W49: 0 | X49: 0.005072469887 | Y49: 1866896.326 | Z49: 1750000 | AA49: 3616896.326 | AB49: 53079552.61
A50: Oregon………………………………………. | B50: 0.01043003462 | C50: 1219323.842 | D50: 0.01025445685 | E50: 250425.8696 | F50: 0.01080944482 | G50: 57530252.56 | H50: 0.03237966649 | I50: 798070.1396 | J50: 0.01279385913 | K50: 3635334.311 | L50: 0.01931467508 | M50: 13271375.51 | N50: 0.01713266662 | O50: 196102.1157 | P50: 0 | Q50: 0 | R50: 0.03027016 | S50: 908104.8 | T50: 0.008498435299 | U50: 21929975.45 | V50: 0.001555089075 | W50: 118946.0474 | X50: 0.01296888143 | Y50: 4773129.782 | Z50: 1750000 | AA50: 6523129.782 | AB50: 106381040.4
A51: Pennsylvania………………………………. | B51: 0.03897942047 | C51: 4556891.561 | D51: 0.03846408849 | E51: 939338.1773 | F51: 0.03724737983 | G51: 198238781.5 | H51: 0.06449988225 | I51: 1589745.529 | J51: 0.04605574033 | K51: 13086591.89 | L51: 0.03477270168 | M51: 23892795.48 | N51: 0.03464623293 | O51: 396564.0451 | P51: 0.2394 | Q51: 4788000 | R51: 0 | S51: 0 | T51: 0.07135361551 | U51: 184126016.3 | V51: 0.004158507427 | W51: 318076.9703 | X51: 0.03710949684 | Y51: 13657958.52 | Z51: 1750000 | AA51: 15407958.52 | AB51: 447340759.9
A52: Puerto Rico…………………………………. | B52: 0.01479463748 | C52: 1729568.01 | D52: 0.01448142989 | E52: 353653.5115 | F52: 0.009846855556 | G52: 52407139.93 | H52: 0.01355903693 | I52: 334193.1424 | J52: 0.01978096088 | K52: 5620697.013 | L52: 0.003123081313 | M52: 2145911.577 | N52: 0.008771809993 | O52: 100402.9633 | P52: 0 | Q52: 0 | R52: 0 | S52: 0 | T52: 0.003057760421 | U52: 7890465.551 | V52: 0 | W52: 0 | X52: 0.01256286394 | Y52: 4623697.144 | Z52: 500000 | AA52: 5123697.144 | AB52: 75705728.84
A53: Rhode Island……………………………… | B53: 0.004793650249 | C53: 560401.9789 | D53: 0.004999711707 | E53: 122098.8269 | F53: 0.005553376576 | G53: 29556296.59 | H53: 0 | I53: 0 | J53: 0.003747166233 | K53: 1064745.347 | L53: 0.001270385128 | M53: 872898.8711 | N53: 0.006893125651 | O53: 78899.36539 | P53: 0 | Q53: 0 | R53: 0 | S53: 0 | T53: 0.001771381067 | U53: 4570999.478 | V53: 0 | W53: 0 | X53: 0.003530579403 | Y53: 1299411.502 | Z53: 1750000 | AA53: 3049411.502 | AB53: 39875751.96
A54: South Carolina……………………………… | B54: 0.008947388951 | C54: 1045995.059 | D54: 0.01105416979 | E54: 269955.798 | F54: 0.005087772241 | G54: 27078247.49 | H54: 0 | I54: 0 | J54: 0.01547724843 | K54: 4397810.832 | L54: 0.02069485944 | M54: 14219718.92 | N54: 0.02178552172 | O54: 249359.1334 | P54: 0.01 | Q54: 200000 | R54: 0.00397732 | S54: 119319.6 | T54: 0 | U54: 0 | V54: 0 | W54: 0 | X54: 0.006932355101 | Y54: 2551417.467 | Z54: 1750000 | AA54: 4301417.467 | AB54: 51881824.3
A55: South Dakota………………………………. | B55: 0.004000000788 | C55: 467620.3396 | D55: 0.004999711707 | E55: 122098.8269 | F55: 0.0008261917364 | G55: 4397174.884 | H55: 0 | I55: 0 | J55: 0.0025060679 | K55: 712091.2097 | L55: 0.01033224622 | M55: 7099426.67 | N55: 0.01049306584 | O55: 120104.6199 | P55: 0 | Q55: 0 | R55: 0.09032248 | S55: 2709674.4 | T55: 0 | U55: 0 | V55: 0 | W55: 0 | X55: 0.001130513387 | Y55: 416079.6091 | Z55: 1750000 | AA55: 2166079.609 | AB55: 17794270.56
A56: Tennessee…………………………………. | B56: 0.01316029948 | C56: 1538505.625 | D56: 0.01478451944 | E56: 361055.3138 | F56: 0.01019112182 | G56: 54239401.02 | H56: 0.01391869736 | I56: 343057.7875 | J56: 0.02085301079 | K56: 5925316.58 | L56: 0.02984870284 | M56: 20509449.02 | N56: 0.02829492132 | O56: 323866.3342 | P56: 0.0555 | Q56: 1110000 | R56: 0 | S56: 0 | T56: 0.001772110771 | U56: 4572882.457 | V56: 0 | W56: 0 | X56: 0.01119991814 | Y56: 4122071.986 | Z56: 1750000 | AA56: 5872071.986 | AB56: 94795606.13
A57: Texas………………………………………… | B57: 0.08464520158 | C57: 9895452.527 | D57: 0.08118216795 | E57: 1982563.806 | F57: 0.05890981507 | G57: 313531045.9 | H57: 0.04105368217 | I57: 1011860.881 | J57: 0.07010318526 | K57: 19919596.75 | L57: 0.06619943609 | M57: 45486531.42 | N57: 0.05358117785 | O57: 613295.2079 | P57: 0 | Q57: 0 | R57: 0 | S57: 0 | T57: 0.01105467665 | U57: 28526285.01 | V57: 0.03675754814 | W57: 2811520.66 | X57: 0.07683320171 | Y57: 28278062.79 | Z57: 1750000 | AA57: 30028062.79 | AB57: 453806215
A58: Utah…………………………………………. | B58: 0.009215520109 | C58: 1077340.948 | D58: 0.009611962888 | E58: 234735.413 | F58: 0.01011411794 | G58: 53829569.34 | H58: 0.02106359548 | I58: 519159.967 | J58: 0.00659729296 | K58: 1874599.776 | L58: 0.01010656919 | M58: 6944360.92 | N58: 0.01010905715 | O58: 115709.2202 | P58: 0 | Q58: 0 | R58: 0.0036342 | S58: 109026 | T58: 0.003248700569 | U58: 8383181.281 | V58: 0.00380610493 | W58: 291122.3188 | X58: 0.00934305986 | Y58: 3438664.894 | Z58: 1750000 | AA58: 5188664.894 | AB58: 78567470.08
A59: Vermont…………………………………… | B59: 0.004000000788 | C59: =B59*C$67 -> 467620.3396 | D59: 0.004999711707 | E59: 122098.8269 | F59: 0.0005716679426 | G59: 3042543.042 | H59: 0 | I59: 0 | J59: 0.00176142599 | K59: 500503.5833 | L59: 0.005604631138 | M59: 3851018.157 | N59: 0.01008267775 | O59: 115407.2791 | P59: 0 | Q59: 0 | R59: 0 | S59: 0 | T59: 0 | U59: 0 | V59: 0 | W59: 0 | X59: 0.0004451780293 | Y59: 163845.4729 | Z59: 1750000 | AA59: 1913845.473 | AB59: 10013036.7
A60: Virgin Islands……………………………… | B60: 0 | C60: 0 | D60: 0 | E60: 0 | F60: 0.0002229763398 | G60: 1186729.324 | H60: 0 | I60: 0 | J60: 0.0006112177898 | K60: 173675.5877 | L60: 0 | M60: 0 | N60: 0 | O60: 0 | P60: 0 | Q60: 0 | R60: 0 | S60: 0 | T60: 0 | U60: 0 | V60: 0 | W60: 0 | X60: 0.0003223323213 | Y60: 118632.7449 | Z60: 500000 | AA60: 618632.7449 | AB60: 1979037.657
A61: Virginia………………………………………. | B61: 0.02463070176 | C61: 2879453.713 | D61: 0.02392469447 | E61: 584269.1137 | F61: 0.02587492114 | G61: 137712044.7 | H61: 0.01149648436 | I61: 283356.8679 | J61: 0.02288604295 | K61: 6502996.193 | L61: 0.02422441619 | M61: 16644925.29 | N61: 0.02463157635 | O61: 281935.3427 | P61: 0.0575 | Q61: 1150000 | R61: 0 | S61: 0 | T61: 0.0001548792375 | U61: 399661.5562 | V61: 0.02290541809 | W61: 1751995.425 | X61: 0.0258200338 | Y61: 9502929.996 | Z61: 1750000 | AA61: 11252930 | AB61: 179443568.2
A62: Washington………………………………… | B62: 0.02238762393 | C62: 2617226.561 | D62: 0.02160010591 | E62: 527499.9332 | F62: 0.0294666921 | G62: 156828243 | H62: 0.02458699382 | I62: 606002.0907 | J62: 0.02227238599 | K62: 6328627.523 | L62: 0.02012247397 | M62: 13826425.1 | N62: 0.0190116336 | O62: 217608.9487 | P62: 0 | Q62: 0 | R62: 0.07361324 | S62: 2208397.2 | T62: 0.01980356246 | U62: 51102541.03 | V62: 0.2309299581 | W62: 17663429.18 | X62: 0.03493072958 | Y62: 12856074.49 | Z62: 1750000 | AA62: 14606074.49 | AB62: 266532075
A63: West Virginia……………………………… | B63: 0.004000000788 | C63: 467620.3396 | D63: 0.004999711707 | E63: 122098.8269 | F63: 0.002058867201 | G63: 10957745.94 | H63: 0.01069139762 | I63: 263513.6836 | J63: 0.007837960166 | K63: 2227131.41 | L63: 0.01244282181 | M63: 8549631.819 | N63: 0.01560162508 | O63: 178577.6701 | P63: 0.0946 | Q63: 1892000 | R63: 0 | S63: 0 | T63: 0.0004189417153 | U63: 1081067.421 | V63: 0 | W63: 0 | X63: 0.002288728735 | Y63: 842354.782 | Z63: 1750000 | AA63: 2592354.782 | AB63: 28331741.89
A64: Wisconsin………………………………… | B64: 0.01293423419 | C64: 1512077.448 | D64: 0.01359629843 | E64: 332037.5625 | F64: 0.01027278934 | G64: 54674053.57 | H64: 0.01266441636 | I64: 312143.1944 | J64: 0.01779586538 | K64: 5056638.453 | L64: 0.02512414565 | M64: 17263141.62 | N64: 0.02537142431 | O64: 290403.7121 | P64: 0 | Q64: 0 | R64: 0.06890836 | S64: 2067250.8 | T64: 0.0005935168251 | U64: 1531553.627 | V64: 0 | W64: 0 | X64: 0.01385271223 | Y64: 5098419.141 | Z64: 1750000 | AA64: 6848419.141 | AB64: 89887719.13
A65: Wyoming…………………………………. | B65: 0.004000010172 | C65: 467621.4366 | D65: 0.004999711707 | E65: 122098.8269 | F65: 0.0004206828524 | G65: 2238967.047 | H65: 0 | I65: 0 | J65: 0.001634507616 | K65: 464440.1318 | L65: 0.01011015747 | M65: 6946826.479 | N65: 0.009381927831 | O65: 107386.4295 | P65: 0 | Q65: 0 | R65: 0.0054818 | S65: 164454 | T65: 0 | U65: 0 | V65: 0 | W65: 0 | X65: 0.0006185288435 | Y65: 227646.3441 | Z65: 1750000 | AA65: 1977646.344 | AB65: 12489440.69
A66: Unallocated………………. | B66: 0 | C66: 0 | D66: 0 | E66: 0 | F66: 0 | G66: 0 | H66: 0 | I66: 0 | J66: 0 | K66: 0 | L66: 0 | M66: 0 | N66: 0 | O66: 0 | P66: 0 | Q66: 0 | R66: 0 | S66: 0 | T66: 0 | U66: 0 | V66: 0 | W66: 0 | X66: 0 | Y66: 0 | Z66: 0 | AA66: 0 | AB66: 0
A67: Subtotal | C67: =C70-C68 -> 116905061.9 | E67: =E70-E68 -> 24421173.46 | G67: =G70-G68 -> 5322220848 | I67: =I70-I68 -> 24647262.5 | K67: =K70-K68 -> 284146814.1 | M67: =M70-M68 -> 687113578.4 | O67: =O70-O68 -> 11446094.18 | Q67: =Q70-Q68 -> 20000000 | S67: =S70-S68 -> 30000000 | U67: =U70-U68 -> 2580472131 | W67: =W70-W68 -> 76488253.51 | Y67: =Y70-Y68 -> 368044831.7 | Z67: =SUM(Z10:Z66) -> 90500000 | AA67: 458544831.7 | AB67: =SUM(C67+E67+G67+I67+K67+M67+O67+Q67+S67+U67+W67+AA67) -> 9636406049
A68: Oversight | C68: =C70*0.005 -> 587462.6224 | E68: =E70*0.005 -> 122719.4646 | F68: =G77*0.0075 -> 36561039.28 | G68: ='Program Totals'!L11*0.0075 -> 36970893.75 | I68: 0 | K68: =K70*0.005 -> 1427873.438 | M68: ='Program Totals'!L17*0.005 -> 3366498.288 | O68: 0 | Q68: 0 | S68: 0 | U68: =(U70+W70)*0.01 -> 26837983.69 | W68: 0 | Y68: =AA75*0.0075 -> 6064904.36 | Z68: 0 | AA68: =Y68 -> 6064904.36 | AB68: =SUM(C68+E68+G68+I68+K68+M68+O68+Q68+S68+U68+W68+AA68) -> 75378335.61
C69: 0 | E69: 0 | G69: 0 | I69: 0 | K69: 0 | M69: 0 | O69: 0 | Q69: 0 | S69: 0 | U69: 0 | W69: 0 | Y69: 0 | Z69: 0 | AA69: 0 | AB69: =SUM(C69:Z69) -> 0
A70: Subtotal | C70: ='Program Totals'!L9 -> 117492524.5 | E70: ='Program Totals'!L10 -> 24543892.93 | G70: =G77+G80+H79 -> 5359191742 | I70: ='Program Totals'!L12 -> 24647262.5 | K70: ='Program Totals'!L15 -> 285574687.5 | M70: =M77+I79 -> 690480076.7 | O70: ='Program Totals'!L23-O74 -> 11446094.18 | Q70: ='Program Totals'!L21 -> 20000000 | S70: ='Program Totals'!L19 -> 30000000 | U70: ='Program Totals'!L37 -> 2607310115 | W70: ='Program Totals'!L38 -> 76488253.51 | Y70: ='Program Totals'!L40-Z67 -> 374109736.1 | Z70: =Z67 -> 90500000 | AA70: =SUM(Y70+Z70) -> 464609736.1 | AB70: 9711784385 | AC70: =AB67+AB68 -> 9711784385
A71: Bus and Bus Facilities Discretionary Program | C71: 0 | E71: 0 | G71: 0 | I71: 0 | K71: 0 | M71: 0 | O71: 0 | Q71: 0 | S71: 0 | U71: 0 | W71: 0 | Y71: ='Program Totals'!L43 -> 344044178.6 | Z71: 0 | AA71: =Y71 -> 344044178.6 | AB71: 344044178.6
A72: Ferry discretionary Program | C72: 0 | E72: 0 | G72: ='Program Totals'!L13 -> 30000000 | I72: 0 | K72: 0 | M72: 0 | O72: 0 | Q72: 0 | S72: 0 | U72: 0 | W72: 0 | Y72: 0 | Z72: 0 | AA72: 0 | AB72: 30000000
A73: Tribal discretionary Program | C73: 0 | E73: 0 | G73: 0 | I73: 0 | K73: 0 | M73: 0 | O73: 0 | Q73: 0 | S73: 5000000 | U73: 0 | W73: 0 | Y73: 0 | Z73: 0 | AA73: 0 | AB73: 5000000
A74: National RTAP | C74: 0 | E74: 0 | G74: 0 | I74: 0 | K74: 0 | M74: 0 | O74: ='Program Totals'!L22 -> 2019898.973 | Q74: 0 | S74: 0 | U74: 0 | W74: 0 | Y74: 0 | Z74: 0 | AA74: 0 | AB74: 2019898.973
A75: Total | C75: =C70+C71+C72+C73+C74 -> 117492524.5 | E75: =E70+E71+E72+E73+E74 -> 24543892.93 | G75: 5389191742 | I75: 24647262.5 | K75: 285574687.5 | M75: 690480076.7 | O75: 13465993.15 | Q75: 20000000 | S75: 35000000 | U75: 2607310115 | W75: 76488253.51 | Y75: 718153914.7 | Z75: 90500000 | AA75: 808653914.7 | AB75: 1.009284846e+10 | AC75: ='Program Totals'!L61 -> 1.009284846e+10 | AD75: =AC70+AB71+AB72+AB73+AB74 -> 1.009284846e+10
AC76: =AB70+AB71+AB72+AB73+AB74 -> 1.009284846e+10
G77: ='Program Totals'!L14 -> 4874805237 | M77: ='Program Totals'!L18 -> 604833664.5
A78: *Allocations for UZAs that are within multiple-states are split between the applicable states.
G79: ='Program Totals'!L46 -> 300668842.6 | H79: =G79*0.715147032 -> 215022430.4 | I79: =G79-H79 -> 85646412.21
G80: ='Program Totals'!L47 -> 269364074.4 | I80: =SUM(I10:I66)-I67 -> 0 | K80: 0 | M80: 0 | O80: 0 | Q80: 0 | S80: 0 | U80: 0 | W80: 0 | Y80: 0 | Z80: 0 | AA80: 0 | AB80: 0
AD82: =AD75-AC75 -> 0

Sheet State Totals
B1: Final Run -- ESTIMATED APPORTIONMENTS/ALLOCATIONS BY STATE PER YEAR
B2: FY 15 | C2: FY 16 | D2: FY 17 | E2: FY 18 | F2: FY 19 | G2: FY 20
A3: State | B3: State Total | C3: State Total | D3: State Total | E3: State Total | F3: State Total | G3: State Total
A4: Alabama…………………………………… | B4: 52838746.31 | C4: ='FY 16'!AB10 -> 53895399.93 | D4: ='FY 17'!AB10 -> 54882913.12 | E4: ='FY18'!AB10 -> 55938294.18 | F4: ='FY19'!AB10 -> 56975798.8 | G4: ='FY20'!AB10 -> 58082842.93
A5: Alaska………………………………………. | B5: 44509181.11 | C5: ='FY 16'!AB11 -> 51625428.67 | D5: ='FY 17'!AB11 -> 52586430.89 | E5: ='FY18'!AB11 -> 53606719.94 | F5: ='FY19'!AB11 -> 54555033.41 | G5: ='FY20'!AB11 -> 55609594.28
A6: American Samoa……………………………. | B6: 825834.45 | C6: ='FY 16'!AB12 -> 830950.7016 | D6: ='FY 17'!AB12 -> 838295.4994 | E6: ='FY18'!AB12 -> 846118.3131 | F6: ='FY19'!AB12 -> 854175.93 | G6: ='FY20'!AB12 -> 862408.1407
A7: Arizona………………………………………. | B7: 107526626.9 | C7: ='FY 16'!AB13 -> 109929568.5 | D7: ='FY 17'!AB13 -> 112124626.1 | E7: ='FY18'!AB13 -> 114481119 | F7: ='FY19'!AB13 -> 117005463.1 | G7: ='FY20'!AB13 -> 119470089.3
A8: Arkansas……………………………………. | B8: 30744550.88 | C8: ='FY 16'!AB14 -> 31650537.8 | D8: ='FY 17'!AB14 -> 32281902.1 | E8: ='FY18'!AB14 -> 32956659.83 | F8: ='FY19'!AB14 -> 33585908.61 | G8: ='FY20'!AB14 -> 34292590.98
A9: California………………………………… | B9: 1253984980 | C9: ='FY 16'!AB15 -> 1317468210 | D9: ='FY 17'!AB15 -> 1343523066 | E9: ='FY18'!AB15 -> 1371406841 | F9: ='FY19'!AB15 -> 1399901100 | G9: ='FY20'!AB15 -> 1428800364
A10: Colorado……………………………………. | B10: 111531890.7 | C10: ='FY 16'!AB16 -> 114618713 | D10: ='FY 17'!AB16 -> 116920877.3 | E10: ='FY18'!AB16 -> 119391655 | F10: ='FY19'!AB16 -> 122239166.4 | G10: ='FY20'!AB16 -> 124818533
A11: Connecticut……………………………… | B11: 157663159 | C11: ='FY 16'!AB17 -> 166747877.3 | D11: ='FY 17'!AB17 -> 169453628.9 | E11: ='FY18'!AB17 -> 172171163.1 | F11: ='FY19'!AB17 -> 175543757.7 | G11: ='FY20'!AB17 -> 178524502.2
A12: Delaware……………………………………. | B12: 24593443.55 | C12: ='FY 16'!AB18 -> 25309285.74 | D12: ='FY 17'!AB18 -> 25701073.14 | E12: ='FY18'!AB18 -> 26092623.74 | F12: ='FY19'!AB18 -> 26603153.37 | G12: ='FY20'!AB18 -> 27042818.78
A13: District of Columbia………………………. | B13: 168198179.4 | C13: ='FY 16'!AB19 -> 199737484.5 | D13: ='FY 17'!AB19 -> 203238336.1 | E13: ='FY18'!AB19 -> 206883698.5 | F13: ='FY19'!AB19 -> 210465762.8 | G13: ='FY20'!AB19 -> 214222831.5
A14: Florida………………………………………. | B14: 360848078.3 | C14: ='FY 16'!AB20 -> 370830314.3 | D14: ='FY 17'!AB20 -> 378287718.1 | E14: ='FY18'!AB20 -> 386278460.7 | F14: ='FY19'!AB20 -> 393569019.9 | G14: ='FY20'!AB20 -> 401881815.5
A15: Georgia……………………………………… | B15: 174055051 | C15: ='FY 16'!AB21 -> 183012058.9 | D15: ='FY 17'!AB21 -> 186581763.1 | E15: ='FY18'!AB21 -> 190380254.1 | F15: ='FY19'!AB21 -> 194509592.4 | G15: ='FY20'!AB21 -> 198474316.8
A16: Guam………………………………………… | B16: 1353129.778 | C16: ='FY 16'!AB22 -> 1366494.425 | D16: ='FY 17'!AB22 -> 1385726.406 | E16: ='FY18'!AB22 -> 1406209.948 | F16: ='FY19'!AB22 -> 1427308.294 | G16: ='FY20'!AB22 -> 1448863.812
A17: Hawaii………………………………………. | B17: 41053995.82 | C17: ='FY 16'!AB23 -> 42177804.28 | D17: ='FY 17'!AB23 -> 43033629.82 | E17: ='FY18'!AB23 -> 43960581.38 | F17: ='FY19'!AB23 -> 45307476.63 | G17: ='FY20'!AB23 -> 46277456.81
A18: Idaho…………………………………………. | B18: 23242375.64 | C18: ='FY 16'!AB24 -> 24198621.89 | D18: ='FY 17'!AB24 -> 24647159.25 | E18: ='FY18'!AB24 -> 25127247.29 | F18: ='FY19'!AB24 -> 25567578.53 | G18: ='FY20'!AB24 -> 26069692.32
A19: Illinois……………………………………… | B19: 537023178 | C19: ='FY 16'!AB25 -> 574434634.7 | D19: ='FY 17'!AB25 -> 585480846 | E19: ='FY18'!AB25 -> 597240901.9 | F19: ='FY19'!AB25 -> 609101428.2 | G19: ='FY20'!AB25 -> 621263354.5
A20: Indiana……………………………………… | B20: 87621924.12 | C20: ='FY 16'!AB26 -> 89514097.73 | D20: ='FY 17'!AB26 -> 91340643.68 | E20: ='FY18'!AB26 -> 93302796.78 | F20: ='FY19'!AB26 -> 95799196.32 | G20: ='FY20'!AB26 -> 97858793.56
A21: Iowa…………………………………………. | B21: 38625979.52 | C21: ='FY 16'!AB27 -> 39618960.16 | D21: ='FY 17'!AB27 -> 40423482.76 | E21: ='FY18'!AB27 -> 41287627.7 | F21: ='FY19'!AB27 -> 42829879.59 | G21: ='FY20'!AB27 -> 43747989.5
A22: Kansas………………………………………. | B22: 34721200.4 | C22: ='FY 16'!AB28 -> 35647051.48 | D22: ='FY 17'!AB28 -> 36359895.17 | E22: ='FY18'!AB28 -> 37123575.21 | F22: ='FY19'!AB28 -> 38031054.69 | G22: ='FY20'!AB28 -> 38833883.79
A23: Kentucky…………………………………… | B23: 51536662.56 | C23: ='FY 16'!AB29 -> 52622836.44 | D23: ='FY 17'!AB29 -> 53664547.38 | E23: ='FY18'!AB29 -> 54781804.79 | F23: ='FY19'!AB29 -> 55940230.86 | G23: ='FY20'!AB29 -> 57109858.91
A24: Louisiana……………………………………. | B24: 59629607.26 | C24: ='FY 16'!AB30 -> 61355353.93 | D24: ='FY 17'!AB30 -> 62580348.43 | E24: ='FY18'!AB30 -> 63890685.56 | F24: ='FY19'!AB30 -> 65058831.93 | G24: ='FY20'!AB30 -> 66425792.72
A25: Maine………………………………………… | B25: 30348164.89 | C25: ='FY 16'!AB31 -> 32222947.06 | D25: ='FY 17'!AB31 -> 32840133.19 | E25: ='FY18'!AB31 -> 33500527.08 | F25: ='FY19'!AB31 -> 34314921.31 | G25: ='FY20'!AB31 -> 35003493.47
A26: Maryland……………………………………. | B26: 230324428.9 | C26: ='FY 16'!AB32 -> 240125310 | D26: ='FY 17'!AB32 -> 244171732.4 | E26: ='FY18'!AB32 -> 248283479.6 | F26: ='FY19'!AB32 -> 252138184 | G26: ='FY20'!AB32 -> 256597796.8
A27: Massachusetts……………………………. | B27: 339311760.7 | C27: ='FY 16'!AB33 -> 359729860.2 | D27: ='FY 17'!AB33 -> 365677023.7 | E27: ='FY18'!AB33 -> 371687458 | F27: ='FY19'!AB33 -> 377572975.2 | G27: ='FY20'!AB33 -> 384082885.7
A28: Michigan……………………………………. | B28: 131602214.8 | C28: ='FY 16'!AB34 -> 133673157.1 | D28: ='FY 17'!AB34 -> 136425114 | E28: ='FY18'!AB34 -> 139382240.8 | F28: ='FY19'!AB34 -> 142597929.5 | G28: ='FY20'!AB34 -> 145691409.7
A29: Minnesota…………………………………. | B29: 101583604.7 | C29: ='FY 16'!AB35 -> 106375142.7 | D29: ='FY 17'!AB35 -> 108481379.3 | E29: ='FY18'!AB35 -> 110741154.4 | F29: ='FY19'!AB35 -> 113535596.4 | G29: ='FY20'!AB35 -> 115897694.3
A30: Mississippi…………………………………. | B30: 28244679.47 | C30: ='FY 16'!AB36 -> 29251669.7 | D30: ='FY 17'!AB36 -> 29815339.8 | E30: ='FY18'!AB36 -> 30417129.33 | F30: ='FY19'!AB36 -> 31135280.62 | G30: ='FY20'!AB36 -> 31769726.24
A31: Missouri……………………………………. | B31: 94320943.12 | C31: ='FY 16'!AB37 -> 97989234.27 | D31: ='FY 17'!AB37 -> 99942314.98 | E31: ='FY18'!AB37 -> 102028634.3 | F31: ='FY19'!AB37 -> 104260944.3 | G31: ='FY20'!AB37 -> 106439218.9
A32: Montana…………………………………… | B32: 19129871.15 | C32: ='FY 16'!AB38 -> 20189160.34 | D32: ='FY 17'!AB38 -> 20547538.25 | E32: ='FY18'!AB38 -> 20930710.62 | F32: ='FY19'!AB38 -> 21513897.01 | G32: ='FY20'!AB38 -> 21920038.48
A33: N. Mariana Islands…………………………. | B33: 811989.6361 | C33: ='FY 16'!AB39 -> 816885.4962 | D33: ='FY 17'!AB39 -> 823921.8348 | E33: ='FY18'!AB39 -> 831415.9151 | F33: ='FY19'!AB39 -> 839134.9059 | G33: ='FY20'!AB39 -> 847021.1705
A34: Nebraska……………………………………. | B34: 23591336.99 | C34: ='FY 16'!AB40 -> 24436766.21 | D34: ='FY 17'!AB40 -> 24902864.74 | E34: ='FY18'!AB40 -> 25401364.64 | F34: ='FY19'!AB40 -> 25867517.21 | G34: ='FY20'!AB40 -> 26389450.29
A35: Nevada………………………………………. | B35: 57172865.62 | C35: ='FY 16'!AB41 -> 58568600.25 | D35: ='FY 17'!AB41 -> 59745129.79 | E35: ='FY18'!AB41 -> 61010635.81 | F35: ='FY19'!AB41 -> 62094163.96 | G35: ='FY20'!AB41 -> 63408582.95
A36: New Hampshire……………………………. | B36: 15671744.12 | C36: ='FY 16'!AB42 -> 16348700.83 | D36: ='FY 17'!AB42 -> 16655446.06 | E36: ='FY18'!AB42 -> 16984447.87 | F36: ='FY19'!AB42 -> 17279946.39 | G36: ='FY20'!AB42 -> 17623298
A37: New Jersey…………………………………. | B37: 573263437 | C37: ='FY 16'!AB43 -> 600206410.6 | D37: ='FY 17'!AB43 -> 610554099.5 | E37: ='FY18'!AB43 -> 621157489.7 | F37: ='FY19'!AB43 -> 630788783.5 | G37: ='FY20'!AB43 -> 642180359
A38: New Mexico………………………………… | B38: 43810139.3 | C38: ='FY 16'!AB44 -> 45479143.66 | D38: ='FY 17'!AB44 -> 46375939.95 | E38: ='FY18'!AB44 -> 47339617.65 | F38: ='FY19'!AB44 -> 48338006.22 | G38: ='FY20'!AB44 -> 49341315.41
A39: New York……………………………………. | B39: 1342157884 | C39: ='FY 16'!AB45 -> 1444263279 | D39: ='FY 17'!AB45 -> 1470596038 | E39: ='FY18'!AB45 -> 1498180729 | F39: ='FY19'!AB45 -> 1523909156 | G39: ='FY20'!AB45 -> 1552716390
A40: North Carolina…………………………………… | B40: 114759873 | C40: ='FY 16'!AB46 -> 116782034.3 | D40: ='FY 17'!AB46 -> 119136874.4 | E40: ='FY18'!AB46 -> 121659719.2 | F40: ='FY19'!AB46 -> 124046200.5 | G40: ='FY20'!AB46 -> 126683974.8
A41: North Dakota………………………………. | B41: 13689173.6 | C41: ='FY 16'!AB47 -> 14500491.85 | D41: ='FY 17'!AB47 -> 14754248.55 | E41: ='FY18'!AB47 -> 15025978.4 | F41: ='FY19'!AB47 -> 15536146.71 | G41: ='FY20'!AB47 -> 15826001.6
A42: Ohio………………………………………… | B42: 174852835.7 | C42: ='FY 16'!AB48 -> 179927728 | D42: ='FY 17'!AB48 -> 183526137.2 | E42: ='FY18'!AB48 -> 187376239.6 | F42: ='FY19'!AB48 -> 190956910.9 | G42: ='FY20'!AB48 -> 194964160.2
A43: Oklahoma…………………………………… | B43: 47171865.08 | C43: ='FY 16'!AB49 -> 49690521.21 | D43: ='FY 17'!AB49 -> 50502206.97 | E43: ='FY18'!AB49 -> 51368977.39 | F43: ='FY19'!AB49 -> 52170951.2 | G43: ='FY20'!AB49 -> 53079552.61
A44: Oregon………………………………………. | B44: 93960862.6 | C44: ='FY 16'!AB50 -> 98155573.74 | D44: ='FY 17'!AB50 -> 100089189.4 | E44: ='FY18'!AB50 -> 102160155.2 | F44: ='FY19'!AB50 -> 104230003 | G44: ='FY20'!AB50 -> 106381040.4
A45: Pennsylvania………………………………. | B45: 387365824.9 | C45: ='FY 16'!AB51 -> 413084497.9 | D45: ='FY 17'!AB51 -> 420935821.8 | E45: ='FY18'!AB51 -> 429280565.9 | F45: ='FY19'!AB51 -> 438670071.4 | G45: ='FY20'!AB51 -> 447340759.9
A46: Puerto Rico…………………………………. | B46: 67260622.84 | C46: ='FY 16'!AB52 -> 68960340.25 | D46: ='FY 17'!AB52 -> 70403090.99 | E46: ='FY18'!AB52 -> 71970085.57 | F46: ='FY19'!AB52 -> 74078304.46 | G46: ='FY20'!AB52 -> 75705728.84
A47: Rhode Island……………………………… | B47: 36370776.72 | C47: ='FY 16'!AB53 -> 37669482.76 | D47: ='FY 17'!AB53 -> 38224247.94 | E47: ='FY18'!AB53 -> 38764677.66 | F47: ='FY19'!AB53 -> 39263150.98 | G47: ='FY20'!AB53 -> 39875751.96
A48: South Carolina……………………………… | B48: 46830050.12 | C48: ='FY 16'!AB54 -> 47871638.05 | D48: ='FY 17'!AB54 -> 48819577.96 | E48: ='FY18'!AB54 -> 49830587.34 | F48: ='FY19'!AB54 -> 50819486.3 | G48: ='FY20'!AB54 -> 51881824.3
A49: South Dakota………………………………. | B49: 15500615.73 | C49: ='FY 16'!AB55 -> 16615356.96 | D49: ='FY 17'!AB55 -> 16877302.57 | E49: ='FY18'!AB55 -> 17157454.37 | F49: ='FY19'!AB55 -> 17499310.7 | G49: ='FY20'!AB55 -> 17794270.56
A50: Tennessee…………………………………. | B50: 85414173.84 | C50: ='FY 16'!AB56 -> 87455463.33 | D50: ='FY 17'!AB56 -> 89210411.09 | E50: ='FY18'!AB56 -> 91091849.95 | F50: ='FY19'!AB56 -> 92833518.78 | G50: ='FY20'!AB56 -> 94795606.13
A51: Texas………………………………………… | B51: 415592412.5 | C51: ='FY 16'!AB57 -> 418547079 | D51: ='FY 17'!AB57 -> 427069295 | E51: ='FY18'!AB57 -> 436204251.3 | F51: ='FY19'!AB57 -> 444293603.5 | G51: ='FY20'!AB57 -> 453806215
A52: Utah…………………………………………. | B52: 70692670.57 | C52: ='FY 16'!AB58 -> 72409920.77 | D52: ='FY 17'!AB58 -> 73855775.15 | E52: ='FY18'!AB58 -> 75411205.19 | F52: ='FY19'!AB58 -> 76951916.01 | G52: ='FY20'!AB58 -> 78567470.08
A53: Vermont…………………………………… | B53: 8370585.237 | C53: ='FY 16'!AB59 -> 8993578.69 | D53: ='FY 17'!AB59 -> 9149648.969 | E53: ='FY18'!AB59 -> 9316920.172 | F53: ='FY19'!AB59 -> 9830307.172 | G53: ='FY20'!AB59 -> 10013036.7
A54: Virgin Islands……………………………… | B54: 1843783.167 | C54: ='FY 16'!AB60 -> 1858439.716 | D54: ='FY 17'!AB60 -> 1887737.634 | E54: ='FY18'!AB60 -> 1919754.464 | F54: ='FY19'!AB60 -> 1946186.476 | G54: ='FY20'!AB60 -> 1979037.657
A55: Virginia………………………………………. | B55: 161234228.2 | C55: ='FY 16'!AB61 -> 164111815.6 | D55: ='FY 17'!AB61 -> 167491646.7 | E55: ='FY18'!AB61 -> 171144995 | F55: ='FY19'!AB61 -> 175630030.5 | G55: ='FY20'!AB61 -> 179443568.2
A56: Washington………………………………… | B56: 231768948 | C56: ='FY 16'!AB62 -> 244940420.4 | D56: ='FY 17'!AB62 -> 249771732.8 | E56: ='FY18'!AB62 -> 254951297.1 | F56: ='FY19'!AB62 -> 261144863.5 | G56: ='FY20'!AB62 -> 266532075
A57: West Virginia……………………………… | B57: 24824408.33 | C57: ='FY 16'!AB63 -> 25763816.36 | D57: ='FY 17'!AB63 -> 26230109.97 | E57: ='FY18'!AB63 -> 26729734.43 | F57: ='FY19'!AB63 -> 27796755.97 | G57: ='FY20'!AB63 -> 28331741.89
A58: Wisconsin………………………………… | B58: 80216786.92 | C58: ='FY 16'!AB64 -> 82142223.02 | D58: ='FY 17'!AB64 -> 83785698.59 | E58: ='FY18'!AB64 -> 85552785.85 | F58: ='FY19'!AB64 -> 88028302.83 | G58: ='FY20'!AB64 -> 89887719.13
A59: Wyoming…………………………………. | B59: 10937600.01 | C59: ='FY 16'!AB65 -> 11597917.06 | D59: ='FY 17'!AB65 -> 11808489 | E59: ='FY18'!AB65 -> 12033228.33 | F59: ='FY19'!AB65 -> 12253695.27 | G59: ='FY20'!AB65 -> 12489440.69
A60: Unallocated………………. | B60: 0 | C60: 0 | D60: ='FY 17'!AB66 -> 0 | E60: 0 | F60: ='FY19'!AB66 -> 0 | G60: ='FY20'!AB66 -> 0
A61: Subtotal | B61: 8482130936 | C61: =SUM(C4:C60) -> 8917346291 | D61: 9086420167 | E61: 9265382535 | F61: 9449037070 | G61: =SUM(G4:G60) -> 9636406049
A62: Oversight (2) | B62: 54195663.88 | C62: ='FY 16'!AB68 -> 69398479.75 | D62: ='FY 17'!AB68 -> 70788810.81 | E62: ='FY18'!AB68 -> 72269968.71 | F62: ='FY19'!AB68 -> 73805014.03 | G62: ='FY20'!AB68 -> 75378335.61
B63: 0 | C63: 0 | D63: 0 | E63: 0 | F63: 0 | G63: 0
A64: State Subtotal | B64: =B61+B62 -> 8536326600 | C64: =C61+C62 -> 8986744771 | D64: 9157208978 | E64: 9337652503 | F64: 9522842084 | G64: 9711784385
A66: Ferry discretionary Program | B66: 30000000 | C66: ='Program Totals'!D13 -> 30000000 | D66: ='Program Totals'!F13 -> 30000000 | E66: ='Program Totals'!H13 -> 30000000 | F66: ='Program Totals'!J13 -> 30000000 | G66: ='Program Totals'!L13 -> 30000000
A67: Tribal discretionary Program | B67: 5000000 | C67: ='Program Totals'!D20 -> 5000000 | D67: ='Program Totals'!F20 -> 5000000 | E67: ='Program Totals'!H20 -> 5000000 | F67: ='Program Totals'!J20 -> 5000000 | G67: ='Program Totals'!L20 -> 5000000
A68: National RTAP | B68: 1823400 | C68: ='Program Totals'!D22 -> 1859868 | D68: ='Program Totals'!F22 -> 1897065.36 | E68: ='Program Totals'!H22 -> 1936903.733 | F68: ='Program Totals'!J22 -> 1977966.092 | G68: ='Program Totals'!L22 -> 2019898.973
A69: Bus discretionary | B69: 0 | C69: ='Program Totals'!D43 -> 268000000 | D69: ='Program Totals'!F43 -> 283600000 | E69: ='Program Totals'!H43 -> 301514000 | F69: ='Program Totals'!J43 -> 322059980 | G69: ='Program Totals'!L43 -> 344044178.6
A70: Pilot Program for Enhanced Mobility | C70: ='Program Totals'!D16 -> 2000000 | D70: ='Program Totals'!F16 -> 3000000 | E70: ='Program Totals'!H16 -> 3250000 | F70: ='Program Totals'!J16 -> 3500000 | G70: ='Program Totals'!L16 -> 3500000
A71: Research | C71: ='Program Totals'!D24 -> 20000000 | D71: ='Program Totals'!F24 -> 20000000 | E71: ='Program Totals'!H24 -> 20000000 | F71: ='Program Totals'!J24 -> 20000000 | G71: ='Program Totals'!L24 -> 20000000
A72: Component Testing | C72: ='Program Totals'!D29 -> 3000000 | D72: ='Program Totals'!F29 -> 3000000 | E72: ='Program Totals'!H29 -> 3000000 | F72: ='Program Totals'!J29 -> 3000000 | G72: ='Program Totals'!L29 -> 3000000
A73: TCRP | C73: ='Program Totals'!D30 -> 5000000 | D73: ='Program Totals'!F30 -> 5000000 | E73: ='Program Totals'!H30 -> 5000000 | F73: ='Program Totals'!J30 -> 5000000 | G73: ='Program Totals'!L30 -> 5000000
A74: Transit Oriented Development | B74: 10000000 | C74: ='Program Totals'!D7 -> 10000000 | D74: ='Program Totals'!F7 -> 10000000 | E74: ='Program Totals'!H7 -> 10000000 | F74: ='Program Totals'!J7 -> 10000000 | G74: ='Program Totals'!L7 -> 10000000
A75: National Transit Database | B75: 3850000 | C75: ='Program Totals'!D35 -> 4000000 | D75: ='Program Totals'!F35 -> 4000000 | E75: ='Program Totals'!H35 -> 4000000 | F75: ='Program Totals'!J35 -> 4000000 | G75: ='Program Totals'!L35 -> 4000000
A76: Human Resources and Training | B76: 5000000 | C76: ='Program Totals'!D33 -> 9000000 | D76: ='Program Totals'!F33 -> 9000000 | E76: ='Program Totals'!H33 -> 9000000 | F76: ='Program Totals'!J33 -> 9000000 | G76: ='Program Totals'!L33 -> 9000000
A77: Bus Testing | B77: 3000000 | C77: ='Program Totals'!D32 -> 3000000 | D77: ='Program Totals'!F32 -> 3000000 | E77: ='Program Totals'!H32 -> 3000000 | F77: ='Program Totals'!J32 -> 3000000 | G77: ='Program Totals'!L32 -> 3000000
A78: Positive Train Control | D78: ='Program Totals'!F48 -> 199000000
A79: TOTAL | B79: =B64+SUM(B66:B77) -> 8595000000 | C79: =SUM(C64:C78) -> 9347604639 | D79: 9733706043 | E79: 9733353407 | F79: 9939380030 | G79: =SUM(G64:G78) -> 1.015034846e+10
A80: Trust Fund | B80: 8595000000 | C80: 8723564000 | D80: 8879211000 | E80: 9059459000 | F80: 9240647000 | G80: 9617580000
A81: Differential | B81: 0 | C81: =C79-C80 -> 624040639 | D81: 854495043.1 | E81: 673894407.1 | F81: 698733029.8 | G81: 532768462.4
B82: ='Program Totals'!C4 -> 8595000000 | C82: ='Program Totals'!D4 -> 9347604639 | D82: ='Program Totals'!F4 -> 9733706043 | E82: ='Program Totals'!H4 -> 9733353407 | F82: ='Program Totals'!J4 -> 9939380030 | G82: ='Program Totals'!L4 -> 1.015034846e+10
A84: Disclaimer: This technical drafting assistance is provided in response to a Congressional request and is not intended to reflect the viewpoint or policies of any element of the Department of Transportation or the Administration.

Sheet Program Totals
C1: MAP-21 FISCAL YEAR 2015 ENACTED LEVELS | D1: FY 2016 | E1: STRR 2016 | F1: FY 2017 | G1: STRR 2017 | H1: FY 2018 | I1: STRR 2018 | J1: FY 2019 | K1: STRR 2019 | L1: FY 2020 | M1: STRR 2020 | N1: TOTALS
B2: Contract Authority/Obligation Limtiation | C2: 8595000000 | D2: 9347907411
A3: Trust Fund
B4: Obligation Limitation/Contract Authority | C4: 8595000000 | D4: =D7+D8+D11+D15+D16+D17+D24+D29+D30+D32+D33+D35+D36+D39+D45 -> 9347604639 | F4: =F7+F8+F11+F15+F16+F17+F24+F29+F30+F32+F33+F35+F36+F39+F45+F48 -> 9733706043 | G4: =G7+G8+G11+G15+G16+G17+G24+G29+G30+G32+G33+G35+G36+G39+G45 -> 8495261000 | H4: 9733353407 | I4: 8786171000 | J4: 9939380030 | K4: 8961993500 | L4: 1.015034846e+10 | N4: 4.870567051e+10
B5: Balance of CA | C5: .
A7: 5303 (20005(b)) | B7: Transit Oriented Development (Discretionary Pilot) | C7: 10000000 | D7: 10000000 | E7: 10000000 | F7: 10000000 | G7: 10000000 | H7: 10000000 | I7: 10000000 | J7: 10000000 | K7: 10000000 | L7: 10000000 | M7: 10000000
A8: 5305 | B8: Planning Programs | C8: 128800000 | D8: 130732000 | E8: 128800000 | F8: 133398932.8 | G8: 12800000 | H8: 136200310.4 | I8: 131415000 | J8: 139087757 | K8: 134043000 | L8: 142036417.4 | M8: 136775000
A9: 5303 | B9: Metropolitan Transportation Planning | C9: 106543360 | D9: =D8*0.8272 -> 108141510.4 | F9: =F8*0.8272 -> 110347597.2 | G9: 10588160 | H9: 112664896.8 | I9: 108706488 | J9: 115053392.6 | K9: 110880369.6 | L9: 117492524.5
A10: 5304 | B10: Statewide Transportation Planning | C10: 22256640 | D10: =D8*0.1728 -> 22590489.6 | F10: =F8*0.1728 -> 23051335.59 | G10: 2211840 | H10: 23535413.64 | I10: 22708512 | J10: 24034364.4 | K10: 23162630.4 | L10: 24543892.93
A11: 5307 | B11: Urbanized Area Formula Grants | C11: 4458650000 | D11: 4538905700 | E11: 4458650000 | F11: 4629683814 | G11: 4458650000 | H11: 4726907174 | I11: 4549161000 | J11: 4827117606 | K11: 4640144000 | L11: 4929452499 | M11: 4734724000
A12: 5307 | B12: Operational Support Of State Safety Oversight | C12: 22293250 | D12: =D11*0.005 -> 22694528.5 | F12: =F11*0.005 -> 23148419.07 | G12: 22293250 | H12: 23634535.87 | I12: 22745805 | J12: 24135588.03 | K12: 23200720 | L12: 24647262.5
A13: 5307 | B13: Passenger Ferry Boat Program | C13: 30000000 | D13: 30000000 | E13: 30000000 | F13: 30000000 | G13: 30000000 | H13: 30000000 | I13: 30000000 | J13: 30000000 | K13: 30000000 | L13: 30000000
A14: 5307 | B14: Urbanized Area Formula Grants | C14: 4406356750 | D14: =D11-D12-D13 -> 4486211172 | F14: =F11-F12-F13 -> 4576535395 | G14: 4406356750 | H14: 4673272638 | I14: 4496415195 | J14: 4772982018 | K14: 4586943280 | L14: 4874805237
A15: 5310 | B15: Enhanced Mobility of Seniors and Individuals with Disabilities | C15: 258300000 | D15: 262949400 | E15: 262175000 | F15: 268208388 | G15: 266841000 | H15: 273840764.1 | I15: 272258000 | J15: 279646188.3 | K15: 277703000 | L15: 285574687.5 | M15: 283364000
A16: 5310 | B16: Pilot Program for Enhanced Mobility | D16: 2000000 | F16: 3000000 | H16: 3250000 | J16: 3500000 | L16: 3500000
A17: 5311 | B17: Formula Grants for Rural Areas | C17: 607800000 | D17: 619956000 | E17: 607800000 | F17: 632355120 | G17: 607800000 | H17: 645634577.5 | I17: 620138000 | J17: 659322030.6 | K17: 632541000 | L17: 673299657.6 | M17: 645434000
A18: 5311 | B18: Formula Grants for Rural Areas | C18: 543820600 | D18: =D17-D19-D20-D21-D23 -> 552556880 | F18: =F17-F19-F20-F21-F23 -> 564708017.6 | G18: 555644000 | H18: 577721886 | I18: 567735240 | J18: 591135590 | K18: 579890180 | L18: 604833664.5
A19: 5311(c)(1) | B19: Public Transportation on Indian Reservations Formula | C19: 25000000 | D19: 30000000 | E19: 25000000 | F19: 30000000 | G19: 30000000 | H19: 30000000 | I19: 30000000 | J19: 30000000 | K19: 30000000 | L19: 30000000 | M19: 25000000
A20: 5311(c)(1) | B20: Public Transportation on Indian Reservations Competitive | C20: 5000000 | D20: 5000000 | E20: 5000000 | F20: 5000000 | G20: 5000000 | H20: 5000000 | I20: 5000000 | J20: 5000000 | K20: 5000000 | L20: 5000000 | M20: 5000000
A21: 5311(c)(2) | B21: Appalachian Development Public Transportation Assistance Program | C21: 20000000 | D21: 20000000 | E21: 20000000 | F21: 20000000 | G21: 5000000 | H21: 20000000 | I21: 5000000 | J21: 20000000 | K21: 5000000 | L21: 20000000 | M21: 20000000
A22: 5311 | B22: Projects of National Scope (non add within RTAP) | C22: 1823400 | D22: =D23*0.15 -> 1859868 | F22: =F23*0.15 -> 1897065.36 | G22: 1823400 | H22: 1936903.733 | I22: 1860414 | J22: 1977966.092 | K22: 1897623 | L22: 2019898.973
A23: 5311 | B23: Rural Transportation Assistance Program | C23: 12156000 | D23: =D17*0.02 -> 12399120 | F23: =F17*0.02 -> 12647102.4 | G23: 12156000 | H23: 12912691.55 | I23: 12402760 | J23: 13186440.61 | K23: 12650820 | L23: 13465993.15
A24: 5312 | B24: Transit Research ** | D24: 20000000 | F24: 20000000 | H24: 20000000 | J24: 20000000 | L24: 20000000
A25: 5312 | B25: Research, Development, Demonstration and Deployment Projects | C25: 30000000
A26: 5312 | B26: Facilities and Equipment Relating to Low/No Emissions Buses | C26: 19500000
A27: 5312 | B27: Low and No Emissions Buses | C27: 3000000
A28: 5312 | B28: Other Research, Development, Demonstration and Deployment Projects | C28: 7500000
A29: 5312 | B29: Component Testing (NEW) | D29: 3000000 | F29: 3000000 | H29: 3000000 | J29: 3000000 | L29: 3000000
A30: 5312 | B30: Transit Cooperative Research (NEW)** | D30: 5000000 | F30: 5000000 | H30: 5000000 | J30: 5000000 | L30: 5000000
A31: 5313 | B31: Transit Cooperative Research (Moved to Research) | C31: 3000000
A32: 5318 | B32: Bus Testing Facility | C32: 3000000 | D32: 3000000 | E32: 3000000 | F32: 3000000 | G32: 3000000 | H32: 3000000 | I32: 3000000 | J32: 3000000 | K32: 3000000 | L32: 3000000 | M32: 3000000
A33: 5322/5314 | B33: Human Resources and Training **(including NTI) | D33: 9000000 | F33: 9000000 | H33: 9000000 | J33: 9000000 | L33: 9000000
A34: 5322 (d) | B34: National Transit Institute | C34: 5000000 | D34: 5000000 | E34: 5000000 | F34: 5000000 | G34: 5000000 | H34: 5000000 | I34: 5000000 | J34: 5000000 | K34: 5000000 | L34: 5000000 | M34: 5000000
A35: 5335 | B35: National Transit Database | C35: 3850000 | D35: 4000000 | E35: 3850000 | F35: 4000000 | G35: 3850000 | H35: 4000000 | I35: 3850000 | J35: 4000000 | K35: 3850000 | L35: 4000000 | M35: 3850000
A36: 5337 | B36: State of Good Repair Grants | C36: 2165900000 | D36: 2507000000 | E36: 2198389000 | F36: 2549670000 | G36: 2237520000 | H36: 2593703557 | I36: 2282941000 | J36: 2638366859 | K36: 2328600000 | L36: 2683798369 | M36: 2376064000
A37: 5337 | B37: High Intensity Fixed Guideway Formula | C37: 2104171850 | D37: =D36*0.9715 -> 2435550500 | F37: =F36*0.9715 -> 2477004405 | G37: 2173750680 | H37: 2519783006 | I37: 2217877182 | J37: 2563173403 | K37: 2262234900 | L37: 2607310115
A38: 5337 | B38: High Intensity Motorbus State of Good Repair | C38: 61728150 | D38: =D36*0.0285 -> 71449500 | F38: =F36*0.0285 -> 72665595 | G38: 63769320 | H38: 73920551.39 | I38: 65063818.5 | J38: 75193455.47 | K38: 66365100 | L38: 76488253.51
A39: 5339 | B39: Bus and Bus Facilities Grants | C39: 427800000 | D39: 695800000 | E39: 782950000 | F39: 719956000 | G39: 894800000 | H39: 747033476 | I39: 913408000 | J39: 777024468.9 | K39: 932112500 | L39: 808653914.7 | M39: 951557500
A40: 5339 | B40: Bus and Bus Facilities Formula Grants (total) | C40: 427800000 | D40: 427800000 | E40: 430000000 | F40: 436356000 | G40: 431850000 | H40: 445519476 | I40: 445120000 | J40: 454964488.9 | K40: 472326000 | L40: 464609736.1 | M40: 486210000
A41: 5339 | B41: Formula Allocation | C41: 362300000 | D41: 337300000 | E41: 364500000 | F41: 345856000 | G41: 366350000 | H41: 355019476 | I41: 379620000 | J41: 364464488.9 | K41: 406826000 | L41: 374109736.1 | M41: 420710000
A42: 5339 | B42: States and Territories Minimum Allocation | C42: 65500000 | D42: 90500000 | E42: 65500000 | F42: 90500000 | G42: 65500000 | H42: 90500000 | I42: 65500000 | J42: 90500000 | K42: 65500000 | L42: 90500000 | M42: 65500000
A43: 5339 | B43: COMPETITIVE GRANTS | D43: 268000000 | E43: 352950000 | F43: 283600000 | G43: 462950000 | H43: 301514000 | I43: 468288000 | J43: 322059980 | K43: 458459000 | L43: 344044178.6 | M43: 484816000
A44: 5339 | B44: No/Low Competitive Grant Program (from within Competitive Program) | D44: [$55,000,000] | F44: [$55,000,000] | H44: [$55,000,000] | J44: [$55,000,000] | K44: 479231500 | L44: [$55,000,000]
A45: 5340 | B45: Growing States and High Density States Formula | C45: 525900000 | D45: 536261539 | F45: 544433788.3 | H45: 552783547.5 | J45: 561315120.2 | L45: 570032917.1
A46: 5340 | B46: Growing State Apportionments | C46: 262950000 | D46: 272297082.5 | E46: =E45*0.5 -> 0 | F46: 279129509.6 | G46: =G45*0.5 -> 0 | H46: 286132747.3 | I46: 0 | J46: 293311066 | K46: 0 | L46: 300668842.6 | M46: 284816000
A47: 5340 | B47: High Density State Apportionments | C47: 262950000 | D47: 263964456.5 | E47: 0 | F47: 265304278.8 | G47: =G45*0.5 -> 0 | H47: 266650800.2 | I47: 0 | J47: 268004054.2 | K47: 0 | L47: 269364074.4
B48: Positive Train Control | F48: 199000000
A49: General Fund
A50: 5308 | B50: Expedited Program for Project Delivery of Capital Investment Grants | D50: 0 | H50: 0 | J50: 0
A51: 5309 | B51: Capital Investment Grants | C51: 2120000000 | D51: 2301785760 | E51: 2029000000 | F51: 2301785760 | G51: 2065000000 | H51: 2301785760 | I51: 2106000000 | J51: 2301785760 | K51: 2149000000 | L51: 2301785760 | M51: 2193000000
A52: 5312 | B52: Transit Research ** | C52: 33000000 | D52: 20000000 | E52: 33495000 | F52: 20000000 | G52: 34091000 | H52: 20000000 | I52: 34783000 | J52: 20000000 | K52: 35479000 | L52: 20000000 | M52: 36202000
A53: 5314 | B53: Technical Assistance and Training | C53: 4000000 | D53: 5000000 | E53: 6156000 | F53: 5000000 | G53: 8152000 | H53: 5000000 | I53: 10468000 | J53: 5000000 | K53: 12796000 | L53: 5000000 | M53: 15216000
A54: 5322 | B54: Human Resources and Training ** | C54: 500000
A55: 5334 | B55: Administrative Expenses | C55: 105933000 | D55: 115016543 | E55: 105933000 | F55: 115016543 | G55: 105933000 | H55: 115016543 | I55: 105933000 | J55: 115016543 | K55: 105933000 | L55: 115016543 | M55: 105933000
A56: 5329 | B56: Safety Oversight | C56: 5000000 | D56: 5000000 | F56: 5000000 | H56: 5000000 | J56: 5000000 | L56: 5000000
A57: 5326 | B57: Transit Asset Management | C57: 2000000 | D57: 2000000 | F57: 2000000 | H57: 2000000 | J57: 2000000 | L57: 2000000
C59: 2270433000
D61: =D8+D11+D15+D17+D36+D39+D45 -> 9291604639 | F61: =F8+F11+F15+F17+F36+F39+F45 -> 9477706043 | G61: 8478411000 | H61: 9676103407 | I61: 8769321000 | J61: 9881880030 | K61: 8945143500 | L61: =L8+L11+L15+L17+L36+L39+L45 -> 1.009284846e+10
